Workbook

Sheet NOTES
A2: The following changes have been made for the tariff approval model to apply to the 2021 6-month extension period
A4: Issue | B4: Location | C4: Item | D4: Comment
A6: 1 | B6: '6 month formulae' | C6: Price control formulae | D6: Added formulae to apply to the 6-month extension
A8: =A6+1 -> 2 | B8: 'Prop2020TSSComp' | C8: Comparison to previous year indicative prices | D8: Removed worksheet as no indicative prices for 2021 to compare to
A10: =A8+1 -> 3 | B10: 'Indicative prices for 2021' | C10: Indicative prices for next year | D10: Removed worksheet as no indicative prices required for 2021/22 year
A12: =A10+1 -> 4 | B12: 'JS cost audit template' | C12: t-2 jurisdictional scheme costs | D12: Removed worksheet as no true-up to occur in 6-month extension
B13: 'TUOS cost audit template' | C13: t-2 designated pricing proposal charges | D13: Removed worksheet as no true-up to occur in 6-month extension
A15: =A12+1 -> 5 | B15: 'Est2019TransRev' | C15: Calculating t-1 estimates for unders/overs account | D15: Removed worksheet as t-1 estimates not needed in 6-month extension
B16: 'Est2019JSRev' | C16: Calculating t-1 estimates for unders/overs account | D16: Removed worksheet as t-1 estimates not needed in 6-month extension
A18: =A15+1 -> 6 | B18: 'Unmetered supply' | C18: Type 7 metering fees | D18: Renamed for relevant year
B19: 'Prop2021DistTar' | C19: Proposed 2021 distribution tariffs | D19: Renamed for relevant year
B20: '2021DistRevCapForm' | C20: 2021 distribution revenue cap | D20: Renamed for relevant year
B21: '2021DistTarRebalCont' | C21: 2021 distribution side constraints | D21: Renamed for relevant year
B22: 'Est2020DistRev' | C22: Estimated 2020 distribution revenue | D22: Renamed for relevant year
B23: 'Prop2021TransTar' | C23: Proposed 2021 transmission tariffs | D23: Renamed for relevant year
B24: '2021TransRevCont' | C24: 2021 transmission revenue cap | D24: Renamed for relevant year
B25: 'Prop2021JSTar' | C25: Proposed 2021 jurisdictional scheme tariffs | D25: Renamed for relevant year
B26: '2021JSRevCont' | C26: 2021 jurisdictional scheme revenue cap | D26: Renamed for relevant year
A28: =A18+1 -> 7 | B28: 'Model update'!A34:N299 | C28: Inputs for control formulae | D28: Removed all 2016–20 inputs for control formulae as not used in 6-month extension
A30: =A28+1 -> 8 | B30: 'Model update'!C5 | C30: Regulatory year | D30: Changed to 2021
A32: =A30+1 -> 9 | B32: 'Model update'!A26:F26 | C32: CPI data | D32: Expanded CPI data to include 2021
A34: =A32+1 -> 10 | B34: 'Model update'!C3 | C34: Business name | D34: Updated for relevant business name
A36: =A34+1 -> 11 | B36: 'Model update'!A34:D36 | C36: X-factor for ANS | D36: Added 2021 X-factor for use in escalating ANS price caps
A38: =A36+1 -> 12 | B38: Metering!H26:I28 | C38: Side constraint factors | D38: Removed side constraint factors not applied for 6-month extension.
B39: Metering!I25 | C39: CPI | D39: Updated CPI reference to 'Model update' sheet
A41: =A38+1 -> 13 | B41: Metering!B29:D39 | C41: Table 2 - Total annual revenue calculations | D41: Removed calculations for factors not applied in 6-month extension
C42: Table 3 - Adjusted annual revenue calculations | D42: Removed calculations for escalations not applied in 6-month extension
A44: =A41+1 -> 14 | B44: Metering!B44:F89 | C44: Table 4 - Metering service recovery arrangements | D44: Removed table as unders/overs not applied in 6-month extension
C45: Table 5 - Metering services unders/overs account | D45: Removed table as unders/overs not applied in 6-month extension
C46: Calculation of estimated metering revenue for t-1 | D46: Removed table as unders/overs not applied in 6-month extension
A48: =A44+1 -> 15 | B48: Metering!E22:E33 | C48: t-1 data for calculating revenue cap | D48: Removed t-1 data as not used for calculating revenue cap for 6-month extension
A50: =A48+1 -> 16 | B50: Metering!D26 | C50: Revenue cap | D50: Formula replaced with revenue directly from 6-month extension PTRM
A52: =A50+1 -> 17 | B52: 'Unmetered supply'!B19:H27 | C52: Revenue constraint on unmetered supply | D52: Removed demonstration of revenue constraint as not relevant for 6-month extension
A54: =A52+1 -> 18 | B54: 'Unmetered supply'!C7:E7 | C54: t-1 type 7 prices | D54: Updated for 2020 prices
B55: 'Unmetered supply'!K7:M7 | C55: t-2 type 7 quantities | D55: Updated for 2019 quantities
A57: =A54+1 -> 19 | B57: '2021DistRevCapForm'!B13:C38 | C57: Table 2 - Total annual revenue calculations | D57: Removed calculations for factors not applied in 6-month extension
C58: Table 3 - Adjusted annual revenue calculations | D58: Removed calculations for escalations not applied in 6-month extension
C59: Table 4 - B factor calculations | D59: Removed calculations for factors not applied in 6-month extension
C60: Table 5 - License fee calculations | D60: Removed calculations for factors not applied in 6-month extension
A62: =A57+1 -> 20 | B62: '2021DistRevCapForm'!B42:E77 | C62: Table 6 - DUoS recovery arrangements | D62: Removed table as unders/overs not applied in 6-month extension
C63: Table 7 - DUoS unders and overs account | D63: Removed table as unders/overs not applied in 6-month extension
A65: =A62+1 -> 21 | B65: '2021DistRevCapForm'!H6:H38 | C65: t-1 data for calculating revenue cap | D65: Removed t-1 data as not used for calculating revenue cap for 6-month extension
A67: =A65+1 -> 22 | B67: '2021DistRevCapForm'!C10 | C67: Revenue cap | D67: Formula replaced with revenue directly from 6-month extension PTRM
A69: =A67+1 -> 23 | B69: '2021DistTarRebalCont'!B9:C13 | C69: Side constraint factors | D69: Removed side constraint factors not applied for 6-month extension.
B70: '2021DistTarRebalCont'!C8 | C70: CPI | D70: Updated CPI reference to 'Model update' sheet
A72: =A69+1 -> 24 | B72: Est2020DistRev!D6:P54 | C72: t-1 prices | D72: Updated t-1 prices for approved 2020 prices
A74: =A72+1 -> 25 | B74: '2021TransRevCont'!B13:C17 | C74: Table 2 - Total DPPC related payments for year t | D74: Removed calculations for factors not applied in 6-month extension
B75: '2021TransRevCont'!C10 | C75: Revenue cap | D75: Updated formula to source total costs from Table 3
A77: =A74+1 -> 26 | B77: '2021TransRevCont'!B29:E66 | C77: Table 4 - DPPC recovery arrangements | D77: Removed table as unders/overs not applied in 6-month extension
C78: Table 5 - DPPC unders and overs account | D78: Removed table as unders/overs not applied in 6-month extension
A80: =A77+1 -> 27 | B80: '2021JSRevCont'!B13:C17 | C80: Table 2 - Total JSA related payments for year t | D80: Removed calculations for factors not applied in 6-month extension
B81: '2021JSRevCont'!C10 | C81: Revenue cap | D81: Updated formula to source total costs from Table 3
A83: =A80+1 -> 28 | B83: '2021JSRevCont'!B27:E62 | C83: Table 4 - JSA recovery arrangements | D83: Removed table as unders/overs not applied in 6-month extension
C84: Table 5 - JSA unders and overs account | D84: Removed table as unders/overs not applied in 6-month extension
A86: =A83+1 -> 29 | B86: 'Meteing exit fees' | C86: Worksheet | D86: Added worksheet for calculating ACS price caps
B87: 'Public lighting' | C87: Worksheet | D87: Added worksheet for calculating ACS price caps
B88: 'ANS' | C88: Worksheet | D88: Added worksheet for calculating ACS price caps

Sheet Formulae
B2: DUoS
B3: Figure 14.1 Revenue cap formulae
B4: (1) | H4: i=1,..,n and j=1,..,m and t=1,..,5
B5: (2) | H5: t = 1,2,…,5
B6: (3) | H6: t = 1
B7: (4) | H7: t = 2,…,5
B9: where;
C10: is the total annual revenue in year t.
D11: is the price of component 'j' of tariff 'i' in year t.
D12: is the forecast quantity of component 'j' of tariff 'i' in year t.
C13: is the adjusted annual smoothed revenue requirement for year t.
D14: is the annual adjustment f–factor scheme amount in year t. This amount will be calculated as per the method set out in the relevant f–factor scheme.
D15: is the sum of:
B16: · the final carryover amount from the application of the DMIS from the 2011–15 regulatory control period. This amount will be calculated using the method set out in the DMIS and will be deducted from/added to allowed revenue in the 2017 pricing proposal.
D17: is the sum of:
B18: · the recovery of license fee charges by the Victorian Essential Services Commission indexed by one and a half years of interest, calculated using the following method:
B20: where:
C21: are the licence fees paid by DNSP to the Victorian Essential Services Commission in the financial year ending in June of regulatory year t–1,
C22: is the approved nominal weighted average cost of capital (WACC) for the relevant regulatory year using the following method:
B25: · any under or over recovery of actual revenue collected through DUoS charges in regulatory year t–2 as calculated using the method in appendix A,
B26: · the AER approved pass through amounts (positive or negative) with respect to regulatory year t.
C27: is the annual smoothed revenue requirement as stated in the Post Tax Revenue Model (PTRM) for year t (when year t is the first year of the 2016–20 regulatory control period).[43]
C28: is the s‑factor determined in accordance with the service target performance incentive scheme (STPIS) for regulatory year t.[44]
C29: is the annual percentage change in the ABS CPI All Groups, Weighted Average of Eight Capital Cities[45] from the June quarter in year t–2 to the June quarter in year t–1, calculated using the following method :
B30: The ABS CPI All Groups, Weighted Average of Eight Capital Cities for the June quarter in regulatory year t–1
B31: divided by
B32: The ABS CPI All Groups, Weighted Average of Eight Capital Cities for the June quarter in regulatory year t–2
B33: minus one.
B34: For example, for the 2017 regulatory year, t–2 is June quarter 2015 and t–1 is June quarter 2016 and for the 2018 regulatory year, t–2 is June quarter 2016 and t–1 is June quarter 2017 and so on.
C35: is the X factor for each year of the 2016–20 regulatory control period as determined in the PTRM, and annually revised for the return on debt update in accordance with the formula specified in attachment 3—rate of return—calculated for the relevant year.
B38: [43] | C38: Our final F&A stated that if necessary an adjustment for inflation may be required to the annual smoothed revenue requirement for year t. However, as the annual smoothed revenue requirement for year t as stated in our preliminary decision PTRM is in nominal dollars there is no need to adjust it for inflation. This approach is consistent with past regulatory practice.
B39: [44] | C39: For the first two regulatory years of the 2016–20 regulatory control period, the value of St is to be adjusted to account for the change in revenue requirements between the regulatory control periods, as explained in attachment 11. In the formulas in the STPIS, the AR(t+1) is equivalent to ARt in this formula. Calculations of the S factor adjustment are to be made accordingly.
B40: [45] | C40: If the ABS does not or ceases to publish the index, then CPI will mean an index which the AER considers is the best available alternative index
B44: Figure 14.2 Side constraints [46]
C50: where each tariff class has "n" tariffs, with each up to "m" components, and where:
D51: is the proposed price for component ‘j’ of tariff 'i' for year t.
C52: is the price charged for component ‘j’ of tariff 'i' in year t–1.
D53: is the forecast quantity of component ‘j’ of tariff 'i' in year t.
C54: is the annual percentage change in the ABS CPI All Groups, Weighted Average of Eight Capital Cities[4] from the June quarter in year t–2 to the June quarter in year t–1, calculated using the following method :
C55: The ABS CPI All Groups, Weighted Average of Eight Capital Cities[47] for the June quarter in regulatory year t–1
C56: divided by
C57: The ABS CPI All Groups, Weighted Average of Eight Capital Cities for the June quarter in regulatory year t–2
C58: minus one.
B59: For example, for the 2017 regulatory year, t–2 is June quarter 2015 and t–1 is June quarter 2016 and for the 2018 regulatory year, t–2 is June quarter 2016 and t–1 is June quarter 2017 and so on.
D60: is the X factor for each year of the 2016–20 regulatory control period as determined in the PTRM, and annually revised for the return on debt update in accordance with the formula specified in attachment 3—rate of return—calculated for the relevant year. If X>0, then X will be set equal to zero for the purposes of the side constraint formula.
C61: is the s‑factor determined in accordance with the STPIS for regulatory year t.[5]
D62: is the annual percentage change from the f–factor scheme amount in year t. This amount will be calculated as per the method set out in attachment 19—f–factor scheme.
D63: is the annual percentage change from the final carryover amount from the application of the DMIS from the 2011–15 regulatory control period. This amount will be calculated using the method set out in the DMIS and will be deducted from/added to allowed revenue in the 2017 pricing proposal.
D64: is annual percentage change from the sum of:
B65: · the recovery of license fee charges by the Victorian Essential Services Commission indexed by one and a half years of interest, calculated using the following method:
B67: where:
B68: are the licence fees paid byDNSP to the Victorian Essential Services Commission in the financial year ending in June of regulatory year t–1,
C69: is the approved nominal weighted average cost of capital (WACC) for the relevant regulatory year using the following method:
B72: where the
B73: is as set out in our final decision PTRM and updated annually
B74: · the AER approved pass through amounts (positive or negative) with respect to regulatory year t.
B75: With the exception of the CPI, X factor and S factor, the percentage for each of the other factors above can be calculated by dividing the incremental revenues (as used in the total annual revenue formula) for each factor by the expected revenues for regulatory year t–1 (based on the prices in year t–1 multiplied by the forecast quantities for year t).
B77: [46] | C77: All parameters are in nominal terms unless otherwise specified.
B78: [47] | C78: If the ABS does not or ceases to publish the index, then CPI will mean an index which the AER considers is the best available alternative index.
H83: Table 14.1 | I83: Example calculation of DUoS unders and overs account ($'000, nominal)
I84: Year t–2 | J84: Year t–1 | K84: Year t
I85: (actual) | J85: (estimate) | K85: (forecast)
H86: (A) Revenue from DUoS charges | I86: 46 779 | J86: 40 269 | K86: 39 510
H87: (B) Less TAR for regulatory year = | I87: 43 039 | J87: 41 427 | K87: 44 429
H88: + Adjusted annual smoothed revenues (AARt) | I88: 40 189 | J88: 41 393 | K88: 44 393
H89: + f–factor scheme amount (It) | I89: –12 | J89: 10 | K89: 14
H90: + DMIS carryover amount (Tt) | I90: 1013 | J90: 0 | K90: 0
H91: + Annual adjustments (Bt)a = | I91: 1849 | J91: 24 | K91: 22
H92: + License fee recovery | I92: 25 | J92: 24 | K92: 22
H93: + Approved pass through amounts | I93: 1824 | J93: 0 | K93: 0
H95: (A minus B) Under/over recovery of revenue for regulatory year | I95: 3740 | J95: –1158 | K95: –4919b
H97: DUoS unders and overs account
H98: Nominal WACC (per cent) | I98: 0.05 | J98: 0.055 | K98: 0.06
H99: Opening balance | I99: 1737 | J99: 5656c | K99: 4778
H100: Interest on opening balance | I100: 87 | J100: 311 | K100: 287
H101: Under/over recovery of revenue for regulatory year | I101: 3740 | J101: –1158 | K101: –4919b
H102: Interest on under/over recovery for regulatory year | I102: 92 | J102: –31 | K102: –145
H103: Closing balance | I103: 5656 | J103: 4778 | K103: 0d
G104: Notes: | H104: (a) Bt parameter calculations in the DUoS unders and overs account exclude approved DUoS revenue under/over recovery for regulatory year.
H105: (b) Approved DUoS revenue under/over recovery for regulatory year t.
H106: (c) Opening balance is the previous year's closing balance.
H107: (d) The DNSP is expected to achieve a closing balance as close to zero as practicable in its DUoS unders and overs account in each forecast year in its annual pricing proposals in the 2016–20 regulatory control period.
H113: Table 14.2 | I113: Example calculation of designated pricing proposal charges unders and overs account ($'000, nominal)
I114: Year t–2 | J114: Year t–1 | K114: Year t
I115: (actual) | J115: (estimate) | K115: (forecast)
H116: (A) Revenue from designated pricing proposal charges (DPPC) | I116: 40 077 | J116: 34 944 | K116: 36 609
H117: (B) Less DPPC related payments for regulatory year = | I117: 34 365 | J117: 38 734 | K117: 39 200
H118: + DPPC charges to be paid to TNSP | I118: 33 672 | J118: 37 933 | K118: 38 000
H119: + Avoided TUoS/DPPC payments | I119: 572 | J119: 734 | K119: 800
H120: + Inter–distributor payments | I120: 121 | J120: 67 | K120: 400
H122: (A minus B) Under/over recovery of revenue for regulatory year | I122: 5712 | J122: –3790 | K122: –2540a
H124: DPPC unders and overs account
H125: Nominal WACC (per cent) | I125: 0.05 | J125: 0.055 | K125: 0.06
H126: Opening balance | I126: 167 | J126: 6028b | K126: 2467
H127: Interest on opening balance | I127: 8 | J127: 332 | K127: 148
H128: Under/over recovery of revenue for regulatory year | I128: 5712 | J128: –3790 | K128: –2540a
H129: Interest on under/over recovery for regulatory year | I129: 141 | J129: –103 | K129: –75
H130: Closing balance | I130: 6028 | J130: 2467 | K130: 0c
G131: Notes: | H131: (a) Approved DPPC revenue under/over recovery for regulatory year t.
H132: (b) Opening balance is the previous year's closing balance.
H133: (c)The DNSP is expected to achieve a closing balance as close to zero as practicable in its DPPC unders and overs account in each forecast year in its annual pricing proposals in the 2016–20 regulatory control period.
H139: Table 14.3 Example calculation of jurisdictional scheme amounts unders and overs account ($'000, nominal)
I140: Year t–2 | J140: Year t–1 | K140: Year t
I141: (actual) | J141: (estimate) | K141: (forecast)
H142: (A) Revenue from jurisdictional schemes | I142: 19 777 | J142: 23 121 | K142: 26 965
H143: (B) Less jurisdictional scheme payments for regulatory year = | I143: 20 272 | J143: 20 959 | K143: 28 641
H144: + Jurisdictional scheme 1 payments | I144: 14 159 | J144: 13 954 | K144: 13 961
H145: + Jurisdictional scheme 2 payments | I145: 6113 | J145: 7005 | K145: 14 680
H147: (A minus B) Under/over recovery of revenue for regulatory year | I147: –495 | J147: 2162 | K147: –1676a
H149: Jurisdictional scheme amount unders and overs account
H150: Nominal WACC (per cent) | I150: 0.05 | J150: 0.055 | K150: 0.06
H151: Opening balance | I151: –52 | J151: –562b | K151: 1628
H152: Interest on opening balance | I152: –3 | J152: –31 | K152: 98
H153: Under/over recovery of revenue for regulatory year | I153: –495 | J153: 2162 | K153: –1676a
H154: Interest on under/over recovery for regulatory year | I154: –12 | J154: 59 | K154: –50
H155: Closing balance | I155: –562 | J155: 1628 | K155: 0c
G156: Notes: | H156: (a) Approved jurisdictional scheme amounts revenue under/over recovery for regulatory year t.
H157: (b) Opening balance is the previous year's closing balance.
H158: (c) The DNSP is expected to achieve a closing balance as close to zero as practicable in its jurisdictional scheme amount unders and overs account in each forecast year in its annual pricing proposals in the 2016–20 regulatory control period.
B166: Metering
B167: Figure 16.3 | C167: Annual metering charges revenue cap formula
A168: (1) | H168: i=1,..,n and j=1,..,m and t=1,..,5
A170: (2) | H170: t = 1,2,…,5
A172: (3) | H172: t = 1,2,…,5
B175: where;
C176: is the total annual revenue for annual metering charges in year t.
E177: is the price of component 'j' of metering service 'i' in year t.
E178: is the forecast quantity of component 'j' of metering service 'i' in year t.
D179: is the annual revenue requirement for year t. When year t is the first year of the 2016–20 regulatory control period,
D180: is the annual revenue requirement in the annual metering charges Post Tax Revenue Model (PTRM) for year t.
E181: is equal to zero for all years except 2017 and is a once off adjustment to 2017 charges for the unders and overs recoveries relating to Advanced Metering Infrastructure actual revenues and actual costs incurred in 2014 and 2015.
E182: is the sum of annual adjustment factors in year t as calculated in the unders and overs account in appendix C.
D184: is the annual revenue requirement for year t–1.
C185: is the annual percentage change in the ABS CPI All Groups, Weighted Average of Eight Capital Cities[39] from the June quarter in year t–2 to the June quarter in year t–1, calculated using the following method:
B186: The ABS CPI All Groups, Weighted Average of Eight Capital Cities for the June quarter in regulatory year t–1
B187: divided by
B188: The ABS CPI All Groups, Weighted Average of Eight Capital Cities for the June quarter in regulatory year t–2
B189: minus one.
B190: For example, for the 2017 regulatory year, t–2 is June quarter 2015 and t–1 is June quarter 2016 and for the 2018 regulatory year, t–2 is June quarter 2016 and t–1 is June quarter 2017 and so on.
D191: is the X factor for each year of the 2016–20 regulatory control period as determined in the annual metering charges PTRM.
B194: [39] | C194: If the ABS does not or ceases to publish the index, then CPI will mean an index which the AER considers is the best available alternative index
B199: Figure 16.4 Side constraints
B201: where:
E202: is the price of annual metering charges service 'i' in year t.
D203: is the price of annual metering charges service 'i' in year t–1.
C204: is the annual percentage change in the ABS CPI All Groups, Weighted Average of Eight Capital Cities from the June quarter in year t–2 to the June quarter in year t–1, calculated using the following method:
B205: The ABS CPI All Groups, Weighted Average of Eight Capital Cities[40] for the June quarter in regulatory year t–1
B206: divided by
B207: The ABS CPI All Groups, Weighted Average of Eight Capital Cities for the June quarter in regulatory year t–2
B208: minus one.
B209: For example, for the 2017 regulatory year, t–2 is June quarter 2015 and t–1 is June quarter 2016 and for the 2018 regulatory year, t–2 is June quarter 2016 and t–1 is June quarter 2017 and so on.
D210: is the X factor for each year of the 2016–20 regulatory control period as determined in the annual metering charges PTRM.
E211: is the annual percentage change for the unders and overs recoveries relating to Advanced Metering Infrastructure actual revenues and actual costs incurred in 2014 and 2015. It is equal to zero for all years except 2017 and is a once off adjustment to 2017 charges.
E212: is the annual percentage change from the sum of annual adjustment factors in year t as calculated in the unders and overs account in appendix C.
B213: With the exception of the CPI and the X factor, the percentage for each of the other factors above can be calculated by dividing the incremental revenues (as used in the total annual revenue formula) for each factor by the expected revenues for regulatory year t–1 (based on the prices in year t–1 multiplied by the forecast quantities for year t).
B215: [40] | C215: If the ABS does not or ceases to publish the index, then CPI will mean an index which the AER considers is the best available alternative index.
H220: Table 16.xx | I220: Example calculation of annual metering charges unders and overs account ($'000, nominal)
I221: Year t–2 | J221: Year t–1 | K221: Year t
I222: (actual) | J222: (estimate) | K222: (forecast)
H223: (A) Revenue from annual metering charges | I223: 8 449 | J223: 7 389 | K223: 6 460
H224: (B) Less TARM for regulatory year = | I224: 7 366 | J224: 7 422 | K224: 7 573
H225: + Annual revenue requirement (ARt) | I225: 7 349 | J225: 7 412 | K225: 7 559
H226: + T factor (Tt) – true‑ups relating to the AMI–Order in Council | I226: 17 | J226: 10 | K226: 14
H228: (A minus B) Under/over recovery of revenue for regulatory year | I228: 1 083 | J228: –33 | K228: –1 113a
H230: Annual metering charges unders and overs account
H231: Nominal WACC (per cent) | I231: 0.05 | J231: 0.055 | K231: 0.06
H232: Opening balance | I232: –50 | J232: 1 057b | K232: 1 081
H233: Interest on opening balance | I233: –3 | J233: 58 | K233: 65
H234: Under/over recovery of revenue for regulatory year | I234: 1 083 | J234: –33 | K234: –1 113b
H235: Interest on under/over recovery for regulatory year | I235: 27 | J235: –1 | K235: –33
H236: Closing balance | I236: 1 057 | J236: 1 081 | K236: 0c
G237: Notes: | H237: (a) Approved annual metering charges revenue under/over recovery for regulatory year t. This is the Bt parameter in the annual metering charges revenue cap formula.
H238: (b) Opening balance is the previous year's closing balance.
H239: (c) The DNSP is expected to achieve a closing balance as close to zero as practicable in its annual metering charges unders and overs account in each forecast year in its annual pricing proposals in the 2016–20 regulatory control period.

Sheet 6 month formulae
H4: The revenue cap to be applies to standard control services will be as set in the amended PTRM, with no other factors applied.*
H10: The revenue cap to be applied to revenue-capped type 5 and 6 (inc. smart metering) services will be as set in the amended metering PTRM, with no other factors applied.
H16: The side constraint mechanism to apply to standard control services and metering services will be just CPI and the 2% allowance as there is no X-factor to apply, and no other adjustments need to be discounted from the permissable percentage.*
I20: NB - no adjustment to be made to make 12 month and 6 month period comparable
H25: The price cap to be applied to type 7 metering services will be escalated for CPI
H29: The price cap to apply to ancillary network services will be escalated for CPI and x-factor.
H30: X-factor to apply will reflect updated labour escalation forecast for the extended period in line with the calculation of the 2021–26 draft decision, being half of the forecast yearly change in the State utilities sector real wages for Vic in 21/22.
H33: The price cap to apply to metering exit fees and public lighting services will not be escalated.
H39: CPI definition to remain as per the 2015–20 determination.

Sheet Model update
A3: Tariff Approval Template for | C3: United Energy
A5: calendar year commencing | C5: 2021
A7: t | B7: = | C7: =C5 -> 2021
A8: t-1 | B8: = | C8: =C7-1 -> 2020
A9: t-2 | B9: = | C9: 2019
A10: t-3 | B10: = | C10: 2018
A11: t-4 | B11: = | C11: 2017
A13: Please fill in yellow highlighted cells where appropriate
A15: CPI | B15: The ABS changed the index reference base in September 2012 from 1989-90 to 2011-12.
A16: CPI Index Sept 2011 | C16: 99.8
A17: CPI Index Sept 2012 | C17: 101.8 | E17: CPI 2013 | F17: =C17/C16-1 -> 0.02004008016
A18: CPI Index Sept 2013 | C18: 104 | E18: CPI 2014 | F18: =C18/C17-1 -> 0.02161100196
A19: CPI Index Sept 2014 | C19: 106.4 | E19: CPI 2015 | F19: =C19/C18-1 -> 0.02307692308
A20: CPI Index Sept 2015 | C20: 108 | E20: CPI 2016 | F20: =C20/C19-1 -> 0.01503759398
A21: CPI Index June 2015 | C21: 107.5
A22: CPI Index June 2016 | C22: 108.6 | E22: CPI 2017 | F22: =IF(OR(C21="",C22=""),0,C22/C21-1) -> 0.01023255814
A23: CPI Index June 2017 | C23: 110.7 | E23: CPI 2018 | F23: =IF(OR(C22="",C23=""),0,C23/C22-1) -> 0.01933701657
A24: CPI Index June 2018 | C24: 113 | E24: CPI 2019 | F24: 0.02077687444
A25: CPI Index June 2019 | C25: 114.8 | E25: CPI 2020 | F25: 0.01592920354
A26: CPI Index June 2020 | C26: 114.4 | E26: CPI 2021 | F26: =IF(OR(C25="",C26=""),0,C26/C25-1) -> -0.003484320557
A28: ="CPI " &$C$9 -> CPI 2019 | C28: =VLOOKUP(A28,E$17:F$25,2,FALSE) -> 0.02077687444 | D28: (t-2)
A29: ="CPI " &$C$8 -> CPI 2020 | C29: =VLOOKUP(A29,E$17:F$25,2,FALSE) -> 0.01592920354 | D29: (t-1)
A30: ="CPI " &$C$5 -> CPI 2021 | C30: =VLOOKUP(A30,E$17:F$26,2,FALSE) -> -0.003484320557 | D30: (t)
A35: 2021 X-factor for ANS | C35: -0.001192676717

Sheet Metering
B1: ="Tariff Approval - "&'Model update'!C3 -> Tariff Approval - United Energy
B3: ="PROPOSED "&'Model update'!$C$5&" METERING TARIFFS AND REVENUE" -> PROPOSED 2021 METERING TARIFFS AND REVENUE
D5: ="Proposed Metering Tariffs P(t) for " &'Model update'!$C$5 -> Proposed Metering Tariffs P(t) for 2021 | E5: ="Current Metering Tariffs P(t-1) for" &'Model update'!$C$8 -> Current Metering Tariffs P(t-1) for2020 | F5: ="Forecast Quantities (Qt) for "&'Model update'!$C$5 -> Forecast Quantities (Qt) for 2021 | H5: ="Forecast Revenue (Pt "&'Model update'!$C$5&")*(Qt " &'Model update'!$C$5&")" -> Forecast Revenue (Pt 2021)*(Qt 2021) | I5: ="Revenue (Pt-1 "&'Model update'!$C$8&")*(Qt " &'Model update'!$C$5&")" -> Revenue (Pt-1 2020)*(Qt 2021) | K5: Movement | L5: Side Constraint
B6: Proposed tariff | C6: Existing tariff | D6: PropTar $/Cust/year | E6: ExistTar $/Cust/year | F6: FcastVol Cust # | H6: PropRev Fixed | I6: ExistRev Fixed
B8: single phase single element meter | C8: single phase single element meter | D8: 24.41216344 | E8: 54.23 | F8: 545454 | H8: =D8*F8 -> 13315712.2 | I8: =E8*F8 -> 29579970.42 | K8: =IFERROR(H8/I8,"") -> 0.4501597536 | L8: =IF(B8="","",IF(K8<$I$30,"COMPLIANT","BREACHED")) -> COMPLIANT
B9: single phase single element meter with contactor | C9: single phase single element meter with contactor | D9: 24.41216344 | E9: 54.23 | F9: 55062 | H9: 1344182.543 | I9: 2986012.26 | K9: =IFERROR(H9/I9,"") -> 0.4501597536 | L9: COMPLIANT
B10: three phase direct connected meter | C10: three phase direct connected meter | D10: 27.53177053 | E10: 61.16 | F10: 102706 | H10: 2827678.024 | I10: 6281498.96 | K10: 0.4501597536 | L10: COMPLIANT
B11: three phase Current transformer connected meter | C11: three phase Current transformer connected meter | D11: 29.18835842 | E11: 64.84 | F11: 3188 | H11: 93052.48665 | I11: 206709.92 | K11: 0.4501597536 | L11: COMPLIANT
H12: 0 | I12: 0
H13: 0 | I13: 0
H14: 0 | I14: 0
H15: 0 | I15: 0
H16: 0 | I16: 0
H17: =SUM(H7:H16) -> 17580625.25 | I17: =SUM(I7:I16) -> 39054191.56
B22: Year (t) | D22: ='Model update'!C5 -> 2021
B24: Table 1- Compliance with AER Final Determination Total Metering Annual Revenue | H24: Metering tariff rebalancing control
B25: Revenue from Metering charges for year t | D25: =H17 -> 17580625.25 | H25: ="CPI "&'Model update'!$C$5 -> CPI 2021 | I25: ='Model update'!C30 -> -0.003484320557
B26: Total Annual Metering Revenue for year t | D26: 17580625.25
D27: =IF(D25="","",IF(D26>=D25,"METERING REVENUE CAP FORMULA COMPLIANT","METERING REVENUE CAP FORMULA BREACHED")) -> METERING REVENUE CAP FORMULA COMPLIANT
I30: =(1+I25)*(1-I26)*(1+0.02)+SUM(I27:I28) -> 1.016445993

Sheet Unmetered supply
B1: ="Tariff Approval - " &'Model update'!C3 -> Tariff Approval - United Energy
B3: ="PROPOSED "&'Model update'!C5&" UNMETERED SUPPLY TARIFF" -> PROPOSED 2021 UNMETERED SUPPLY TARIFF
C4: ="P t-1 ("&'Model update'!$C$8&")" -> P t-1 (2020) | G4: ="Pt ("&'Model update'!$C$7&")" -> Pt (2021) | K4: ="Qt-2 ("&'Model update'!$C$9&")" -> Qt-2 (2019) | O4: P t-1 * Qt-2 | T4: Pt * Qt-2
C5: ($) per NMI | D5: ($) per meter | E5: ($) per light | G5: ($) per NMI | H5: ($) per meter | I5: ($) per light | K5: NMIs | L5: Meters | M5: Lights | O5: $ Comp1 | P5: $ Comp2 | Q5: $ Comp3 | R5: Total $ | T5: NMIs | U5: Meters | V5: Lights
B6: Proposed tariff | C6: ExistTarComp1 | D6: ExistTarComp2 | E6: ExistTarComp3 | G6: PropTarComp1 | H6: PropTarComp2 | I6: PropTarComp3 | K6: ActVolComp1 | L6: ActVolComp2 | M6: ActVolComp3 | O6: $Comp1 | P6: ExistRevComp2 | Q6: ExistRevComp3 | R6: Exist Rev Total | T6: $PropRevComp1 | U6: $PropRevComp2 | V6: $ PropRevComp3 | W6: Total $
B7: metering data services - unmetered supplies | E7: 1.395 | G7: =ROUNDDOWN(C7*(1+$C$14),1) -> 0 | I7: =ROUNDDOWN(E7*(1+$C$14),4) -> 1.3901 | L7: 0 | M7: 121620 | O7: =IF($B7="","",C7*K7) -> 0 | P7: =IF($B7="","",D7*L7) -> 0 | Q7: =IF($B7="","",E7*M7) -> 169659.9 | R7: =SUM(O7:Q7) -> 169659.9 | T7: =IF($B7="","",G7*K7) -> 0 | U7: =IF($B7="","",H7*L7) -> 0 | V7: =IF($B7="","",I7*M7) -> 169063.962 | W7: =SUM(T7:V7) -> 169063.962
B10: UNMETERED SUPPLY TARIFF CONTROL
B12: CPI
B14: ="CPI "&'Model update'!C5 -> CPI 2021 | C14: ='Model update'!C30 -> -0.003484320557

Sheet Metering exit fees
B1: ="Tariff Approval - "&'Model update'!C3 -> Tariff Approval - United Energy
B3: Proposed metering exit fees
B5: Metering type | C5: 2020 price cap | D5: 2021 price cap | E5: Proposed 2021 price
B6: single phase single element meter | C6: 341.74 | D6: =IF(C6="","",C6) -> 341.74 | E6: =D6 -> 341.74 | F6: =IF(E6="","",IF(E6<=D6,"COMPLIANT","BREACHED")) -> COMPLIANT
B7: single phase single element meter with contactor | C7: 351.67 | D7: =IF(C7="","",C7) -> 351.67 | E7: =D7 -> 351.67 | F7: =IF(E7="","",IF(E7<=D7,"COMPLIANT","BREACHED")) -> COMPLIANT
B8: three phase direct connected meter | C8: 387.89 | D8: 387.89 | E8: 387.89 | F8: COMPLIANT
B9: three phase Current transformer connected meter | C9: 505.76 | D9: 505.76 | E9: 505.76 | F9: COMPLIANT

Sheet Public lighting
B1: ="Tariff Approval - "&'Model update'!C3 -> Tariff Approval - United Energy
B3: Proposed public lighting prices
B5: Public lighting tariff | C5: 2020 price cap | D5: 2021 price cap | E5: Proposed 2021 price
B6: Existing Lights | D6: =IF(C6="","",C6/2) ->  | E6: =D6 ->  | F6: =IF(E6="","",IF(E6<=D6,"COMPLIANT","BREACHED")) -> 
B7: Mercury Vapour 80 watt | C7: 62.70805572 | D7: =IF(C7="","",C7/2) -> 31.35402786 | E7: =D7 -> 31.35402786 | F7: =IF(E7="","",IF(E7<=D7,"COMPLIANT","BREACHED")) -> COMPLIANT
B8: Sodium High Pressure 150 watt | C8: 81.21964564 | D8: 40.60982282 | E8: 40.60982282 | F8: COMPLIANT
B9: Sodium High Pressure 250 watt | C9: 83.05719418 | D9: 41.52859709 | E9: 41.52859709 | F9: COMPLIANT
B10: Fluorescent 2x20 watt | C10: 80.89339188 | D10: 40.44669594 | E10: 40.44669594 | F10: COMPLIANT
B11: Fluorescent 3x20 watt | C11: 80.89339188 | D11: 40.44669594 | E11: 40.44669594 | F11: COMPLIANT
B12: Mercury Vapour 50 watt | C12: 92.80792247 | D12: 46.40396123 | E12: 46.40396123 | F12: COMPLIANT
B13: Mercury Vapour 125 watt | C13: 92.80792247 | D13: 46.40396123 | E13: 46.40396123 | F13: COMPLIANT
B14: Mercury Vapour 250 watt | C14: 75.5820467 | D14: 37.79102335 | E14: 37.79102335 | F14: COMPLIANT
B15: Mercury Vapour 400 watt | C15: 104.6520647 | D15: 52.32603233 | E15: 52.32603233 | F15: COMPLIANT
B16: Mercury Vapour 700 watt | C16: 104.6520647 | D16: 52.32603233 | E16: 52.32603233 | F16: COMPLIANT
B17: Sodium High Pressure 70 watt | C17: 137.330642 | D17: 68.66532101 | E17: 68.66532101 | F17: COMPLIANT
B18: Sodium High Pressure 100 watt | C18: 89.3416102 | D18: 44.6708051 | E18: 44.6708051 | F18: COMPLIANT
B19: Sodium High Pressure 400 watt | C19: 104.6520647 | D19: 52.32603233 | E19: 52.32603233 | F19: COMPLIANT
B20: Metal Halide 70 watt | C20: 109.6465216 | D20: 54.8232608 | E20: 54.8232608 | F20: COMPLIANT
B21: Metal Halide 100 watt | C21: 109.6465216 | D21: 54.8232608 | E21: 54.8232608 | F21: COMPLIANT
B22: Metal Halide 150 watt | C22: 109.6465216 | D22: 54.8232608 | E22: 54.8232608 | F22: COMPLIANT
B23: Metal Halide 250 watt | C23: 112.1272121 | D23: 56.06360607 | E23: 56.06360607 | F23: COMPLIANT
B24: Metal Halide 400 watt | C24: 112.1272121 | D24: 56.06360607 | E24: 56.06360607 | F24: COMPLIANT
B26: Energy Efficient Lights
B27: T5 2X14W | C27: 30.59071008 | D27: 15.29535504 | E27: 15.29535504 | F27: COMPLIANT
B28: Twin 24w Fluorescent | C28: 30.59071008 | D28: 15.29535504 | E28: 15.29535504 | F28: COMPLIANT
B29: 32W Compact Fluorescent | C29: 30.59071008 | D29: 15.29535504 | E29: 15.29535504 | F29: COMPLIANT
B30: 42w Compact Fluorescent | C30: 30.59071008 | D30: 15.29535504 | E30: 15.29535504 | F30: COMPLIANT

Sheet ANS
B1: ="Tariff Approval - "&'Model update'!C3 -> Tariff Approval - United Energy
B3: Proposed ancillary network service prices
B5: Ancillary network service | D5: 2020 price cap | E5: 2021 price cap | F5: Proposed 2021 price | J5: Escalators
B6: Field Officer Visits – Existing Premises | E6: =IF(D6="","",D6*(1+$K$6)*(1-$K$7)) ->  | F6: =E6 ->  | G6: =IF(F6="","",IF(F6<=E6,"COMPLIANT","BREACHED")) ->  | J6: CPI | K6: ='Model update'!C30 -> -0.003484320557
B7: Special read (basic meter) | C7: SPRDB | D7: 23.27 | E7: =IF(D7="","",D7*(1+$K$6)*(1-$K$7)) -> 23.21657675 | F7: =E7 -> 23.21657675 | G7: =IF(F7="","",IF(F7<=E7,"COMPLIANT","BREACHED")) -> COMPLIANT | J7: X-factor | K7: ='Model update'!C35 -> -0.001192676717
B8: Special read (interval meter) | C8: SPRDI | D8: 23.27 | E8: 23.21657675 | F8: 23.21657675 | G8: COMPLIANT
B9: Re-energise (fuse insert)—BH (unit rate) | C9: RECFIB | D9: 49.56 | E9: 49.44622018 | F9: 49.44622018 | G9: COMPLIANT
B10: De-energise (fuse removal)—BH (unit rate) | C10: DEENBH | D10: 49.56 | E10: 49.44622018 | F10: 49.44622018 | G10: COMPLIANT
B11: Express move in re-energise (fuse insert) AH (unit rate) | C11: EXREAH | D11: 138.3 | E11: 137.9824909 | F11: 137.9824909 | G11: COMPLIANT
B12: Re-energise (fuse insert)—AH (unit rate) | C12: RECFAG | D12: 87.94 | E12: 87.73810739 | F12: 87.73810739 | G12: COMPLIANT
B13: De-energise (fuse removal)—AH (unit rate) | C13: DEENAH | F13: =E13 ->  | G13: =IF(F13="","",IF(F13<=E13,"COMPLIANT","BREACHED")) -> 
B14: Express move in re-energise (fuse insert) BH (unit rate) | C14: SPRER | D14: 74.71 | E14: 74.53848082 | F14: 74.53848082 | G14: COMPLIANT
B15: De-energisation point of attachment (pole/pit/premise) | C15: DEENPS | D15: 383.07 | E15: 382.1905481 | F15: 382.1905481 | G15: COMPLIANT
B17: Temporary Supplies (exc inspection) – Coincident Disconnection
B18: Standard single phase—BH (unit rate) | C18: TSCSPB | D18: 500.51 | E18: 499.3609294 | F18: 499.3609294 | G18: COMPLIANT
B19: Multi phase to 100A—BH (unit rate) | C19: TSCMPB | D19: 500.3 | E19: 499.1514115 | F19: 499.1514115 | G19: COMPLIANT
B20: Standard single phase—AH (unit rate) | C20: TSCSPA | D20: 764.38 | E20: 762.6251368 | F20: 762.6251368 | G20: COMPLIANT
B21: Multi phase to 100A—AH (unit rate) | C21: TSCMPA | D21: 764.17 | E21: 762.4156189 | F21: 762.4156189 | G21: COMPLIANT
B23: Temporary Supplies (exc inspection) Where United Energy is not the Responsible Person
B24: Single Phase Servicing and Energisation only BH | C24: TSSNRD | D24: 464.47 | E24: 463.40367 | F24: 463.40367 | G24: COMPLIANT
B25: Multi Phase Servicing and Energisation only BH | C25: TSMNRD | D25: 464.47 | E25: 463.40367 | F25: 463.40367 | G25: COMPLIANT
B26: Single Phase Servicing and Energisation only AH | C26: TSSNRA | D26: 764.38 | E26: 762.6251368 | F26: 762.6251368 | G26: COMPLIANT
B27: Multi Phase Servicing and Energisation only AH | C27: TSMNRA | D27: 764.38 | E27: 762.6251368 | F27: 762.6251368 | G27: COMPLIANT
B29: New Connection where United Energy is the Responsible Person
B30: Single phase single element—BH (unit rate) | C30: SPHCBG | D30: 500.51 | E30: 499.3609294 | F30: 499.3609294 | G30: COMPLIANT
B31: Single phase two element (off-peak)—BH (unit rate) | C31: SPH2EB | D31: 500.51 | E31: 499.3609294 | F31: 499.3609294 | G31: COMPLIANT
B32: Three phase direct connected—BH (unit rate) | C32: MPHCBG | D32: 500.3 | E32: 499.1514115 | F32: 499.1514115 | G32: COMPLIANT
B33: Single phase single element—AH (unit rate) | C33: SPHCAG | D33: 764.38 | E33: 762.6251368 | F33: 762.6251368 | G33: COMPLIANT
B34: Single phase two element (off-peak)—AH (unit rate) | C34: SPH2EA | D34: 764.38 | E34: 762.6251368 | F34: 762.6251368 | G34: COMPLIANT
B35: Three phase direct connected—AH (unit rate) | C35: MPHCAG | D35: 764.17 | E35: 762.4156189 | F35: 762.4156189 | G35: COMPLIANT
B37: New Connections – where United Energy is Not the Responsible Person
B38: Single phase single element—BH (unit rate) | C38: SPNRPB | D38: 464.47 | E38: 463.40367 | F38: 463.40367 | G38: COMPLIANT
B39: Single phase two element (off-peak)—BH (unit rate) | C39: SP2NRB | D39: 464.47 | E39: 463.40367 | F39: 463.40367 | G39: COMPLIANT
B40: Three phase direct connected—BH (unit rate) | C40: MPNRPB | D40: 464.47 | E40: 463.40367 | F40: 463.40367 | G40: COMPLIANT
B41: Single phase single element—AH (unit rate) | C41: SPNRPA | D41: 764.38 | E41: 762.6251368 | F41: 762.6251368 | G41: COMPLIANT
B42: Single phase two element (off-peak)—AH (unit rate) | C42: SP2NRA | D42: 764.38 | E42: 762.6251368 | F42: 762.6251368 | G42: COMPLIANT
B43: Three phase direct connected—AH (unit rate) | C43: MPNRPA | D43: 764.38 | E43: 762.6251368 | F43: 762.6251368 | G43: COMPLIANT
B45: Service Vehicle Visits (without inspection)
B46: Service truck – first 30 minutes—BH (unit rate) | C46: TVMINB | D46: 355.59 | E46: 354.7736367 | F46: 354.7736367 | G46: COMPLIANT
B47: Each additional 15 minutes—BH (unit rate) | C47: TVADDB | D47: 73.53 | E47: 73.36118986 | F47: 73.36118986 | G47: COMPLIANT
B48: Wasted service truck visit—BH (unit rate) | C48: WTVBH | D48: 308.43 | E48: 307.7219066 | F48: 307.7219066 | G48: COMPLIANT
B49: Service truck – first 30 minutes (2 hr min)—AH (unit rate) | C49: TVMINA | D49: 786.98 | E49: 785.1732517 | F49: 785.1732517 | G49: COMPLIANT
B50: Each additional 15 minutes—AH (unit rate) | C50: TVADDA | D50: 101.97 | E50: 101.7358973 | F50: 101.7358973 | G50: COMPLIANT
B51: Wasted service truck visit—AH (unit rate) | C51: WTVAH | D51: 786.98 | E51: 785.1732517 | F51: 785.1732517 | G51: COMPLIANT
B52: Truck Visit + 1x additional 15 mins BH | C52: TVAD1B | D52: 429.13 | E52: 428.1448036 | F52: 428.1448036 | G52: COMPLIANT
B53: Truck Visit + 2x additional 15 mins BH | C53: TVAD2B | D53: 502.66 | E53: 501.5059934 | F53: 501.5059934 | G53: COMPLIANT
B54: Truck Visit + 3x additional 15 mins BH | C54: TVAD3B | D54: 576.18 | E54: 574.8572062 | F54: 574.8572062 | G54: COMPLIANT
B55: Truck Visit + 4x additional 15 mins BH | C55: TVAD4B | D55: 649.71 | E55: 648.2183961 | F55: 648.2183961 | G55: COMPLIANT
B56: Truck Visit + 5x additional 15 mins BH | C56: TVAD5B | D56: 723.24 | E56: 721.579586 | F56: 721.579586 | G56: COMPLIANT
B57: Truck Visit + 6x additional 15 mins BH | C57: TVAD6B | D57: 796.75 | E57: 794.9208217 | F57: 794.9208217 | G57: COMPLIANT
B58: Truck Visit + 1x additional 15 mins AH | C58: TVAD1A | D58: 888.95 | E58: 886.909149 | F58: 886.909149 | G58: COMPLIANT
B59: Truck Visit + 2x additional 15 mins AH | C59: TVAD2A | D59: 990.94 | E59: 988.6650004 | F59: 988.6650004 | G59: COMPLIANT
B60: Truck Visit + 3x additional 15 mins AH | C60: TVAD3A | D60: 1092.92 | E60: 1090.410875 | F60: 1090.410875 | G60: COMPLIANT
B61: Truck Visit + 4x additional 15 mins AH | C61: TVAD4A | D61: 1194.88 | E61: 1192.136795 | F61: 1192.136795 | G61: COMPLIANT
B62: Truck Visit + 5x additional 15 mins AH | C62: TVAD5A | D62: 1296.85 | E62: 1293.872692 | F62: 1293.872692 | G62: COMPLIANT
B63: Truck Visit + 6x additional 15 mins AH | C63: TVAD6A | D63: 1398.84 | E63: 1395.628544 | F63: 1395.628544 | G63: COMPLIANT
E64: =IF(D64="","",D64*(1+$K$6)*(1-$K$7)) ->  | F64: =E64 ->  | G64: =IF(F64="","",IF(F64<=E64,"COMPLIANT","BREACHED")) -> 
B65: Meter Equipment Test
B66: Single phase | C66: MTSPFM | D66: 277.05 | E66: 276.4139487 | F66: 276.4139487 | G66: COMPLIANT
B67: Single phase (each additional meter) | C67: MTSPAD | D67: 132.94 | E67: 132.6347964 | F67: 132.6347964 | G67: COMPLIANT
B68: Multi phase | C68: MTMPFM | D68: 276.71 | E68: 276.0747293 | F68: 276.0747293 | G68: COMPLIANT
B69: Multi phase (each additional meter) | C69: MTMPAM | D69: 132.94 | E69: 132.6347964 | F69: 132.6347964 | G69: COMPLIANT
B71: Remote AMI Services
B72: Remote Meter Configuration | C72: MECFRM | D72: 66.08 | E72: 65.92829357 | F72: 65.92829357 | G72: COMPLIANT
B73: Remote Special Meter Reading | C73: SPRDRM | D73: 0.89 | E73: 0.8879567384 | F73: 0.8879567384 | G73: COMPLIANT
B74: Remote Re-Energise | C74: REENRM | D74: 11.16 | E74: 11.13437888 | F74: 11.13437888 | G74: COMPLIANT
B75: Remote de-Energise | C75: DEENRM | D75: 11.16 | E75: 11.13437888 | F75: 11.13437888 | G75: COMPLIANT
B77: QUOTED SERVICES
B78: Field worker - one person - BH | D78: 135.8 | E78: 135.4882304 | F78: 135.4882304 | G78: COMPLIANT
B79: Field worker - one person - AH | D79: 192.86 | E79: 192.4172321 | F79: 192.4172321 | G79: COMPLIANT
B80: Field worker - one person plus vehicle - BH | D80: 159.19 | E80: 158.8245317 | F80: 158.8245317 | G80: COMPLIANT
B81: Field worker - one person plus vehicle - AH | D81: 216.25 | E81: 215.7535334 | F81: 215.7535334 | G81: COMPLIANT
B82: Administration - BH | D82: 104.92 | E82: 104.6791247 | F82: 104.6791247 | G82: COMPLIANT
B83: Senior engineer - BH | D83: 199.99 | E83: 199.5308631 | F83: 199.5308631 | G83: COMPLIANT
B84: Project planner - BH | D84: 199.99 | E84: 199.5308631 | F84: 199.5308631 | G84: COMPLIANT

Sheet Prop2021DistTar
B1: ="Tariff Approval - "&'Model update'!$C$3 -> Tariff Approval - United Energy | C1: ="Prop"&'Model update'!$C$5&"DistTar" -> Prop2021DistTar
B3: ="PROPOSED "&'Model update'!$C$5&" DISTRIBUTION TARIFFS" -> PROPOSED 2021 DISTRIBUTION TARIFFS
D4: ="Proposed Distribution Tariffs (Pt) for "&'Model update'!$C$5 -> Proposed Distribution Tariffs (Pt) for 2021 | R4: ="Current Distribution Tariffs (Pt-1) for "&'Model update'!$C$8 -> Current Distribution Tariffs (Pt-1) for 2020 | AF4: ="Forecast Quantities (Qt) for "&'Model update'!$C$5 -> Forecast Quantities (Qt) for 2021 | AT4: ="Forecast Revenue (Pt "&'Model update'!$C$5&")*(Qt " &'Model update'!$C$5&")" -> Forecast Revenue (Pt 2021)*(Qt 2021) | BI4: ="Revenue (Pt-1 "&'Model update'!$C$8&")*(Qt " &'Model update'!$C$5&")" -> Revenue (Pt-1 2020)*(Qt 2021)
B5: Proposed tariff | C5: Existing tariff | D5: PropTar Fixed | E5: PropTar PkBlk1 | F5: PropTar PkBlk2 | G5: PropTar PkBlk3 | H5: PropTar PkBlk4 | I5: PropTar OPkBlk1 | J5: PropTar OPkBlk2 | K5: PropTar OPkBlk3 | L5: PropTar OPkBlk4 | M5: PropTar DemBlk1 | N5: PropTar DemBlk2 | O5: PropTar DemBlk3 | P5: PropTar DemBlk4 | R5: ExistTar Fixed | S5: ExistTar PkBlk1 | T5: ExistTar PkBlk2 | U5: ExistTar PkBlk3 | V5: ExistTar PkBlk4 | W5: ExistTar OPkBlk1 | X5: ExistTar OPkBlk2 | Y5: ExistTar OPkBlk3 | Z5: ExistTar OPkBlk4 | AA5: ExistTar DemBlk1 | AB5: ExistTar DemBlk2 | AC5: ExistTar DemBlk3 | AD5: ExistTar DemBlk4 | AF5: FcastVol Fixed | AG5: FcastVol PkBlk1 | AH5: FcastVol PkBlk2 | AI5: FcastVol PkBlk3 | AJ5: FcastVol PkBlk4 | AK5: FcastVol OPkBlk1 | AL5: FcastVol OPkBlk2 | AM5: FcastVol OPkBlk3 | AN5: FcastVol OPkBlk4 | AO5: FcastVol DemBlk1 | AP5: FcastVol DemBlk2 | AQ5: FcastVol DemBlk3 | AR5: FcastVol DemBlk4 | AT5: PropRev Fixed | AU5: PropRev PkBlk1 | AV5: PropRev PkBlk2 | AW5: PropRev PkBlk3 | AX5: PropRev PkBlk4 | AY5: PropRev OPkBlk1 | AZ5: PropRev OPkBlk2 | BA5: PropRev OPkBlk3 | BB5: PropRev OPkBlk4 | BC5: PropRev DemBlk1 | BD5: PropRev DemBlk2 | BE5: PropRev DemBlk3 | BF5: PropRev DemBlk4 | BG5: PropRev Total | BI5: ExistRev Fixed | BJ5: ExistRev PkBlk1 | BK5: ExistRev PkBlk2 | BL5: ExistRev PkBlk3 | BM5: ExistRev PkBlk4 | BN5: ExistRev OPkBlk1 | BO5: ExistRev OPkBlk2 | BP5: ExistRev OPkBlk3 | BQ5: ExistRev OPkBlk4 | BR5: ExistRev DemBlk1 | BS5: ExistRev DemBlk2 | BT5: ExistRev DemBlk3 | BU5: ExistRev DemBlk4 | BV5: ExistRev Total
B6: Low voltage small 1 rate | C6: Low voltage small 1 rate | D6: 10.95 | E6: 5.54 | F6: 0 | G6: 0 | H6: 5.54 | I6: 0 | J6: 0 | K6: 0 | L6: 0 | M6: 0 | N6: 0 | O6: 0 | P6: 0 | R6: =Est2020DistRev!D6 -> 7.85 | S6: =Est2020DistRev!E6 -> 7.44 | T6: =Est2020DistRev!F6 -> 0 | U6: =Est2020DistRev!G6 -> 0 | V6: =Est2020DistRev!H6 -> 7.44 | W6: =Est2020DistRev!I6 -> 0 | X6: =Est2020DistRev!J6 -> 0 | Y6: =Est2020DistRev!K6 -> 0 | Z6: =Est2020DistRev!L6 -> 0 | AA6: =Est2020DistRev!M6 -> 0 | AB6: =Est2020DistRev!N6 -> 0 | AC6: =Est2020DistRev!O6 -> 0 | AD6: =Est2020DistRev!P6 -> 0 | AF6: 105535115.1 | AG6: 575188203.9 | AJ6: 643558421 | AM6: 0 | AO6: 0 | AP6: 0 | AT6: =D6/100*AF6 -> 11556095.1 | AU6: =E6/100*AG6 -> 31865426.49 | AV6: 0 | AW6: 0 | AX6: 35653136.52 | AY6: 0 | AZ6: 0 | BA6: 0 | BB6: 0 | BC6: =M6/100*AO6 -> 0 | BD6: =N6/100*AP6 -> 0 | BE6: 0 | BF6: 0 | BG6: =SUM(AT6:BF6) -> 79074658.12 | BI6: =R6/100*AF6 -> 8284506.535 | BJ6: =S6/100*AG6 -> 42794002.37 | BK6: 0 | BL6: 0 | BM6: 47880746.52 | BN6: 0 | BO6: 0 | BP6: 0 | BQ6: 0 | BR6: =AA6/100*AO6 -> 0 | BS6: =AB6/100*AP6 -> 0 | BT6: 0 | BU6: 0 | BV6: =SUM(BI6:BU6) -> 98959255.42
B7: Winter economy tariff | C7: Winter economy tariff | D7: 10.95 | E7: 5.57 | F7: 0 | G7: 0 | H7: 5.57 | I7: 1.86 | J7: 0 | K7: 0 | L7: 0 | M7: 0 | N7: 0 | O7: 0 | P7: 0 | R7: =Est2020DistRev!D7 -> 10.49 | S7: =Est2020DistRev!E7 -> 7.16 | T7: =Est2020DistRev!F7 -> 0 | U7: =Est2020DistRev!G7 -> 0 | V7: =Est2020DistRev!H7 -> 7.16 | W7: =Est2020DistRev!I7 -> 2.39 | X7: =Est2020DistRev!J7 -> 0 | Y7: =Est2020DistRev!K7 -> 0 | Z7: =Est2020DistRev!L7 -> 0 | AA7: =Est2020DistRev!M7 -> 0 | AB7: =Est2020DistRev!N7 -> 0 | AC7: =Est2020DistRev!O7 -> 0 | AD7: =Est2020DistRev!P7 -> 0 | AF7: 20303.0233 | AG7: 181305.4411 | AJ7: 215568.4495 | AM7: 0 | AO7: 0 | AP7: 0 | AT7: =D7/100*AF7 -> 2223.181051 | AU7: =E7/100*AG7 -> 10098.71307 | AV7: 0 | AW7: 0 | AX7: 12007.16264 | AY7: 0 | AZ7: 0 | BA7: 0 | BB7: 0 | BC7: =M7/100*AO7 -> 0 | BD7: =N7/100*AP7 -> 0 | BE7: =O7/100*AQ7 -> 0 | BF7: =P7/100*AR7 -> 0 | BG7: =SUM(AT7:BF7) -> 24329.05676 | BI7: =R7/100*AF7 -> 2129.787144 | BJ7: =S7/100*AG7 -> 12981.46958 | BK7: =T7/100*AH7 -> 0 | BL7: =U7/100*AI7 -> 0 | BM7: =V7/100*AJ7 -> 15434.70099 | BN7: =W7/100*AK7 -> 0 | BO7: =X7/100*AL7 -> 0 | BP7: =Y7/100*AM7 -> 0 | BQ7: =Z7/100*AN7 -> 0 | BR7: =AA7/100*AO7 -> 0 | BS7: =AB7/100*AP7 -> 0 | BT7: =AC7/100*AQ7 -> 0 | BU7: =AD7/100*AR7 -> 0 | BV7: =SUM(BI7:BU7) -> 30545.95772
B8: Low voltage small 2 rate | C8: Low voltage small 2 rate | D8: 15.92 | E8: 0 | F8: 0 | G8: 8.85 | H8: 0 | I8: 0 | J8: 8.85 | K8: 1.8 | L8: 0 | M8: 0 | N8: 0 | O8: 0 | P8: 0 | R8: =Est2020DistRev!D8 -> 15.93 | S8: =Est2020DistRev!E8 -> 0 | T8: =Est2020DistRev!F8 -> 0 | U8: =Est2020DistRev!G8 -> 11.24 | V8: =Est2020DistRev!H8 -> 0 | W8: =Est2020DistRev!I8 -> 0 | X8: =Est2020DistRev!J8 -> 11.24 | Y8: =Est2020DistRev!K8 -> 2.29 | Z8: =Est2020DistRev!L8 -> 0 | AA8: =Est2020DistRev!M8 -> 0 | AB8: =Est2020DistRev!N8 -> 0 | AC8: =Est2020DistRev!O8 -> 0 | AD8: =Est2020DistRev!P8 -> 0 | AF8: 742249.2661 | AI8: 2499563.889 | AL8: 2827981.973 | AM8: 6999544.012 | AO8: 0 | AP8: 0 | AT8: 118166.0832 | AU8: 0 | AV8: 0 | AW8: 221211.4042 | AX8: 0 | AY8: 0 | AZ8: 250276.4046 | BA8: 125991.7922 | BB8: 0 | BC8: 0 | BD8: 0 | BE8: 0 | BF8: 0 | BG8: 715645.6842 | BI8: 118240.3081 | BJ8: 0 | BK8: 0 | BL8: 280950.9811 | BM8: 0 | BN8: 0 | BO8: 317865.1738 | BP8: 160289.5579 | BQ8: 0 | BR8: 0 | BS8: 0 | BT8: 0 | BU8: 0 | BV8: 877346.0209
B9: Dedicated circuit | C9: Dedicated circuit | D9: 0 | E9: 0 | F9: 0 | G9: 0 | H9: 0 | I9: 0 | J9: 0 | K9: 1.73 | L9: 0 | M9: 0 | N9: 0 | O9: 0 | P9: 0 | R9: =Est2020DistRev!D9 -> 0 | S9: =Est2020DistRev!E9 -> 0 | T9: =Est2020DistRev!F9 -> 0 | U9: =Est2020DistRev!G9 -> 0 | V9: =Est2020DistRev!H9 -> 0 | W9: =Est2020DistRev!I9 -> 0 | X9: =Est2020DistRev!J9 -> 0 | Y9: =Est2020DistRev!K9 -> 2.23 | Z9: =Est2020DistRev!L9 -> 0 | AA9: =Est2020DistRev!M9 -> 0 | AB9: =Est2020DistRev!N9 -> 0 | AC9: =Est2020DistRev!O9 -> 0 | AD9: =Est2020DistRev!P9 -> 0 | AF9: 10497943.42 | AM9: 39206702.57 | AO9: 0 | AP9: 0 | AT9: 0 | AU9: 0 | AV9: 0 | AW9: 0 | AX9: 0 | AY9: 0 | AZ9: 0 | BA9: 678275.9544 | BB9: 0 | BC9: 0 | BD9: 0 | BE9: 0 | BF9: 0 | BG9: 678275.9544 | BI9: 0 | BJ9: 0 | BK9: 0 | BL9: 0 | BM9: 0 | BN9: 0 | BO9: 0 | BP9: 874309.4673 | BQ9: 0 | BR9: 0 | BS9: 0 | BT9: 0 | BU9: 0 | BV9: 874309.4673
B10: Low voltage medium 1 rate | C10: Low voltage medium 1 rate | D10: 16.43 | E10: 6.81 | F10: 0 | G10: 0 | H10: 6.81 | I10: 0 | J10: 0 | K10: 0 | L10: 0 | M10: 0 | N10: 0 | O10: 0 | P10: 0 | R10: =Est2020DistRev!D10 -> 13.23 | S10: =Est2020DistRev!E10 -> 8.88 | T10: =Est2020DistRev!F10 -> 0 | U10: =Est2020DistRev!G10 -> 0 | V10: =Est2020DistRev!H10 -> 8.88 | W10: =Est2020DistRev!I10 -> 0 | X10: =Est2020DistRev!J10 -> 0 | Y10: =Est2020DistRev!K10 -> 0 | Z10: =Est2020DistRev!L10 -> 0 | AA10: =Est2020DistRev!M10 -> 0 | AB10: =Est2020DistRev!N10 -> 0 | AC10: =Est2020DistRev!O10 -> 0 | AD10: =Est2020DistRev!P10 -> 0 | AF10: 6562937.838 | AG10: 93520651.51 | AJ10: 97984486.3 | AM10: 0 | AO10: 0 | AP10: 0 | AT10: 1078290.687 | AU10: 6368756.368 | AV10: 0 | AW10: 0 | AX10: 6672743.517 | AY10: 0 | AZ10: 0 | BA10: 0 | BB10: 0 | BC10: 0 | BD10: 0 | BE10: 0 | BF10: 0 | BG10: 14119790.57 | BI10: 868276.676 | BJ10: 8304633.854 | BK10: 0 | BL10: 0 | BM10: 8701022.383 | BN10: 0 | BO10: 0 | BP10: 0 | BQ10: 0 | BR10: 0 | BS10: 0 | BT10: 0 | BU10: 0 | BV10: 17873932.91
B11: Low voltage medium 2 rate 5 day | C11: Low voltage medium 2 rate 5 day | D11: 25.33 | E11: 0 | F11: 0 | G11: 9.34 | H11: 0 | I11: 0 | J11: 9.34 | K11: 1.74 | L11: 0 | M11: 0 | N11: 0 | O11: 0 | P11: 0 | R11: =Est2020DistRev!D11 -> 25.34 | S11: =Est2020DistRev!E11 -> 0 | T11: =Est2020DistRev!F11 -> 0 | U11: =Est2020DistRev!G11 -> 13.8 | V11: =Est2020DistRev!H11 -> 0 | W11: =Est2020DistRev!I11 -> 0 | X11: =Est2020DistRev!J11 -> 10.34 | Y11: =Est2020DistRev!K11 -> 2.58 | Z11: =Est2020DistRev!L11 -> 0 | AA11: =Est2020DistRev!M11 -> 0 | AB11: =Est2020DistRev!N11 -> 0 | AC11: =Est2020DistRev!O11 -> 0 | AD11: =Est2020DistRev!P11 -> 0 | AF11: 1691005.151 | AI11: 25877867.25 | AL11: 25255618.89 | AM11: 32072694.78 | AO11: 0 | AP11: 0 | AT11: 428331.6047 | AU11: 0 | AV11: 0 | AW11: 2416992.801 | AX11: 0 | AY11: 0 | AZ11: 2358874.804 | BA11: 558064.8891 | BB11: 0 | BC11: 0 | BD11: 0 | BE11: 0 | BF11: 0 | BG11: 5762264.099 | BI11: 428500.7052 | BJ11: 0 | BK11: 0 | BL11: 3571145.681 | BM11: 0 | BN11: 0 | BO11: 2611430.993 | BP11: 827475.5253 | BQ11: 0 | BR11: 0 | BS11: 0 | BT11: 0 | BU11: 0 | BV11: 7438552.904
B12: Low voltage medium 2 rate 7 day | C12: Low voltage medium 2 rate 7 day | D12: 26.95 | E12: 0 | F12: 0 | G12: 7.72 | H12: 0 | I12: 0 | J12: 7.72 | K12: 1.41 | L12: 0 | M12: 0 | N12: 0 | O12: 0 | P12: 0 | R12: =Est2020DistRev!D12 -> 26.96 | S12: =Est2020DistRev!E12 -> 0 | T12: =Est2020DistRev!F12 -> 0 | U12: =Est2020DistRev!G12 -> 11.38 | V12: =Est2020DistRev!H12 -> 0 | W12: =Est2020DistRev!I12 -> 0 | X12: =Est2020DistRev!J12 -> 8.81 | Y12: =Est2020DistRev!K12 -> 2.08 | Z12: =Est2020DistRev!L12 -> 0 | AA12: =Est2020DistRev!M12 -> 0 | AB12: =Est2020DistRev!N12 -> 0 | AC12: =Est2020DistRev!O12 -> 0 | AD12: =Est2020DistRev!P12 -> 0 | AF12: 867755.014 | AI12: 11704182.6 | AL12: 12021985.87 | AM12: 6431319.934 | AO12: 0 | AP12: 0 | AT12: 233859.9763 | AU12: 0 | AV12: 0 | AW12: 903562.8964 | AX12: 0 | AY12: 0 | AZ12: 928097.3093 | BA12: 90681.61107 | BB12: 0 | BC12: 0 | BD12: 0 | BE12: 0 | BF12: 0 | BG12: 2156201.793 | BI12: 233946.7518 | BJ12: 0 | BK12: 0 | BL12: 1331935.979 | BM12: 0 | BN12: 0 | BO12: 1059136.955 | BP12: 133771.4546 | BQ12: 0 | BR12: 0 | BS12: 0 | BT12: 0 | BU12: 0 | BV12: 2758791.141
B13: Unmetered supplies | C13: Unmetered supplies | D13: 0 | E13: 0 | F13: 0 | G13: 6.39 | H13: 0 | I13: 0 | J13: 6.39 | K13: 1.38 | L13: 0 | M13: 0 | N13: 0 | O13: 0 | P13: 0 | R13: =Est2020DistRev!D13 -> 0 | S13: =Est2020DistRev!E13 -> 0 | T13: =Est2020DistRev!F13 -> 0 | U13: =Est2020DistRev!G13 -> 8.13 | V13: =Est2020DistRev!H13 -> 0 | W13: =Est2020DistRev!I13 -> 0 | X13: =Est2020DistRev!J13 -> 8.13 | Y13: =Est2020DistRev!K13 -> 1.76 | Z13: =Est2020DistRev!L13 -> 0 | AA13: =Est2020DistRev!M13 -> 0 | AB13: =Est2020DistRev!N13 -> 0 | AC13: =Est2020DistRev!O13 -> 0 | AD13: =Est2020DistRev!P13 -> 0 | AF13: 1822730 | AI13: 7902465.985 | AL13: 9120125.655 | AM13: 31525884.81 | AO13: 0 | AP13: 0 | AT13: 0 | AU13: 0 | AV13: 0 | AW13: 504967.5764 | AX13: 0 | AY13: 0 | AZ13: 582776.0293 | BA13: 435057.2104 | BB13: 0 | BC13: 0 | BD13: 0 | BE13: 0 | BF13: 0 | BG13: 1522800.816 | BI13: 0 | BJ13: 0 | BK13: 0 | BL13: 642470.4846 | BM13: 0 | BN13: 0 | BO13: 741466.2157 | BP13: 554855.5727 | BQ13: 0 | BR13: 0 | BS13: 0 | BT13: 0 | BU13: 0 | BV13: 1938792.273
B14: Low voltage large 1 rate | C14: Low voltage large 1 rate | D14: 16.43 | E14: 5.4 | F14: 0 | G14: 0 | H14: 5.4 | I14: 0 | J14: 0 | K14: 0 | L14: 0 | M14: 0 | N14: 0 | O14: 0 | P14: 0 | R14: =Est2020DistRev!D14 -> 15.49 | S14: =Est2020DistRev!E14 -> 6.91 | T14: =Est2020DistRev!F14 -> 0 | U14: =Est2020DistRev!G14 -> 0 | V14: =Est2020DistRev!H14 -> 6.91 | W14: =Est2020DistRev!I14 -> 0 | X14: =Est2020DistRev!J14 -> 0 | Y14: =Est2020DistRev!K14 -> 0 | Z14: =Est2020DistRev!L14 -> 0 | AA14: =Est2020DistRev!M14 -> 0 | AB14: =Est2020DistRev!N14 -> 0 | AC14: =Est2020DistRev!O14 -> 0 | AD14: =Est2020DistRev!P14 -> 0 | AF14: 1081.090134 | AG14: 352696.6831 | AJ14: 338387.6259 | AM14: 0 | AO14: 0 | AP14: 0 | AT14: 177.623109 | AU14: 19045.62089 | AV14: 0 | AW14: 0 | AX14: 18272.9318 | AY14: 0 | AZ14: 0 | BA14: 0 | BB14: 0 | BC14: 0 | BD14: 0 | BE14: 0 | BF14: 0 | BG14: 37496.1758 | BI14: 167.4608617 | BJ14: 24371.3408 | BK14: 0 | BL14: 0 | BM14: 23382.58495 | BN14: 0 | BO14: 0 | BP14: 0 | BQ14: 0 | BR14: 0 | BS14: 0 | BT14: 0 | BU14: 0 | BV14: 47921.38661
B15: Low voltage large 2 rate | C15: Low voltage large 2 rate | D15: 22.34 | E15: 0 | F15: 0 | G15: 8.91 | H15: 0 | I15: 0 | J15: 8.91 | K15: 1.68 | L15: 0 | M15: 0 | N15: 0 | O15: 0 | P15: 0 | R15: =Est2020DistRev!D15 -> 22.35 | S15: =Est2020DistRev!E15 -> 0 | T15: =Est2020DistRev!F15 -> 0 | U15: =Est2020DistRev!G15 -> 12.56 | V15: =Est2020DistRev!H15 -> 0 | W15: =Est2020DistRev!I15 -> 0 | X15: =Est2020DistRev!J15 -> 9.98 | Y15: =Est2020DistRev!K15 -> 2.38 | Z15: =Est2020DistRev!L15 -> 0 | AA15: =Est2020DistRev!M15 -> 0 | AB15: =Est2020DistRev!N15 -> 0 | AC15: =Est2020DistRev!O15 -> 0 | AD15: =Est2020DistRev!P15 -> 0 | AF15: 2882.907023 | AI15: 355464.9612 | AL15: 291682.2199 | AM15: 434712.6804 | AO15: 0 | AP15: 0 | AT15: 644.041429 | AU15: 0 | AV15: 0 | AW15: 31671.92804 | AX15: 0 | AY15: 0 | AZ15: 25988.8858 | BA15: 7303.17303 | BB15: 0 | BC15: 0 | BD15: 0 | BE15: 0 | BF15: 0 | BG15: 65608.0283 | BI15: 644.3297197 | BJ15: 0 | BK15: 0 | BL15: 44646.39912 | BM15: 0 | BN15: 0 | BO15: 29109.88555 | BP15: 10346.16179 | BQ15: 0 | BR15: 0 | BS15: 0 | BT15: 0 | BU15: 0 | BV15: 84746.77619
B16: Low voltage KW time of use | C16: Low voltage KW time of use | D16: 0 | E16: 0 | F16: 0 | G16: 7.26 | H16: 0 | I16: 0 | J16: 7.26 | K16: 1.69 | L16: 0 | M16: 0 | N16: 34.79 | R16: =Est2020DistRev!D16 -> 0 | S16: =Est2020DistRev!E16 -> 0 | T16: =Est2020DistRev!F16 -> 0 | U16: =Est2020DistRev!G16 -> 11.56 | V16: =Est2020DistRev!H16 -> 0 | W16: =Est2020DistRev!I16 -> 0 | X16: =Est2020DistRev!J16 -> 6.78 | Y16: =Est2020DistRev!K16 -> 2.69 | Z16: =Est2020DistRev!L16 -> 0 | AA16: =Est2020DistRev!M16 -> 0 | AB16: =Est2020DistRev!N16 -> 55.35 | AC16: =Est2020DistRev!O16 -> 0 | AD16: =Est2020DistRev!P16 -> 0 | AF16: 33320.53009 | AI16: 1475141.763 | AL16: 1370460.818 | AM16: 2593202.45 | AO16: 0 | AP16: 392057.726 | AT16: 0 | AU16: 0 | AV16: 0 | AW16: 107095.292 | AX16: 0 | AY16: 0 | AZ16: 99495.45538 | BA16: 43825.12141 | BB16: 0 | BC16: 0 | BD16: 136396.8829 | BE16: 0 | BF16: 0 | BG16: 386812.7517 | BI16: 0 | BJ16: 0 | BK16: 0 | BL16: 170526.3878 | BM16: 0 | BN16: 0 | BO16: 92917.24345 | BP16: 69757.14591 | BQ16: 0 | BR16: 0 | BS16: 217003.9513 | BT16: 0 | BU16: 0 | BV16: 550204.7286
B17: Low voltage KW time of use - HOT | C17: Low voltage KW time of use - HOT | D17: 0 | E17: 0 | F17: 0 | G17: 5.91 | H17: 0 | I17: 0 | J17: 5.91 | K17: 1.34 | L17: 0 | M17: 0 | N17: 52.1 | R17: =Est2020DistRev!D17 -> 0 | S17: =Est2020DistRev!E17 -> 0 | T17: =Est2020DistRev!F17 -> 0 | U17: =Est2020DistRev!G17 -> 8.07 | V17: =Est2020DistRev!H17 -> 0 | W17: =Est2020DistRev!I17 -> 0 | X17: =Est2020DistRev!J17 -> 6.2 | Y17: =Est2020DistRev!K17 -> 1.83 | Z17: =Est2020DistRev!L17 -> 0 | AA17: =Est2020DistRev!M17 -> 0 | AB17: =Est2020DistRev!N17 -> 71.04 | AC17: =Est2020DistRev!O17 -> 0 | AD17: =Est2020DistRev!P17 -> 0 | AF17: 2716.347562 | AI17: 19807.75145 | AL17: 30069.46231 | AM17: 52684.78034 | AO17: 0 | AP17: 7608.504 | AT17: 0 | AU17: 0 | AV17: 0 | AW17: 1170.638111 | AX17: 0 | AY17: 0 | AZ17: 1777.105222 | BA17: 705.9760565 | BB17: 0 | BC17: 0 | BD17: 3964.030584 | BE17: 0 | BF17: 0 | BG17: 7617.749974 | BI17: 0 | BJ17: 0 | BK17: 0 | BL17: 1598.485542 | BM17: 0 | BN17: 0 | BO17: 1864.306663 | BP17: 964.1314802 | BQ17: 0 | BR17: 0 | BS17: 5405.081242 | BT17: 0 | BU17: 0 | BV17: 9832.004927
B18: Low voltage large KVA time of use | C18: Low voltage large KVA time of use | D18: 0 | E18: 0 | F18: 0 | G18: 1.24 | H18: 0 | I18: 0 | J18: 1.24 | K18: 1.04 | L18: 0 | M18: 12.47 | N18: 18.64 | O18: 0 | P18: 0 | R18: =Est2020DistRev!D18 -> 0 | S18: =Est2020DistRev!E18 -> 0 | T18: =Est2020DistRev!F18 -> 0 | U18: =Est2020DistRev!G18 -> 1.63 | V18: =Est2020DistRev!H18 -> 0 | W18: =Est2020DistRev!I18 -> 0 | X18: =Est2020DistRev!J18 -> 1.38 | Y18: =Est2020DistRev!K18 -> 1.37 | Z18: =Est2020DistRev!L18 -> 0 | AA18: =Est2020DistRev!M18 -> 16.48 | AB18: =Est2020DistRev!N18 -> 24.64 | AC18: =Est2020DistRev!O18 -> 0 | AD18: =Est2020DistRev!P18 -> 0 | AF18: 541277.5242 | AI18: 266174637 | AL18: 250479794.6 | AM18: 611889749.5 | AO18: 159541608.1 | AP18: 56665442.46 | AT18: 0 | AU18: 0 | AV18: 0 | AW18: 3300565.499 | AX18: 0 | AY18: 0 | AZ18: 3105949.454 | BA18: 6363653.394 | BB18: 0 | BC18: 19894838.53 | BD18: 10562438.47 | BE18: 0 | BF18: 0 | BG18: 43227445.35 | BI18: 0 | BJ18: 0 | BK18: 0 | BL18: 4338646.583 | BM18: 0 | BN18: 0 | BO18: 3456621.166 | BP18: 8382889.567 | BQ18: 0 | BR18: 26292457.02 | BS18: 13962365.02 | BT18: 0 | BU18: 0 | BV18: 56432979.35
B19: High voltage KVA time of use | C19: High voltage KVA time of use | D19: 0 | E19: 0 | F19: 0 | G19: 0.74 | H19: 0 | I19: 0 | J19: 0.74 | K19: 0.64 | L19: 0 | M19: 7.49 | N19: 10.29 | O19: 0 | P19: 0 | R19: =Est2020DistRev!D19 -> 0 | S19: =Est2020DistRev!E19 -> 0 | T19: =Est2020DistRev!F19 -> 0 | U19: =Est2020DistRev!G19 -> 0.98 | V19: =Est2020DistRev!H19 -> 0 | W19: =Est2020DistRev!I19 -> 0 | X19: =Est2020DistRev!J19 -> 0.85 | Y19: =Est2020DistRev!K19 -> 0.85 | Z19: =Est2020DistRev!L19 -> 0 | AA19: =Est2020DistRev!M19 -> 9.97 | AB19: =Est2020DistRev!N19 -> 13.7 | AC19: =Est2020DistRev!O19 -> 0 | AD19: =Est2020DistRev!P19 -> 0 | AF19: 18018 | AI19: 105000326.1 | AL19: 105357041.1 | AM19: 326268953.2 | AO19: 51478074.62 | AP19: 19753789.02 | AT19: 0 | AU19: 0 | AV19: 0 | AW19: 777002.4128 | AX19: 0 | AY19: 0 | AZ19: 779642.1038 | BA19: 2088121.3 | BB19: 0 | BC19: 3855707.789 | BD19: 2032664.89 | BE19: 0 | BF19: 0 | BG19: 9533138.496 | BI19: 0 | BJ19: 0 | BK19: 0 | BL19: 1029003.195 | BM19: 0 | BN19: 0 | BO19: 895534.849 | BP19: 2773286.102 | BQ19: 0 | BR19: 5132364.04 | BS19: 2706269.096 | BT19: 0 | BU19: 0 | BV19: 12536457.28
B20: Subtransmission KVA time of use | C20: Subtransmission KVA time of use | D20: 0 | E20: 0 | F20: 0 | G20: 0.43 | H20: 0 | I20: 0 | J20: 0.43 | K20: 0.29 | L20: 0 | M20: 0.76 | N20: 1.1 | O20: 0 | P20: 0 | R20: =Est2020DistRev!D20 -> 0 | S20: =Est2020DistRev!E20 -> 0 | T20: =Est2020DistRev!F20 -> 0 | U20: =Est2020DistRev!G20 -> 0.56 | V20: =Est2020DistRev!H20 -> 0 | W20: =Est2020DistRev!I20 -> 0 | X20: =Est2020DistRev!J20 -> 0.43 | Y20: =Est2020DistRev!K20 -> 0.37 | Z20: =Est2020DistRev!L20 -> 0 | AA20: =Est2020DistRev!M20 -> 0.98 | AB20: =Est2020DistRev!N20 -> 1.43 | AC20: =Est2020DistRev!O20 -> 0 | AD20: =Est2020DistRev!P20 -> 0 | AF20: 182 | AI20: 3670916.351 | AL20: 3584660.543 | AM20: 5707425.983 | AO20: 2018875.22 | AP20: 704348.9277 | AT20: 0 | AU20: 0 | AV20: 0 | AW20: 15784.94031 | AX20: 0 | AY20: 0 | AZ20: 15414.04033 | BA20: 16551.53535 | BB20: 0 | BC20: 15343.45167 | BD20: 7747.838205 | BE20: 0 | BF20: 0 | BG20: 70841.80586 | BI20: 0 | BJ20: 0 | BK20: 0 | BL20: 20557.13156 | BM20: 0 | BN20: 0 | BO20: 15414.04033 | BP20: 21117.47614 | BQ20: 0 | BR20: 19784.97715 | BS20: 10072.18967 | BT20: 0 | BU20: 0 | BV20: 86945.81485
B21: TOD | C21: TOD | D21: 10.95 | E21: 0 | F21: 3.37 | G21: 10.62 | H21: 0 | I21: 0 | J21: 10.62 | K21: 2.79 | L21: 3.37 | M21: 0 | N21: 0 | O21: 0 | P21: 0 | R21: =Est2020DistRev!D21 -> 7.47 | S21: =Est2020DistRev!E21 -> 0 | T21: =Est2020DistRev!F21 -> 4.5 | U21: =Est2020DistRev!G21 -> 14.17 | V21: =Est2020DistRev!H21 -> 0 | W21: =Est2020DistRev!I21 -> 0 | X21: =Est2020DistRev!J21 -> 14.17 | Y21: =Est2020DistRev!K21 -> 3.73 | Z21: =Est2020DistRev!L21 -> 4.5 | AA21: =Est2020DistRev!M21 -> 0 | AB21: =Est2020DistRev!N21 -> 0 | AC21: =Est2020DistRev!O21 -> 0 | AD21: =Est2020DistRev!P21 -> 0 | AF21: 7805872.272 | AH21: 7967927.955 | AI21: 13923627.87 | AL21: 18072449.62 | AM21: 54011897.04 | AN21: 10342130.51 | AO21: 0 | AP21: 0 | AT21: 854743.0138 | AU21: 0 | AV21: 268519.1721 | AW21: 1478689.279 | AX21: 0 | AY21: 0 | AZ21: 1919294.149 | BA21: 1506931.928 | BB21: 348529.7981 | BC21: 0 | BD21: 0 | BE21: 0 | BF21: 0 | BG21: 6376707.34 | BI21: 583098.6587 | BJ21: 0 | BK21: 358556.758 | BL21: 1972978.068 | BM21: 0 | BN21: 0 | BO21: 2560866.111 | BP21: 2014643.76 | BQ21: 465395.8728 | BR21: 0 | BS21: 0 | BT21: 0 | BU21: 0 | BV21: 7955539.228
B22: TOD9 | C22: TOD9 | D22: 10.95 | E22: 0 | F22: 3.86 | G22: 10.69 | H22: 0 | I22: 0 | J22: 10.69 | K22: 3.42 | L22: 3.86 | M22: 0 | N22: 0 | O22: 0 | P22: 0 | R22: =Est2020DistRev!D22 -> 8.16 | S22: =Est2020DistRev!E22 -> 0 | T22: =Est2020DistRev!F22 -> 5.13 | U22: =Est2020DistRev!G22 -> 14.2 | V22: =Est2020DistRev!H22 -> 0 | W22: =Est2020DistRev!I22 -> 0 | X22: =Est2020DistRev!J22 -> 14.2 | Y22: =Est2020DistRev!K22 -> 4.55 | Z22: =Est2020DistRev!L22 -> 5.13 | AA22: =Est2020DistRev!M22 -> 0 | AB22: =Est2020DistRev!N22 -> 0 | AC22: =Est2020DistRev!O22 -> 0 | AD22: =Est2020DistRev!P22 -> 0 | AF22: 647318.9139 | AH22: 493655.1561 | AI22: 732234.7766 | AL22: 1128201.925 | AM22: 5034512.086 | AN22: 760606.7275 | AT22: 70881.42108 | AU22: 0 | AV22: 19055.08903 | AW22: 78275.89762 | AX22: 0 | AY22: 0 | AZ22: 120604.7857 | BA22: 172180.3133 | BB22: 29359.41968 | BC22: 0 | BD22: 0 | BE22: 0 | BF22: 0 | BG22: 490356.9265 | BI22: 52821.22338 | BJ22: 0 | BK22: 25324.50951 | BL22: 103977.3383 | BM22: 0 | BN22: 0 | BO22: 160204.6733 | BP22: 229070.2999 | BQ22: 39019.12512 | BR22: 0 | BS22: 0 | BT22: 0 | BU22: 0 | BV22: 610417.1695
B23: TOU | C23: TOU | D23: 0 | E23: 0 | F23: 0 | G23: 6.92 | H23: 0 | I23: 0 | J23: 6.92 | K23: 2.03 | L23: 0 | M23: 0 | N23: 30.08 | P23: 0 | R23: =Est2020DistRev!D23 -> 0 | S23: =Est2020DistRev!E23 -> 0 | T23: =Est2020DistRev!F23 -> 0 | U23: =Est2020DistRev!G23 -> 11.15 | V23: =Est2020DistRev!H23 -> 0 | W23: =Est2020DistRev!I23 -> 0 | X23: =Est2020DistRev!J23 -> 6.78 | Y23: =Est2020DistRev!K23 -> 3.27 | Z23: =Est2020DistRev!L23 -> 0 | AA23: =Est2020DistRev!M23 -> 0 | AB23: =Est2020DistRev!N23 -> 48.43 | AC23: =Est2020DistRev!O23 -> 0 | AD23: =Est2020DistRev!P23 -> 0 | AF23: 145958.409 | AI23: 2992497.155 | AL23: 3490165.641 | AM23: 5333993.167 | AO23: 0 | AP23: 729616.782 | AT23: 0 | AU23: 0 | AV23: 0 | AW23: 207080.8031 | AX23: 0 | AY23: 0 | AZ23: 241519.4623 | BA23: 108280.0613 | BB23: 0 | BC23: 0 | BD23: 219468.728 | BE23: 0 | BF23: 0 | BG23: 776349.0548 | BI23: 0 | BJ23: 0 | BK23: 0 | BL23: 333663.4328 | BM23: 0 | BN23: 0 | BO23: 236633.2304 | BP23: 174421.5766 | BQ23: 0 | BR23: 0 | BS23: 353353.4075 | BT23: 0 | BU23: 0 | BV23: 1098071.647
B24: TODFLEX | C24: TODFLEX | D24: 10.95 | E24: 0 | F24: 4.05 | G24: 10.99 | H24: 0 | I24: 0 | J24: 10.99 | K24: 3.43 | L24: 4.05 | M24: 0 | N24: 0 | O24: 0 | P24: 0 | R24: =Est2020DistRev!D24 -> 8.28 | S24: =Est2020DistRev!E24 -> 0 | T24: =Est2020DistRev!F24 -> 5.37 | U24: =Est2020DistRev!G24 -> 14.56 | V24: =Est2020DistRev!H24 -> 0 | W24: =Est2020DistRev!I24 -> 0 | X24: =Est2020DistRev!J24 -> 14.56 | Y24: =Est2020DistRev!K24 -> 4.55 | Z24: =Est2020DistRev!L24 -> 5.37 | AA24: =Est2020DistRev!M24 -> 0 | AB24: =Est2020DistRev!N24 -> 0 | AC24: =Est2020DistRev!O24 -> 0 | AD24: =Est2020DistRev!P24 -> 0 | AF24: 344785.5758 | AH24: 967908.7097 | AI24: 472439.1766 | AL24: 562268.6277 | AM24: 1658072.417 | AN24: 1151946.597 | AT24: 37754.02055 | AU24: 0 | AV24: 39200.30274 | AW24: 51921.0655 | AX24: 0 | AY24: 0 | AZ24: 61793.32218 | BA24: 56871.88391 | BB24: 46653.8372 | BC24: 0 | BD24: 0 | BE24: 0 | BF24: 0 | BG24: 294194.4321 | BI24: 28548.24568 | BJ24: 0 | BK24: 51976.69771 | BL24: 68787.14411 | BM24: 0 | BN24: 0 | BO24: 81866.31219 | BP24: 75442.29498 | BQ24: 61859.53228 | BR24: 0 | BS24: 0 | BT24: 0 | BU24: 0 | BV24: 368480.227
B25: Low Voltage KW 1 rate | C25: Low Voltage KW 1 rate | D25: 0 | E25: 2.63 | F25: 0 | G25: 2.63 | H25: 0 | I25: 0 | J25: 2.63 | K25: 0 | L25: 0 | M25: 0 | N25: 0 | O25: 25.42 | P25: 10.03 | R25: =Est2020DistRev!D25 -> 0 | S25: =Est2020DistRev!E25 -> 0 | T25: =Est2020DistRev!F25 -> 0 | U25: =Est2020DistRev!G25 -> 3.08 | V25: =Est2020DistRev!H25 -> 0 | W25: =Est2020DistRev!I25 -> 0 | X25: =Est2020DistRev!J25 -> 3.08 | Y25: =Est2020DistRev!K25 -> 0 | Z25: =Est2020DistRev!L25 -> 0 | AA25: =Est2020DistRev!M25 -> 0 | AB25: =Est2020DistRev!N25 -> 0 | AC25: =Est2020DistRev!O25 -> 29.68 | AD25: =Est2020DistRev!P25 -> 11.72 | AF25: 232295.8521 | AH25: 0 | AI25: 1080042.507 | AL25: 1337152.656 | AM25: 0 | AN25: 0 | AQ25: 184376.2935 | AR25: 168329.1237 | AT25: 0 | AU25: 0 | AV25: 0 | AW25: 28405.11792 | AX25: 0 | AY25: 0 | AZ25: 35167.11485 | BA25: 0 | BB25: 0 | BC25: 0 | BD25: 0 | BE25: 46868.45381 | BF25: 16883.4111 | BG25: 127324.0977 | BI25: 0 | BJ25: 0 | BK25: 0 | BL25: 33265.3092 | BM25: 0 | BN25: 0 | BO25: 41184.3018 | BP25: 0 | BQ25: 0 | BR25: 0 | BS25: 0 | BT25: 54722.88391 | BU25: 19728.17329 | BV25: 148900.6682
B26: Low voltage medium KW time of use (opt-in) | C26: Low voltage medium KW time of use (opt-in) | D26: 0 | E26: 2.88 | F26: 0 | G26: 2.88 | H26: 0 | I26: 0 | J26: 2.88 | K26: 0 | L26: 0 | M26: 0 | N26: 0 | O26: 32.62 | P26: 21.74 | R26: =Est2020DistRev!D26 -> 0 | S26: =Est2020DistRev!E26 -> 0 | T26: =Est2020DistRev!F26 -> 0 | U26: =Est2020DistRev!G26 -> 3.85 | V26: =Est2020DistRev!H26 -> 0 | W26: =Est2020DistRev!I26 -> 0 | X26: =Est2020DistRev!J26 -> 3.85 | Y26: =Est2020DistRev!K26 -> 0 | Z26: =Est2020DistRev!L26 -> 0 | AA26: =Est2020DistRev!M26 -> 0 | AB26: =Est2020DistRev!N26 -> 0 | AC26: =Est2020DistRev!O26 -> 43.59 | AD26: =Est2020DistRev!P26 -> 29.05 | AF26: 0 | AH26: 0 | AI26: 0 | AL26: 0 | AM26: 0 | AN26: 0 | AQ26: 0 | AR26: 0 | AT26: 0 | AU26: 0 | AV26: 0 | AW26: 0 | AX26: 0 | AY26: 0 | AZ26: 0 | BA26: 0 | BB26: 0 | BC26: 0 | BD26: 0 | BE26: 0 | BF26: 0 | BG26: 0 | BI26: 0 | BJ26: 0 | BK26: 0 | BL26: 0 | BM26: 0 | BN26: 0 | BO26: 0 | BP26: 0 | BQ26: 0 | BR26: 0 | BS26: 0 | BT26: 0 | BU26: 0 | BV26: 0
B27: Low voltage medium KW 1 rate (mandatory) | C27: Low voltage medium KW 1 rate (mandatory) | D27: 0 | E27: 2.88 | F27: 0 | G27: 2.88 | H27: 0 | I27: 0 | J27: 2.88 | K27: 0 | L27: 0 | M27: 0 | N27: 0 | O27: 32.62 | P27: 21.74 | R27: =Est2020DistRev!D27 -> 0 | S27: =Est2020DistRev!E27 -> 0 | T27: =Est2020DistRev!F27 -> 0 | U27: =Est2020DistRev!G27 -> 3.85 | V27: =Est2020DistRev!H27 -> 0 | W27: =Est2020DistRev!I27 -> 0 | X27: =Est2020DistRev!J27 -> 3.85 | Y27: =Est2020DistRev!K27 -> 0 | Z27: =Est2020DistRev!L27 -> 0 | AA27: =Est2020DistRev!M27 -> 0 | AB27: =Est2020DistRev!N27 -> 0 | AC27: =Est2020DistRev!O27 -> 43.59 | AD27: =Est2020DistRev!P27 -> 29.05 | AF27: 1304571.189 | AH27: 0 | AI27: 152577673.1 | AL27: 146200098.8 | AM27: 0 | AN27: 0 | AQ27: 20233521.01 | AR27: 18174103.87 | AT27: 0 | AU27: 0 | AV27: 0 | AW27: 4394236.985 | AX27: 0 | AY27: 0 | AZ27: 4210562.846 | BA27: 0 | BB27: 0 | BC27: 0 | BD27: 0 | BE27: 6600174.554 | BF27: 3951050.181 | BG27: 19156024.57 | BI27: 0 | BJ27: 0 | BK27: 0 | BL27: 5874240.414 | BM27: 0 | BN27: 0 | BO27: 5628703.804 | BP27: 0 | BQ27: 0 | BR27: 0 | BS27: 0 | BT27: 8819791.809 | BU27: 5279577.173 | BV27: 25602313.2
R28: =Est2020DistRev!D28 -> 0 | S28: =Est2020DistRev!E28 -> 0 | T28: =Est2020DistRev!F28 -> 0 | U28: =Est2020DistRev!G28 -> 0 | V28: =Est2020DistRev!H28 -> 0 | W28: =Est2020DistRev!I28 -> 0 | X28: =Est2020DistRev!J28 -> 0 | Y28: =Est2020DistRev!K28 -> 0 | Z28: =Est2020DistRev!L28 -> 0 | AA28: =Est2020DistRev!M28 -> 0 | AB28: =Est2020DistRev!N28 -> 0 | AC28: =Est2020DistRev!O28 -> 0 | AD28: =Est2020DistRev!P28 -> 0 | AF28: =Est2020DistRev!R28/2 -> 0 | AG28: =Est2020DistRev!S28/2 -> 0 | AH28: =Est2020DistRev!T28/2 -> 0 | AI28: =Est2020DistRev!U28/2 -> 0 | AJ28: =Est2020DistRev!V28/2 -> 0 | AK28: =Est2020DistRev!W28/2 -> 0 | AL28: =Est2020DistRev!X28/2 -> 0 | AM28: =Est2020DistRev!Y28/2 -> 0 | AN28: =Est2020DistRev!Z28/2 -> 0 | AO28: =Est2020DistRev!AA28/2 -> 0 | AP28: =Est2020DistRev!AB28/2 -> 0 | AQ28: =Est2020DistRev!AC28/2 -> 0 | AR28: =Est2020DistRev!AD28/2 -> 0 | AT28: 0 | AU28: 0 | AV28: 0 | AW28: 0 | AX28: 0 | AY28: 0 | AZ28: 0 | BA28: 0 | BB28: 0 | BC28: 0 | BD28: 0 | BE28: 0 | BF28: 0 | BG28: 0 | BI28: 0 | BJ28: 0 | BK28: 0 | BL28: 0 | BM28: 0 | BN28: 0 | BO28: 0 | BP28: 0 | BQ28: 0 | BR28: 0 | BS28: 0 | BT28: 0 | BU28: 0 | BV28: 0
R29: =Est2020DistRev!D29 -> 0 | S29: =Est2020DistRev!E29 -> 0 | T29: =Est2020DistRev!F29 -> 0 | U29: =Est2020DistRev!G29 -> 0 | V29: =Est2020DistRev!H29 -> 0 | W29: =Est2020DistRev!I29 -> 0 | X29: =Est2020DistRev!J29 -> 0 | Y29: =Est2020DistRev!K29 -> 0 | Z29: =Est2020DistRev!L29 -> 0 | AA29: =Est2020DistRev!M29 -> 0 | AB29: =Est2020DistRev!N29 -> 0 | AC29: =Est2020DistRev!O29 -> 0 | AD29: =Est2020DistRev!P29 -> 0 | AF29: =Est2020DistRev!R29/2 -> 0 | AG29: =Est2020DistRev!S29/2 -> 0 | AH29: =Est2020DistRev!T29/2 -> 0 | AI29: =Est2020DistRev!U29/2 -> 0 | AJ29: =Est2020DistRev!V29/2 -> 0 | AK29: =Est2020DistRev!W29/2 -> 0 | AL29: =Est2020DistRev!X29/2 -> 0 | AM29: =Est2020DistRev!Y29/2 -> 0 | AN29: =Est2020DistRev!Z29/2 -> 0 | AO29: =Est2020DistRev!AA29/2 -> 0 | AP29: =Est2020DistRev!AB29/2 -> 0 | AQ29: =Est2020DistRev!AC29/2 -> 0 | AR29: =Est2020DistRev!AD29/2 -> 0 | AT29: 0 | AU29: 0 | AV29: 0 | AW29: 0 | AX29: 0 | AY29: 0 | AZ29: 0 | BA29: 0 | BB29: 0 | BC29: 0 | BD29: 0 | BE29: 0 | BF29: 0 | BG29: 0 | BI29: 0 | BJ29: 0 | BK29: 0 | BL29: 0 | BM29: 0 | BN29: 0 | BO29: 0 | BP29: 0 | BQ29: 0 | BR29: 0 | BS29: 0 | BT29: 0 | BU29: 0 | BV29: 0
R30: =Est2020DistRev!D30 -> 0 | S30: =Est2020DistRev!E30 -> 0 | T30: =Est2020DistRev!F30 -> 0 | U30: =Est2020DistRev!G30 -> 0 | V30: =Est2020DistRev!H30 -> 0 | W30: =Est2020DistRev!I30 -> 0 | X30: =Est2020DistRev!J30 -> 0 | Y30: =Est2020DistRev!K30 -> 0 | Z30: =Est2020DistRev!L30 -> 0 | AA30: =Est2020DistRev!M30 -> 0 | AB30: =Est2020DistRev!N30 -> 0 | AC30: =Est2020DistRev!O30 -> 0 | AD30: =Est2020DistRev!P30 -> 0 | AE30: =Est2020DistRev!Q30 -> 0 | AF30: =Est2020DistRev!R30/2 -> 0 | AG30: =Est2020DistRev!S30/2 -> 0 | AH30: =Est2020DistRev!T30/2 -> 0 | AI30: =Est2020DistRev!U30/2 -> 0 | AJ30: =Est2020DistRev!V30/2 -> 0 | AK30: =Est2020DistRev!W30/2 -> 0 | AL30: =Est2020DistRev!X30/2 -> 0 | AM30: =Est2020DistRev!Y30/2 -> 0 | AN30: =Est2020DistRev!Z30/2 -> 0 | AO30: =Est2020DistRev!AA30/2 -> 0 | AP30: =Est2020DistRev!AB30/2 -> 0 | AQ30: =Est2020DistRev!AC30/2 -> 0 | AR30: =Est2020DistRev!AD30/2 -> 0 | AT30: 0 | AU30: 0 | AV30: 0 | AW30: 0 | AX30: 0 | AY30: 0 | AZ30: 0 | BA30: 0 | BB30: 0 | BC30: 0 | BD30: 0 | BE30: 0 | BF30: 0 | BG30: 0 | BI30: 0 | BJ30: 0 | BK30: 0 | BL30: 0 | BM30: 0 | BN30: 0 | BO30: 0 | BP30: 0 | BQ30: 0 | BR30: 0 | BS30: 0 | BT30: 0 | BU30: 0 | BV30: 0
R31: =Est2020DistRev!D31 -> 0 | S31: =Est2020DistRev!E31 -> 0 | T31: =Est2020DistRev!F31 -> 0 | U31: =Est2020DistRev!G31 -> 0 | V31: =Est2020DistRev!H31 -> 0 | W31: =Est2020DistRev!I31 -> 0 | X31: =Est2020DistRev!J31 -> 0 | Y31: =Est2020DistRev!K31 -> 0 | Z31: =Est2020DistRev!L31 -> 0 | AA31: =Est2020DistRev!M31 -> 0 | AB31: =Est2020DistRev!N31 -> 0 | AC31: =Est2020DistRev!O31 -> 0 | AD31: =Est2020DistRev!P31 -> 0 | AE31: =Est2020DistRev!Q31 -> 0 | AF31: =Est2020DistRev!R31/2 -> 0 | AG31: =Est2020DistRev!S31/2 -> 0 | AH31: =Est2020DistRev!T31/2 -> 0 | AI31: =Est2020DistRev!U31/2 -> 0 | AJ31: =Est2020DistRev!V31/2 -> 0 | AK31: =Est2020DistRev!W31/2 -> 0 | AL31: =Est2020DistRev!X31/2 -> 0 | AM31: =Est2020DistRev!Y31/2 -> 0 | AN31: =Est2020DistRev!Z31/2 -> 0 | AO31: =Est2020DistRev!AA31/2 -> 0 | AP31: =Est2020DistRev!AB31/2 -> 0 | AQ31: =Est2020DistRev!AC31/2 -> 0 | AR31: =Est2020DistRev!AD31/2 -> 0 | AT31: 0 | AU31: 0 | AV31: 0 | AW31: 0 | AX31: 0 | AY31: 0 | AZ31: 0 | BA31: 0 | BB31: 0 | BC31: 0 | BD31: 0 | BE31: 0 | BF31: 0 | BG31: 0 | BI31: 0 | BJ31: 0 | BK31: 0 | BL31: 0 | BM31: 0 | BN31: 0 | BO31: 0 | BP31: 0 | BQ31: 0 | BR31: 0 | BS31: 0 | BT31: 0 | BU31: 0 | BV31: 0
R32: =Est2020DistRev!D32 -> 0 | S32: =Est2020DistRev!E32 -> 0 | T32: =Est2020DistRev!F32 -> 0 | U32: =Est2020DistRev!G32 -> 0 | V32: =Est2020DistRev!H32 -> 0 | W32: =Est2020DistRev!I32 -> 0 | X32: =Est2020DistRev!J32 -> 0 | Y32: =Est2020DistRev!K32 -> 0 | Z32: =Est2020DistRev!L32 -> 0 | AA32: =Est2020DistRev!M32 -> 0 | AB32: =Est2020DistRev!N32 -> 0 | AC32: =Est2020DistRev!O32 -> 0 | AD32: =Est2020DistRev!P32 -> 0 | AE32: =Est2020DistRev!Q32 -> 0 | AF32: =Est2020DistRev!R32/2 -> 0 | AG32: =Est2020DistRev!S32/2 -> 0 | AH32: =Est2020DistRev!T32/2 -> 0 | AI32: =Est2020DistRev!U32/2 -> 0 | AJ32: =Est2020DistRev!V32/2 -> 0 | AK32: =Est2020DistRev!W32/2 -> 0 | AL32: =Est2020DistRev!X32/2 -> 0 | AM32: =Est2020DistRev!Y32/2 -> 0 | AN32: =Est2020DistRev!Z32/2 -> 0 | AO32: =Est2020DistRev!AA32/2 -> 0 | AP32: =Est2020DistRev!AB32/2 -> 0 | AQ32: =Est2020DistRev!AC32/2 -> 0 | AR32: =Est2020DistRev!AD32/2 -> 0 | AT32: 0 | AU32: =E32/100*AG32 -> 0 | AV32: 0 | AW32: 0 | AX32: 0 | AY32: 0 | AZ32: 0 | BA32: 0 | BB32: 0 | BC32: 0 | BD32: 0 | BE32: 0 | BF32: 0 | BG32: =SUM(AT32:BF32) -> 0 | BI32: 0 | BJ32: =S32/100*AG32 -> 0 | BK32: =T32/100*AH32 -> 0 | BL32: =U32/100*AI32 -> 0 | BM32: =V32/100*AJ32 -> 0 | BN32: =W32/100*AK32 -> 0 | BO32: =X32/100*AL32 -> 0 | BP32: =Y32/100*AM32 -> 0 | BQ32: =Z32/100*AN32 -> 0 | BR32: 0 | BS32: 0 | BT32: 0 | BU32: 0 | BV32: =SUM(BI32:BU32) -> 0
R33: =Est2020DistRev!D33 -> 0 | S33: =Est2020DistRev!E33 -> 0 | T33: =Est2020DistRev!F33 -> 0 | U33: =Est2020DistRev!G33 -> 0 | V33: =Est2020DistRev!H33 -> 0 | W33: =Est2020DistRev!I33 -> 0 | X33: =Est2020DistRev!J33 -> 0 | Y33: =Est2020DistRev!K33 -> 0 | Z33: =Est2020DistRev!L33 -> 0 | AA33: =Est2020DistRev!M33 -> 0 | AB33: =Est2020DistRev!N33 -> 0 | AC33: =Est2020DistRev!O33 -> 0 | AD33: =Est2020DistRev!P33 -> 0 | AF33: =Est2020DistRev!R33/2 -> 0 | AG33: =Est2020DistRev!S33/2 -> 0 | AH33: =Est2020DistRev!T33/2 -> 0 | AI33: =Est2020DistRev!U33/2 -> 0 | AJ33: =Est2020DistRev!V33/2 -> 0 | AK33: =Est2020DistRev!W33/2 -> 0 | AL33: =Est2020DistRev!X33/2 -> 0 | AM33: =Est2020DistRev!Y33/2 -> 0 | AN33: =Est2020DistRev!Z33/2 -> 0 | AO33: =Est2020DistRev!AA33/2 -> 0 | AP33: =Est2020DistRev!AB33/2 -> 0 | AQ33: =Est2020DistRev!AC33/2 -> 0 | AR33: =Est2020DistRev!AD33/2 -> 0 | AT33: 0 | AU33: 0 | AV33: 0 | AW33: 0 | AX33: 0 | AY33: 0 | AZ33: 0 | BA33: 0 | BB33: 0 | BC33: 0 | BD33: 0 | BE33: 0 | BF33: 0 | BG33: 0 | BI33: 0 | BJ33: 0 | BK33: 0 | BL33: 0 | BM33: 0 | BN33: 0 | BO33: 0 | BP33: 0 | BQ33: 0 | BR33: 0 | BS33: 0 | BT33: 0 | BU33: 0 | BV33: 0
R34: =Est2020DistRev!D34 -> 0 | S34: =Est2020DistRev!E34 -> 0 | T34: =Est2020DistRev!F34 -> 0 | U34: =Est2020DistRev!G34 -> 0 | V34: =Est2020DistRev!H34 -> 0 | W34: =Est2020DistRev!I34 -> 0 | X34: =Est2020DistRev!J34 -> 0 | Y34: =Est2020DistRev!K34 -> 0 | Z34: =Est2020DistRev!L34 -> 0 | AA34: =Est2020DistRev!M34 -> 0 | AB34: =Est2020DistRev!N34 -> 0 | AC34: =Est2020DistRev!O34 -> 0 | AD34: =Est2020DistRev!P34 -> 0 | AF34: =Est2020DistRev!R34/2 -> 0 | AG34: =Est2020DistRev!S34/2 -> 0 | AH34: =Est2020DistRev!T34/2 -> 0 | AI34: =Est2020DistRev!U34/2 -> 0 | AJ34: =Est2020DistRev!V34/2 -> 0 | AK34: =Est2020DistRev!W34/2 -> 0 | AL34: =Est2020DistRev!X34/2 -> 0 | AM34: =Est2020DistRev!Y34/2 -> 0 | AN34: =Est2020DistRev!Z34/2 -> 0 | AO34: =Est2020DistRev!AA34/2 -> 0 | AP34: =Est2020DistRev!AB34/2 -> 0 | AQ34: =Est2020DistRev!AC34/2 -> 0 | AR34: =Est2020DistRev!AD34/2 -> 0 | AT34: 0 | AU34: 0 | AV34: 0 | AW34: 0 | AX34: 0 | AY34: 0 | AZ34: 0 | BA34: 0 | BB34: 0 | BC34: 0 | BD34: 0 | BE34: 0 | BF34: 0 | BG34: 0 | BI34: 0 | BJ34: 0 | BK34: 0 | BL34: 0 | BM34: 0 | BN34: 0 | BO34: 0 | BP34: 0 | BQ34: 0 | BR34: 0 | BS34: 0 | BT34: 0 | BU34: 0 | BV34: 0
R35: =Est2020DistRev!D35 -> 0 | S35: =Est2020DistRev!E35 -> 0 | T35: =Est2020DistRev!F35 -> 0 | U35: =Est2020DistRev!G35 -> 0 | V35: =Est2020DistRev!H35 -> 0 | W35: =Est2020DistRev!I35 -> 0 | X35: =Est2020DistRev!J35 -> 0 | Y35: =Est2020DistRev!K35 -> 0 | Z35: =Est2020DistRev!L35 -> 0 | AA35: =Est2020DistRev!M35 -> 0 | AB35: =Est2020DistRev!N35 -> 0 | AC35: =Est2020DistRev!O35 -> 0 | AD35: =Est2020DistRev!P35 -> 0 | AF35: =Est2020DistRev!R35/2 -> 0 | AG35: =Est2020DistRev!S35/2 -> 0 | AH35: =Est2020DistRev!T35/2 -> 0 | AI35: =Est2020DistRev!U35/2 -> 0 | AJ35: =Est2020DistRev!V35/2 -> 0 | AK35: =Est2020DistRev!W35/2 -> 0 | AL35: =Est2020DistRev!X35/2 -> 0 | AM35: =Est2020DistRev!Y35/2 -> 0 | AN35: =Est2020DistRev!Z35/2 -> 0 | AO35: =Est2020DistRev!AA35/2 -> 0 | AP35: =Est2020DistRev!AB35/2 -> 0 | AQ35: =Est2020DistRev!AC35/2 -> 0 | AR35: =Est2020DistRev!AD35/2 -> 0 | AT35: 0 | AU35: 0 | AV35: 0 | AW35: 0 | AX35: 0 | AY35: 0 | AZ35: 0 | BA35: 0 | BB35: =L35/100*AN35 -> 0 | BC35: 0 | BD35: 0 | BE35: 0 | BF35: 0 | BG35: 0 | BI35: 0 | BJ35: 0 | BK35: 0 | BL35: 0 | BM35: 0 | BN35: 0 | BO35: 0 | BP35: 0 | BQ35: 0 | BR35: 0 | BS35: 0 | BT35: 0 | BU35: 0 | BV35: 0
R36: =Est2020DistRev!D36 -> 0 | S36: =Est2020DistRev!E36 -> 0 | T36: =Est2020DistRev!F36 -> 0 | U36: =Est2020DistRev!G36 -> 0 | V36: =Est2020DistRev!H36 -> 0 | W36: =Est2020DistRev!I36 -> 0 | X36: =Est2020DistRev!J36 -> 0 | Y36: =Est2020DistRev!K36 -> 0 | Z36: =Est2020DistRev!L36 -> 0 | AA36: =Est2020DistRev!M36 -> 0 | AB36: =Est2020DistRev!N36 -> 0 | AC36: =Est2020DistRev!O36 -> 0 | AD36: =Est2020DistRev!P36 -> 0 | AF36: =Est2020DistRev!R36/2 -> 0 | AG36: =Est2020DistRev!S36/2 -> 0 | AH36: =Est2020DistRev!T36/2 -> 0 | AI36: =Est2020DistRev!U36/2 -> 0 | AJ36: =Est2020DistRev!V36/2 -> 0 | AK36: =Est2020DistRev!W36/2 -> 0 | AL36: =Est2020DistRev!X36/2 -> 0 | AM36: =Est2020DistRev!Y36/2 -> 0 | AN36: =Est2020DistRev!Z36/2 -> 0 | AO36: =Est2020DistRev!AA36/2 -> 0 | AP36: =Est2020DistRev!AB36/2 -> 0 | AQ36: =Est2020DistRev!AC36/2 -> 0 | AR36: =Est2020DistRev!AD36/2 -> 0 | AT36: 0 | AU36: 0 | AV36: 0 | AW36: 0 | AX36: 0 | AY36: 0 | AZ36: 0 | BA36: 0 | BB36: 0 | BC36: 0 | BD36: 0 | BE36: 0 | BF36: 0 | BG36: 0 | BI36: 0 | BJ36: 0 | BK36: 0 | BL36: 0 | BM36: 0 | BN36: 0 | BO36: 0 | BP36: 0 | BQ36: 0 | BR36: 0 | BS36: 0 | BT36: 0 | BU36: 0 | BV36: 0
R37: =Est2020DistRev!D37 -> 0 | S37: =Est2020DistRev!E37 -> 0 | T37: =Est2020DistRev!F37 -> 0 | U37: =Est2020DistRev!G37 -> 0 | V37: =Est2020DistRev!H37 -> 0 | W37: =Est2020DistRev!I37 -> 0 | X37: =Est2020DistRev!J37 -> 0 | Y37: =Est2020DistRev!K37 -> 0 | Z37: =Est2020DistRev!L37 -> 0 | AA37: =Est2020DistRev!M37 -> 0 | AB37: =Est2020DistRev!N37 -> 0 | AC37: =Est2020DistRev!O37 -> 0 | AD37: =Est2020DistRev!P37 -> 0 | AF37: =Est2020DistRev!R37/2 -> 0 | AG37: =Est2020DistRev!S37/2 -> 0 | AH37: =Est2020DistRev!T37/2 -> 0 | AI37: =Est2020DistRev!U37/2 -> 0 | AJ37: =Est2020DistRev!V37/2 -> 0 | AK37: =Est2020DistRev!W37/2 -> 0 | AL37: =Est2020DistRev!X37/2 -> 0 | AM37: =Est2020DistRev!Y37/2 -> 0 | AN37: =Est2020DistRev!Z37/2 -> 0 | AO37: =Est2020DistRev!AA37/2 -> 0 | AP37: =Est2020DistRev!AB37/2 -> 0 | AQ37: =Est2020DistRev!AC37/2 -> 0 | AR37: =Est2020DistRev!AD37/2 -> 0 | AT37: 0 | AU37: 0 | AV37: 0 | AW37: 0 | AX37: 0 | AY37: 0 | AZ37: 0 | BA37: 0 | BB37: 0 | BC37: 0 | BD37: 0 | BE37: 0 | BF37: 0 | BG37: 0 | BI37: 0 | BJ37: 0 | BK37: 0 | BL37: 0 | BM37: 0 | BN37: 0 | BO37: 0 | BP37: 0 | BQ37: 0 | BR37: 0 | BS37: 0 | BT37: 0 | BU37: 0 | BV37: 0
R38: =Est2020DistRev!D38 -> 0 | S38: =Est2020DistRev!E38 -> 0 | T38: =Est2020DistRev!F38 -> 0 | U38: =Est2020DistRev!G38 -> 0 | V38: =Est2020DistRev!H38 -> 0 | W38: =Est2020DistRev!I38 -> 0 | X38: =Est2020DistRev!J38 -> 0 | Y38: =Est2020DistRev!K38 -> 0 | Z38: =Est2020DistRev!L38 -> 0 | AA38: =Est2020DistRev!M38 -> 0 | AB38: =Est2020DistRev!N38 -> 0 | AC38: =Est2020DistRev!O38 -> 0 | AD38: =Est2020DistRev!P38 -> 0 | AF38: =Est2020DistRev!R38/2 -> 0 | AG38: =Est2020DistRev!S38/2 -> 0 | AH38: =Est2020DistRev!T38/2 -> 0 | AI38: =Est2020DistRev!U38/2 -> 0 | AJ38: =Est2020DistRev!V38/2 -> 0 | AK38: =Est2020DistRev!W38/2 -> 0 | AL38: =Est2020DistRev!X38/2 -> 0 | AM38: =Est2020DistRev!Y38/2 -> 0 | AN38: =Est2020DistRev!Z38/2 -> 0 | AO38: =Est2020DistRev!AA38/2 -> 0 | AP38: =Est2020DistRev!AB38/2 -> 0 | AQ38: =Est2020DistRev!AC38/2 -> 0 | AR38: =Est2020DistRev!AD38/2 -> 0 | AT38: 0 | AU38: 0 | AV38: 0 | AW38: 0 | AX38: 0 | AY38: 0 | AZ38: 0 | BA38: 0 | BB38: 0 | BC38: 0 | BD38: 0 | BE38: 0 | BF38: 0 | BG38: 0 | BI38: 0 | BJ38: 0 | BK38: 0 | BL38: 0 | BM38: 0 | BN38: 0 | BO38: 0 | BP38: 0 | BQ38: 0 | BR38: 0 | BS38: 0 | BT38: 0 | BU38: 0 | BV38: 0
R39: =Est2020DistRev!D39 -> 0 | S39: =Est2020DistRev!E39 -> 0 | T39: =Est2020DistRev!F39 -> 0 | U39: =Est2020DistRev!G39 -> 0 | V39: =Est2020DistRev!H39 -> 0 | W39: =Est2020DistRev!I39 -> 0 | X39: =Est2020DistRev!J39 -> 0 | Y39: =Est2020DistRev!K39 -> 0 | Z39: =Est2020DistRev!L39 -> 0 | AA39: =Est2020DistRev!M39 -> 0 | AB39: =Est2020DistRev!N39 -> 0 | AC39: =Est2020DistRev!O39 -> 0 | AD39: =Est2020DistRev!P39 -> 0 | AF39: =Est2020DistRev!R39/2 -> 0 | AG39: =Est2020DistRev!S39/2 -> 0 | AH39: =Est2020DistRev!T39/2 -> 0 | AI39: =Est2020DistRev!U39/2 -> 0 | AJ39: =Est2020DistRev!V39/2 -> 0 | AK39: =Est2020DistRev!W39/2 -> 0 | AL39: =Est2020DistRev!X39/2 -> 0 | AM39: =Est2020DistRev!Y39/2 -> 0 | AN39: =Est2020DistRev!Z39/2 -> 0 | AO39: =Est2020DistRev!AA39/2 -> 0 | AP39: =Est2020DistRev!AB39/2 -> 0 | AQ39: =Est2020DistRev!AC39/2 -> 0 | AR39: =Est2020DistRev!AD39/2 -> 0 | AT39: 0 | AU39: 0 | AV39: 0 | AW39: 0 | AX39: 0 | AY39: 0 | AZ39: 0 | BA39: 0 | BB39: 0 | BC39: 0 | BD39: 0 | BE39: 0 | BF39: 0 | BG39: 0 | BI39: 0 | BJ39: 0 | BK39: 0 | BL39: 0 | BM39: 0 | BN39: 0 | BO39: 0 | BP39: 0 | BQ39: 0 | BR39: 0 | BS39: 0 | BT39: 0 | BU39: 0 | BV39: 0
R40: =Est2020DistRev!D40 -> 0 | S40: =Est2020DistRev!E40 -> 0 | T40: =Est2020DistRev!F40 -> 0 | U40: =Est2020DistRev!G40 -> 0 | V40: =Est2020DistRev!H40 -> 0 | W40: =Est2020DistRev!I40 -> 0 | X40: =Est2020DistRev!J40 -> 0 | Y40: =Est2020DistRev!K40 -> 0 | Z40: =Est2020DistRev!L40 -> 0 | AA40: =Est2020DistRev!M40 -> 0 | AB40: =Est2020DistRev!N40 -> 0 | AC40: =Est2020DistRev!O40 -> 0 | AD40: =Est2020DistRev!P40 -> 0 | AF40: =Est2020DistRev!R40/2 -> 0 | AG40: =Est2020DistRev!S40/2 -> 0 | AH40: =Est2020DistRev!T40/2 -> 0 | AI40: =Est2020DistRev!U40/2 -> 0 | AJ40: =Est2020DistRev!V40/2 -> 0 | AK40: =Est2020DistRev!W40/2 -> 0 | AL40: =Est2020DistRev!X40/2 -> 0 | AM40: =Est2020DistRev!Y40/2 -> 0 | AN40: =Est2020DistRev!Z40/2 -> 0 | AO40: =Est2020DistRev!AA40/2 -> 0 | AP40: =Est2020DistRev!AB40/2 -> 0 | AQ40: =Est2020DistRev!AC40/2 -> 0 | AR40: =Est2020DistRev!AD40/2 -> 0 | AT40: 0 | AU40: 0 | AV40: 0 | AW40: 0 | AX40: 0 | AY40: 0 | AZ40: 0 | BA40: 0 | BB40: 0 | BC40: 0 | BD40: 0 | BE40: 0 | BF40: 0 | BG40: 0 | BI40: 0 | BJ40: 0 | BK40: 0 | BL40: 0 | BM40: 0 | BN40: 0 | BO40: 0 | BP40: 0 | BQ40: 0 | BR40: 0 | BS40: 0 | BT40: 0 | BU40: 0 | BV40: 0
R41: =Est2020DistRev!D41 -> 0 | S41: =Est2020DistRev!E41 -> 0 | T41: =Est2020DistRev!F41 -> 0 | U41: =Est2020DistRev!G41 -> 0 | V41: =Est2020DistRev!H41 -> 0 | W41: =Est2020DistRev!I41 -> 0 | X41: =Est2020DistRev!J41 -> 0 | Y41: =Est2020DistRev!K41 -> 0 | Z41: =Est2020DistRev!L41 -> 0 | AA41: =Est2020DistRev!M41 -> 0 | AB41: =Est2020DistRev!N41 -> 0 | AC41: =Est2020DistRev!O41 -> 0 | AD41: =Est2020DistRev!P41 -> 0 | AF41: =Est2020DistRev!R41/2 -> 0 | AG41: =Est2020DistRev!S41/2 -> 0 | AH41: =Est2020DistRev!T41/2 -> 0 | AI41: =Est2020DistRev!U41/2 -> 0 | AJ41: =Est2020DistRev!V41/2 -> 0 | AK41: =Est2020DistRev!W41/2 -> 0 | AL41: =Est2020DistRev!X41/2 -> 0 | AM41: =Est2020DistRev!Y41/2 -> 0 | AN41: =Est2020DistRev!Z41/2 -> 0 | AO41: =Est2020DistRev!AA41/2 -> 0 | AP41: =Est2020DistRev!AB41/2 -> 0 | AQ41: =Est2020DistRev!AC41/2 -> 0 | AR41: =Est2020DistRev!AD41/2 -> 0 | AT41: 0 | AU41: 0 | AV41: 0 | AW41: 0 | AX41: 0 | AY41: 0 | AZ41: 0 | BA41: 0 | BB41: 0 | BC41: 0 | BD41: 0 | BE41: 0 | BF41: 0 | BG41: 0 | BI41: 0 | BJ41: 0 | BK41: 0 | BL41: 0 | BM41: 0 | BN41: 0 | BO41: 0 | BP41: 0 | BQ41: 0 | BR41: 0 | BS41: 0 | BT41: 0 | BU41: 0 | BV41: 0
R42: =Est2020DistRev!D42 -> 0 | S42: =Est2020DistRev!E42 -> 0 | T42: =Est2020DistRev!F42 -> 0 | U42: =Est2020DistRev!G42 -> 0 | V42: =Est2020DistRev!H42 -> 0 | W42: =Est2020DistRev!I42 -> 0 | X42: =Est2020DistRev!J42 -> 0 | Y42: =Est2020DistRev!K42 -> 0 | Z42: =Est2020DistRev!L42 -> 0 | AA42: =Est2020DistRev!M42 -> 0 | AB42: =Est2020DistRev!N42 -> 0 | AC42: =Est2020DistRev!O42 -> 0 | AD42: =Est2020DistRev!P42 -> 0 | AF42: =Est2020DistRev!R42/2 -> 0 | AG42: =Est2020DistRev!S42/2 -> 0 | AH42: =Est2020DistRev!T42/2 -> 0 | AI42: =Est2020DistRev!U42/2 -> 0 | AJ42: =Est2020DistRev!V42/2 -> 0 | AK42: =Est2020DistRev!W42/2 -> 0 | AL42: =Est2020DistRev!X42/2 -> 0 | AM42: =Est2020DistRev!Y42/2 -> 0 | AN42: =Est2020DistRev!Z42/2 -> 0 | AO42: =Est2020DistRev!AA42/2 -> 0 | AP42: =Est2020DistRev!AB42/2 -> 0 | AQ42: =Est2020DistRev!AC42/2 -> 0 | AR42: =Est2020DistRev!AD42/2 -> 0 | AT42: 0 | AU42: 0 | AV42: 0 | AW42: 0 | AX42: 0 | AY42: 0 | AZ42: 0 | BA42: 0 | BB42: 0 | BC42: 0 | BD42: 0 | BE42: 0 | BF42: 0 | BG42: 0 | BI42: 0 | BJ42: 0 | BK42: 0 | BL42: 0 | BM42: 0 | BN42: 0 | BO42: 0 | BP42: 0 | BQ42: 0 | BR42: 0 | BS42: 0 | BT42: 0 | BU42: 0 | BV42: 0
R43: =Est2020DistRev!D43 -> 0 | S43: =Est2020DistRev!E43 -> 0 | T43: =Est2020DistRev!F43 -> 0 | U43: =Est2020DistRev!G43 -> 0 | V43: =Est2020DistRev!H43 -> 0 | W43: =Est2020DistRev!I43 -> 0 | X43: =Est2020DistRev!J43 -> 0 | Y43: =Est2020DistRev!K43 -> 0 | Z43: =Est2020DistRev!L43 -> 0 | AA43: =Est2020DistRev!M43 -> 0 | AB43: =Est2020DistRev!N43 -> 0 | AC43: =Est2020DistRev!O43 -> 0 | AD43: =Est2020DistRev!P43 -> 0 | AF43: =Est2020DistRev!R43/2 -> 0 | AG43: =Est2020DistRev!S43/2 -> 0 | AH43: =Est2020DistRev!T43/2 -> 0 | AI43: =Est2020DistRev!U43/2 -> 0 | AJ43: =Est2020DistRev!V43/2 -> 0 | AK43: =Est2020DistRev!W43/2 -> 0 | AL43: =Est2020DistRev!X43/2 -> 0 | AM43: =Est2020DistRev!Y43/2 -> 0 | AN43: =Est2020DistRev!Z43/2 -> 0 | AO43: =Est2020DistRev!AA43/2 -> 0 | AP43: =Est2020DistRev!AB43/2 -> 0 | AQ43: =Est2020DistRev!AC43/2 -> 0 | AR43: =Est2020DistRev!AD43/2 -> 0 | AT43: 0 | AU43: 0 | AV43: 0 | AW43: 0 | AX43: 0 | AY43: 0 | AZ43: 0 | BA43: 0 | BB43: 0 | BC43: 0 | BD43: 0 | BE43: 0 | BF43: 0 | BG43: 0 | BI43: 0 | BJ43: 0 | BK43: 0 | BL43: 0 | BM43: 0 | BN43: 0 | BO43: 0 | BP43: 0 | BQ43: 0 | BR43: 0 | BS43: 0 | BT43: 0 | BU43: 0 | BV43: 0
R44: =Est2020DistRev!D44 -> 0 | S44: =Est2020DistRev!E44 -> 0 | T44: =Est2020DistRev!F44 -> 0 | U44: =Est2020DistRev!G44 -> 0 | V44: =Est2020DistRev!H44 -> 0 | W44: =Est2020DistRev!I44 -> 0 | X44: =Est2020DistRev!J44 -> 0 | Y44: =Est2020DistRev!K44 -> 0 | Z44: =Est2020DistRev!L44 -> 0 | AA44: =Est2020DistRev!M44 -> 0 | AB44: =Est2020DistRev!N44 -> 0 | AC44: =Est2020DistRev!O44 -> 0 | AD44: =Est2020DistRev!P44 -> 0 | AF44: =Est2020DistRev!R44/2 -> 0 | AG44: =Est2020DistRev!S44/2 -> 0 | AH44: =Est2020DistRev!T44/2 -> 0 | AI44: =Est2020DistRev!U44/2 -> 0 | AJ44: =Est2020DistRev!V44/2 -> 0 | AK44: =Est2020DistRev!W44/2 -> 0 | AL44: =Est2020DistRev!X44/2 -> 0 | AM44: =Est2020DistRev!Y44/2 -> 0 | AN44: =Est2020DistRev!Z44/2 -> 0 | AO44: =Est2020DistRev!AA44/2 -> 0 | AP44: =Est2020DistRev!AB44/2 -> 0 | AQ44: =Est2020DistRev!AC44/2 -> 0 | AR44: =Est2020DistRev!AD44/2 -> 0 | AT44: 0 | AU44: 0 | AV44: 0 | AW44: 0 | AX44: 0 | AY44: 0 | AZ44: 0 | BA44: 0 | BB44: 0 | BC44: 0 | BD44: 0 | BE44: 0 | BF44: 0 | BG44: 0 | BI44: 0 | BJ44: 0 | BK44: 0 | BL44: 0 | BM44: 0 | BN44: 0 | BO44: 0 | BP44: 0 | BQ44: 0 | BR44: 0 | BS44: 0 | BT44: 0 | BU44: 0 | BV44: 0
R45: =Est2020DistRev!D45 -> 0 | S45: =Est2020DistRev!E45 -> 0 | T45: =Est2020DistRev!F45 -> 0 | U45: =Est2020DistRev!G45 -> 0 | V45: =Est2020DistRev!H45 -> 0 | W45: =Est2020DistRev!I45 -> 0 | X45: =Est2020DistRev!J45 -> 0 | Y45: =Est2020DistRev!K45 -> 0 | Z45: =Est2020DistRev!L45 -> 0 | AA45: =Est2020DistRev!M45 -> 0 | AB45: =Est2020DistRev!N45 -> 0 | AC45: =Est2020DistRev!O45 -> 0 | AD45: =Est2020DistRev!P45 -> 0 | AF45: =Est2020DistRev!R45/2 -> 0 | AG45: =Est2020DistRev!S45/2 -> 0 | AH45: =Est2020DistRev!T45/2 -> 0 | AI45: =Est2020DistRev!U45/2 -> 0 | AJ45: =Est2020DistRev!V45/2 -> 0 | AK45: =Est2020DistRev!W45/2 -> 0 | AL45: =Est2020DistRev!X45/2 -> 0 | AM45: =Est2020DistRev!Y45/2 -> 0 | AN45: =Est2020DistRev!Z45/2 -> 0 | AO45: =Est2020DistRev!AA45/2 -> 0 | AP45: =Est2020DistRev!AB45/2 -> 0 | AQ45: =Est2020DistRev!AC45/2 -> 0 | AR45: =Est2020DistRev!AD45/2 -> 0 | AT45: 0 | AU45: 0 | AV45: 0 | AW45: 0 | AX45: 0 | AY45: 0 | AZ45: 0 | BA45: 0 | BB45: 0 | BC45: 0 | BD45: 0 | BE45: 0 | BF45: 0 | BG45: 0 | BI45: 0 | BJ45: 0 | BK45: 0 | BL45: 0 | BM45: 0 | BN45: 0 | BO45: 0 | BP45: 0 | BQ45: 0 | BR45: 0 | BS45: 0 | BT45: 0 | BU45: 0 | BV45: 0
R46: =Est2020DistRev!D46 -> 0 | S46: =Est2020DistRev!E46 -> 0 | T46: =Est2020DistRev!F46 -> 0 | U46: =Est2020DistRev!G46 -> 0 | V46: =Est2020DistRev!H46 -> 0 | W46: =Est2020DistRev!I46 -> 0 | X46: =Est2020DistRev!J46 -> 0 | Y46: =Est2020DistRev!K46 -> 0 | Z46: =Est2020DistRev!L46 -> 0 | AA46: =Est2020DistRev!M46 -> 0 | AB46: =Est2020DistRev!N46 -> 0 | AC46: =Est2020DistRev!O46 -> 0 | AD46: =Est2020DistRev!P46 -> 0 | AF46: =Est2020DistRev!R46/2 -> 0 | AG46: =Est2020DistRev!S46/2 -> 0 | AH46: =Est2020DistRev!T46/2 -> 0 | AI46: =Est2020DistRev!U46/2 -> 0 | AJ46: =Est2020DistRev!V46/2 -> 0 | AK46: =Est2020DistRev!W46/2 -> 0 | AL46: =Est2020DistRev!X46/2 -> 0 | AM46: =Est2020DistRev!Y46/2 -> 0 | AN46: =Est2020DistRev!Z46/2 -> 0 | AO46: =Est2020DistRev!AA46/2 -> 0 | AP46: =Est2020DistRev!AB46/2 -> 0 | AQ46: =Est2020DistRev!AC46/2 -> 0 | AR46: =Est2020DistRev!AD46/2 -> 0 | AT46: 0 | AU46: 0 | AV46: 0 | AW46: 0 | AX46: 0 | AY46: 0 | AZ46: 0 | BA46: 0 | BB46: 0 | BC46: 0 | BD46: 0 | BE46: 0 | BF46: 0 | BG46: 0 | BI46: 0 | BJ46: 0 | BK46: 0 | BL46: 0 | BM46: 0 | BN46: 0 | BO46: 0 | BP46: 0 | BQ46: 0 | BR46: 0 | BS46: 0 | BT46: 0 | BU46: 0 | BV46: 0
R47: =Est2020DistRev!D47 -> 0 | S47: =Est2020DistRev!E47 -> 0 | T47: =Est2020DistRev!F47 -> 0 | U47: =Est2020DistRev!G47 -> 0 | V47: =Est2020DistRev!H47 -> 0 | W47: =Est2020DistRev!I47 -> 0 | X47: =Est2020DistRev!J47 -> 0 | Y47: =Est2020DistRev!K47 -> 0 | Z47: =Est2020DistRev!L47 -> 0 | AA47: =Est2020DistRev!M47 -> 0 | AB47: =Est2020DistRev!N47 -> 0 | AC47: =Est2020DistRev!O47 -> 0 | AD47: =Est2020DistRev!P47 -> 0 | AF47: =Est2020DistRev!R47/2 -> 0 | AG47: =Est2020DistRev!S47/2 -> 0 | AH47: =Est2020DistRev!T47/2 -> 0 | AI47: =Est2020DistRev!U47/2 -> 0 | AJ47: =Est2020DistRev!V47/2 -> 0 | AK47: =Est2020DistRev!W47/2 -> 0 | AL47: =Est2020DistRev!X47/2 -> 0 | AM47: =Est2020DistRev!Y47/2 -> 0 | AN47: =Est2020DistRev!Z47/2 -> 0 | AO47: =Est2020DistRev!AA47/2 -> 0 | AP47: =Est2020DistRev!AB47/2 -> 0 | AQ47: =Est2020DistRev!AC47/2 -> 0 | AR47: =Est2020DistRev!AD47/2 -> 0 | AT47: 0 | AU47: 0 | AV47: 0 | AW47: 0 | AX47: 0 | AY47: 0 | AZ47: 0 | BA47: 0 | BB47: 0 | BC47: 0 | BD47: 0 | BE47: 0 | BF47: 0 | BG47: 0 | BI47: 0 | BJ47: 0 | BK47: 0 | BL47: 0 | BM47: 0 | BN47: 0 | BO47: 0 | BP47: 0 | BQ47: 0 | BR47: 0 | BS47: 0 | BT47: 0 | BU47: 0 | BV47: 0
R48: =Est2020DistRev!D48 -> 0 | S48: =Est2020DistRev!E48 -> 0 | T48: =Est2020DistRev!F48 -> 0 | U48: =Est2020DistRev!G48 -> 0 | V48: =Est2020DistRev!H48 -> 0 | W48: =Est2020DistRev!I48 -> 0 | X48: =Est2020DistRev!J48 -> 0 | Y48: =Est2020DistRev!K48 -> 0 | Z48: =Est2020DistRev!L48 -> 0 | AA48: =Est2020DistRev!M48 -> 0 | AB48: =Est2020DistRev!N48 -> 0 | AC48: =Est2020DistRev!O48 -> 0 | AD48: =Est2020DistRev!P48 -> 0 | AF48: =Est2020DistRev!R48/2 -> 0 | AG48: =Est2020DistRev!S48/2 -> 0 | AH48: =Est2020DistRev!T48/2 -> 0 | AI48: =Est2020DistRev!U48/2 -> 0 | AJ48: =Est2020DistRev!V48/2 -> 0 | AK48: =Est2020DistRev!W48/2 -> 0 | AL48: =Est2020DistRev!X48/2 -> 0 | AM48: =Est2020DistRev!Y48/2 -> 0 | AN48: =Est2020DistRev!Z48/2 -> 0 | AO48: =Est2020DistRev!AA48/2 -> 0 | AP48: =Est2020DistRev!AB48/2 -> 0 | AQ48: =Est2020DistRev!AC48/2 -> 0 | AR48: =Est2020DistRev!AD48/2 -> 0 | AT48: 0 | AU48: 0 | AV48: 0 | AW48: 0 | AX48: 0 | AY48: 0 | AZ48: 0 | BA48: 0 | BB48: 0 | BC48: 0 | BD48: 0 | BE48: 0 | BF48: 0 | BG48: 0 | BI48: 0 | BJ48: 0 | BK48: 0 | BL48: 0 | BM48: 0 | BN48: 0 | BO48: 0 | BP48: 0 | BQ48: 0 | BR48: 0 | BS48: 0 | BT48: 0 | BU48: 0 | BV48: 0
R49: =Est2020DistRev!D49 -> 0 | S49: =Est2020DistRev!E49 -> 0 | T49: =Est2020DistRev!F49 -> 0 | U49: =Est2020DistRev!G49 -> 0 | V49: =Est2020DistRev!H49 -> 0 | W49: =Est2020DistRev!I49 -> 0 | X49: =Est2020DistRev!J49 -> 0 | Y49: =Est2020DistRev!K49 -> 0 | Z49: =Est2020DistRev!L49 -> 0 | AA49: =Est2020DistRev!M49 -> 0 | AB49: =Est2020DistRev!N49 -> 0 | AC49: =Est2020DistRev!O49 -> 0 | AD49: =Est2020DistRev!P49 -> 0 | AF49: =Est2020DistRev!R49/2 -> 0 | AG49: =Est2020DistRev!S49/2 -> 0 | AH49: =Est2020DistRev!T49/2 -> 0 | AI49: =Est2020DistRev!U49/2 -> 0 | AJ49: =Est2020DistRev!V49/2 -> 0 | AK49: =Est2020DistRev!W49/2 -> 0 | AL49: =Est2020DistRev!X49/2 -> 0 | AM49: =Est2020DistRev!Y49/2 -> 0 | AN49: =Est2020DistRev!Z49/2 -> 0 | AO49: =Est2020DistRev!AA49/2 -> 0 | AP49: =Est2020DistRev!AB49/2 -> 0 | AQ49: =Est2020DistRev!AC49/2 -> 0 | AR49: =Est2020DistRev!AD49/2 -> 0 | AT49: 0 | AU49: 0 | AV49: 0 | AW49: 0 | AX49: 0 | AY49: 0 | AZ49: 0 | BA49: 0 | BB49: 0 | BC49: 0 | BD49: 0 | BE49: 0 | BF49: 0 | BG49: 0 | BI49: 0 | BJ49: 0 | BK49: 0 | BL49: 0 | BM49: 0 | BN49: 0 | BO49: 0 | BP49: 0 | BQ49: 0 | BR49: 0 | BS49: 0 | BT49: 0 | BU49: 0 | BV49: 0
R50: =Est2020DistRev!D50 -> 0 | S50: =Est2020DistRev!E50 -> 0 | T50: =Est2020DistRev!F50 -> 0 | U50: =Est2020DistRev!G50 -> 0 | V50: =Est2020DistRev!H50 -> 0 | W50: =Est2020DistRev!I50 -> 0 | X50: =Est2020DistRev!J50 -> 0 | Y50: =Est2020DistRev!K50 -> 0 | Z50: =Est2020DistRev!L50 -> 0 | AA50: =Est2020DistRev!M50 -> 0 | AB50: =Est2020DistRev!N50 -> 0 | AC50: =Est2020DistRev!O50 -> 0 | AD50: =Est2020DistRev!P50 -> 0 | AF50: =Est2020DistRev!R50/2 -> 0 | AG50: =Est2020DistRev!S50/2 -> 0 | AH50: =Est2020DistRev!T50/2 -> 0 | AI50: =Est2020DistRev!U50/2 -> 0 | AJ50: =Est2020DistRev!V50/2 -> 0 | AK50: =Est2020DistRev!W50/2 -> 0 | AL50: =Est2020DistRev!X50/2 -> 0 | AM50: =Est2020DistRev!Y50/2 -> 0 | AN50: =Est2020DistRev!Z50/2 -> 0 | AO50: =Est2020DistRev!AA50/2 -> 0 | AP50: =Est2020DistRev!AB50/2 -> 0 | AQ50: =Est2020DistRev!AC50/2 -> 0 | AR50: =Est2020DistRev!AD50/2 -> 0 | AT50: 0 | AU50: 0 | AV50: 0 | AW50: 0 | AX50: 0 | AY50: 0 | AZ50: 0 | BA50: 0 | BB50: 0 | BC50: 0 | BD50: 0 | BE50: 0 | BF50: 0 | BG50: 0 | BI50: 0 | BJ50: 0 | BK50: 0 | BL50: 0 | BM50: 0 | BN50: 0 | BO50: 0 | BP50: 0 | BQ50: 0 | BR50: 0 | BS50: 0 | BT50: 0 | BU50: 0 | BV50: 0
R51: =Est2020DistRev!D51 -> 0 | S51: =Est2020DistRev!E51 -> 0 | T51: =Est2020DistRev!F51 -> 0 | U51: =Est2020DistRev!G51 -> 0 | V51: =Est2020DistRev!H51 -> 0 | W51: =Est2020DistRev!I51 -> 0 | X51: =Est2020DistRev!J51 -> 0 | Y51: =Est2020DistRev!K51 -> 0 | Z51: =Est2020DistRev!L51 -> 0 | AA51: =Est2020DistRev!M51 -> 0 | AB51: =Est2020DistRev!N51 -> 0 | AC51: =Est2020DistRev!O51 -> 0 | AD51: =Est2020DistRev!P51 -> 0 | AF51: =Est2020DistRev!R51/2 -> 0 | AG51: =Est2020DistRev!S51/2 -> 0 | AH51: =Est2020DistRev!T51/2 -> 0 | AI51: =Est2020DistRev!U51/2 -> 0 | AJ51: =Est2020DistRev!V51/2 -> 0 | AK51: =Est2020DistRev!W51/2 -> 0 | AL51: =Est2020DistRev!X51/2 -> 0 | AM51: =Est2020DistRev!Y51/2 -> 0 | AN51: =Est2020DistRev!Z51/2 -> 0 | AO51: =Est2020DistRev!AA51/2 -> 0 | AP51: =Est2020DistRev!AB51/2 -> 0 | AQ51: =Est2020DistRev!AC51/2 -> 0 | AR51: =Est2020DistRev!AD51/2 -> 0 | AT51: 0 | AU51: 0 | AV51: 0 | AW51: 0 | AX51: 0 | AY51: 0 | AZ51: 0 | BA51: 0 | BB51: 0 | BC51: 0 | BD51: 0 | BE51: 0 | BF51: 0 | BG51: 0 | BI51: 0 | BJ51: 0 | BK51: 0 | BL51: 0 | BM51: 0 | BN51: 0 | BO51: 0 | BP51: 0 | BQ51: 0 | BR51: 0 | BS51: 0 | BT51: 0 | BU51: 0 | BV51: 0
AT52: 0 | AU52: 0 | AV52: 0 | AW52: 0 | AX52: 0 | AY52: 0 | AZ52: 0 | BA52: 0 | BB52: 0 | BC52: 0 | BD52: 0 | BE52: 0 | BF52: 0 | BG52: 0 | BI52: 0 | BJ52: 0 | BK52: 0 | BL52: 0 | BM52: 0 | BN52: 0 | BO52: 0 | BP52: 0 | BQ52: 0 | BR52: 0 | BS52: 0 | BT52: 0 | BU52: 0 | BV52: 0
AT53: 0 | AU53: 0 | AV53: 0 | AW53: 0 | AX53: 0 | AY53: 0 | AZ53: 0 | BA53: 0 | BB53: 0 | BC53: 0 | BD53: 0 | BE53: 0 | BF53: 0 | BG53: 0 | BI53: 0 | BJ53: 0 | BK53: 0 | BL53: 0 | BM53: 0 | BN53: 0 | BO53: 0 | BP53: 0 | BQ53: 0 | BR53: 0 | BS53: 0 | BT53: 0 | BU53: 0 | BV53: 0
AT54: 0 | AU54: 0 | AV54: 0 | AW54: 0 | AX54: 0 | AY54: 0 | AZ54: 0 | BA54: 0 | BB54: 0 | BC54: 0 | BD54: 0 | BE54: 0 | BF54: 0 | BG54: 0 | BI54: 0 | BJ54: 0 | BK54: 0 | BL54: 0 | BM54: 0 | BN54: 0 | BO54: 0 | BP54: 0 | BQ54: 0 | BR54: 0 | BS54: 0 | BT54: 0 | BU54: 0 | BV54: 0
AT55: 0 | AU55: 0 | AV55: 0 | AW55: 0 | AX55: 0 | AY55: 0 | AZ55: 0 | BA55: 0 | BB55: 0 | BC55: 0 | BD55: 0 | BE55: 0 | BF55: 0 | BG55: 0 | BI55: 0 | BJ55: 0 | BK55: 0 | BL55: 0 | BM55: 0 | BN55: 0 | BO55: 0 | BP55: 0 | BQ55: 0 | BR55: 0 | BS55: 0 | BT55: 0 | BU55: 0 | BV55: 0
AT56: 0 | AU56: 0 | AV56: 0 | AW56: 0 | AX56: 0 | AY56: 0 | AZ56: 0 | BA56: 0 | BB56: 0 | BC56: 0 | BD56: 0 | BE56: 0 | BF56: 0 | BG56: 0 | BI56: 0 | BJ56: 0 | BK56: 0 | BL56: 0 | BM56: 0 | BN56: 0 | BO56: 0 | BP56: 0 | BQ56: 0 | BR56: 0 | BS56: 0 | BT56: 0 | BU56: 0 | BV56: 0
AT57: 0 | AU57: 0 | AV57: 0 | AW57: 0 | AX57: 0 | AY57: 0 | AZ57: 0 | BA57: 0 | BB57: 0 | BC57: 0 | BD57: 0 | BE57: 0 | BF57: 0 | BG57: 0 | BI57: 0 | BJ57: 0 | BK57: 0 | BL57: 0 | BM57: 0 | BN57: 0 | BO57: 0 | BP57: 0 | BQ57: 0 | BR57: 0 | BS57: 0 | BT57: 0 | BU57: 0 | BV57: 0
AT58: 0 | AU58: 0 | AV58: 0 | AW58: 0 | AX58: 0 | AY58: 0 | AZ58: 0 | BA58: 0 | BB58: 0 | BC58: 0 | BD58: 0 | BE58: 0 | BF58: 0 | BG58: 0 | BI58: 0 | BJ58: 0 | BK58: 0 | BL58: 0 | BM58: 0 | BN58: 0 | BO58: 0 | BP58: 0 | BQ58: 0 | BR58: 0 | BS58: 0 | BT58: 0 | BU58: 0 | BV58: 0
AT59: 0 | AU59: 0 | AV59: 0 | AW59: 0 | AX59: 0 | AY59: 0 | AZ59: 0 | BA59: 0 | BB59: 0 | BC59: 0 | BD59: 0 | BE59: 0 | BF59: 0 | BG59: 0 | BI59: 0 | BJ59: 0 | BK59: 0 | BL59: 0 | BM59: 0 | BN59: 0 | BO59: 0 | BP59: 0 | BQ59: 0 | BR59: 0 | BS59: 0 | BT59: 0 | BU59: 0 | BV59: 0
AT60: 0 | AU60: 0 | AV60: 0 | AW60: 0 | AX60: 0 | AY60: 0 | AZ60: 0 | BA60: 0 | BB60: 0 | BC60: 0 | BD60: 0 | BE60: 0 | BF60: 0 | BG60: 0 | BI60: 0 | BJ60: 0 | BK60: 0 | BL60: 0 | BM60: 0 | BN60: 0 | BO60: 0 | BP60: 0 | BQ60: 0 | BR60: 0 | BS60: 0 | BT60: 0 | BU60: 0 | BV60: 0
AT61: 0 | AU61: 0 | AV61: 0 | AW61: 0 | AX61: 0 | AY61: 0 | AZ61: 0 | BA61: 0 | BB61: 0 | BC61: 0 | BD61: 0 | BE61: 0 | BF61: 0 | BG61: 0 | BI61: 0 | BJ61: 0 | BK61: 0 | BL61: 0 | BM61: 0 | BN61: 0 | BO61: 0 | BP61: 0 | BQ61: 0 | BR61: 0 | BS61: 0 | BT61: 0 | BU61: 0 | BV61: 0
AT62: 0 | AU62: 0 | AV62: 0 | AW62: 0 | AX62: 0 | AY62: 0 | AZ62: 0 | BA62: 0 | BB62: 0 | BC62: 0 | BD62: 0 | BE62: 0 | BF62: 0 | BG62: 0 | BI62: 0 | BJ62: 0 | BK62: 0 | BL62: 0 | BM62: 0 | BN62: 0 | BO62: 0 | BP62: 0 | BQ62: 0 | BR62: 0 | BS62: 0 | BT62: 0 | BU62: 0 | BV62: 0
AF63: =SUM(AF6:AF62) -> 138820319.4 | AG63: 669242857.5 | AH63: 9429491.821 | AI63: 596458888.2 | AJ63: 742096863.4 | AK63: 0 | AL63: 581129758.4 | AM63: 1129221349 | AN63: 12254683.83 | AO63: 213038558 | AP63: 78252863.42 | AQ63: 20417897.31 | AR63: 18342432.99 | AT63: =SUM(AT6:AT62) -> 14381166.76 | AU63: 38263327.2 | AV63: 326774.5639 | AW63: 14518634.54 | AX63: 42356160.13 | AY63: 0 | AZ63: 14737233.27 | BA63: 12252496.14 | BB63: 424543.055 | BC63: 23765889.77 | BD63: 12962680.84 | BE63: 6647043.008 | BF63: 3967933.592 | BG63: 184603882.9 | BI63: =SUM(BI6:BI62) -> 10600880.68 | BJ63: 51135989.03 | BK63: 435857.9652 | BL63: 19818393.02 | BM63: 56620586.19 | BN63: 0 | BO63: 17930819.26 | BP63: 16302640.09 | BQ63: 566274.5302 | BR63: 31444606.03 | BS63: 17254468.75 | BT63: 8874514.693 | BU63: 5299305.347 | BV63: 236284335.6

Sheet 2021DistRevCapForm
B2: ="Tariff Approval - "&'Model update'!$C$3 -> Tariff Approval - United Energy | C2: ='Model update'!$C$5&"DistRevCapForm" -> 2021DistRevCapForm
B4: DUoS
B6: Year (t) | C6: ='Model update'!C5 -> 2021
B8: Table 1- Compliance with AER Final Determination Total Annual Revenue
B9: Revenue from DUoS charges for year t | C9: =Prop2021DistTar!BG63 -> 184603882.9
B10: Total Annual Revenue for year t | C10: 184626512.1
C11: =IF(C9="","",IF(C10>=C9,"DUoS REVENUE CAP FORMULA COMPLIANT","DUoS REVENUE CAP FORMULA BREACHED")) -> DUoS REVENUE CAP FORMULA COMPLIANT

Sheet 2021DistTarRebalCont
B1: ="Tariff Approval - "&'Model update'!C3 -> Tariff Approval - United Energy | C1: ='Model update'!$C$5&"DistTarRebalCont" -> 2021DistTarRebalCont
B3: ='Model update'!C5&" DISTRIBUTION TARIFF REBALANCING CONTROL" -> 2021 DISTRIBUTION TARIFF REBALANCING CONTROL
B6: Distribution tariff rebalancing control
B8: ="CPI "&'Model update'!$C$5 -> CPI 2021 | C8: ='Model update'!C30 -> -0.003484320557
C16: =(1+C8)*(1-C9)*(1+0.02)*(1+C10)+SUM(C11:C13) -> 1.016445993
B20: Rebalancing control summary | C20: ="Pt-1*(Qt " &'Model update'!$C$5&")" -> Pt-1*(Qt 2021) | D20: ="Pt*(Qt " &'Model update'!$C$5&")" -> Pt*(Qt 2021)
B21: Tariff Class (Input Class Name) | C21: Existing ($) | D21: Proposed ($) | E21: Movement
B22: Low Voltage Small | C22: =IF(B22="","",SUMIF($B$44:$B$100,$B22,$I$44:$I$100)) -> 111763586.4 | D22: =IF(B22="","",SUMIF($B$44:$B$100,$B22,$F$44:$F$100)) -> 89304292.43 | E22: =IF(B22="","",D22/C22) -> 0.7990464093 | F22: =IF(B22="","",IF(E22<$C$16,"COMPLIANT","BREACHED")) -> COMPLIANT
B23: Low Voltage Medium | C23: 55331698.54 | D23: 42365060.59 | E23: 0.7656562459 | F23: COMPLIANT
B24: Low Voltage Large | C24: 56565647.52 | D24: 43330549.56 | E24: 0.7660223379 | F24: COMPLIANT
B25: High Voltage Large | C25: 12536457.28 | D25: 9533138.496 | E25: 0.7604332135 | F25: COMPLIANT
B26: Subtransmission Large | C26: 86945.81485 | D26: 70841.80586 | E26: 0.8147810908 | F26: COMPLIANT
E27: =IF(B27="","",D27/C27) ->  | F27: =IF(B27="","",IF(E27<$C$16,"COMPLIANT","BREACHED")) -> 
B39: Check Total | C39: =IF(ABS(SUM(C22:C38)-I101)<0.01,"Ok","Error") -> Ok | D39: =IF(ABS(SUM(D22:D38)-F101)<0.01,"Ok","Error") -> Ok
C40: =IF(ABS(SUM(C22:C38)-Prop2021DistTar!BV63)<0.01,"Ok","Error") -> Ok | D40: =IF(ABS(SUM(D22:D38)-Prop2021DistTar!BG63)<0.01,"Ok","Error") -> Ok
F42: ="Revenue (Pt "&'Model update'!$C$5&")*(Qt " &'Model update'!$C$5&")" -> Revenue (Pt 2021)*(Qt 2021) | I42: ="Revenue (Pt-1 "&'Model update'!$C$8&")*(Qt " &'Model update'!$C$5&")" -> Revenue (Pt-1 2020)*(Qt 2021)
A43: New Tariff Test | B43: Destination tariff class | C43: Source tariff class | D43: Proposed tariff | E43: Existing tariff | F43: PropRev Total | I43: ExistRev Total
A44: =OR(EXACT(D44,Prop2021DistTar!C$6:C$62)) -> TRUE | B44: Low Voltage Small | C44: Low Voltage Small | D44: =IF(Prop2021DistTar!B6="","",Prop2021DistTar!B6) -> Low voltage small 1 rate | E44: =IF(Prop2021DistTar!C6="","",Prop2021DistTar!C6) -> Low voltage small 1 rate | F44: =Prop2021DistTar!BG6 -> 79074658.12 | I44: =Prop2021DistTar!BV6 -> 98959255.42
A45: =OR(EXACT(D45,Prop2021DistTar!C$6:C$62)) -> TRUE | B45: Low Voltage Small | C45: Low Voltage Small | D45: =IF(Prop2021DistTar!B7="","",Prop2021DistTar!B7) -> Winter economy tariff | E45: =IF(Prop2021DistTar!C7="","",Prop2021DistTar!C7) -> Winter economy tariff | F45: =Prop2021DistTar!BG7 -> 24329.05676 | I45: =Prop2021DistTar!BV7 -> 30545.95772
A46: =OR(EXACT(D46,Prop2021DistTar!C$6:C$62)) -> TRUE | B46: Low Voltage Small | C46: Low Voltage Small | D46: =IF(Prop2021DistTar!B8="","",Prop2021DistTar!B8) -> Low voltage small 2 rate | E46: =IF(Prop2021DistTar!C8="","",Prop2021DistTar!C8) -> Low voltage small 2 rate | F46: =Prop2021DistTar!BG8 -> 715645.6842 | I46: =Prop2021DistTar!BV8 -> 877346.0209
A47: =OR(EXACT(D47,Prop2021DistTar!C$6:C$62)) -> TRUE | B47: Low Voltage Small | C47: Low Voltage Small | D47: =IF(Prop2021DistTar!B9="","",Prop2021DistTar!B9) -> Dedicated circuit | E47: =IF(Prop2021DistTar!C9="","",Prop2021DistTar!C9) -> Dedicated circuit | F47: =Prop2021DistTar!BG9 -> 678275.9544 | I47: =Prop2021DistTar!BV9 -> 874309.4673
A48: =OR(EXACT(D48,Prop2021DistTar!C$6:C$62)) -> TRUE | B48: Low Voltage Medium | C48: Low Voltage Medium | D48: =IF(Prop2021DistTar!B10="","",Prop2021DistTar!B10) -> Low voltage medium 1 rate | E48: =IF(Prop2021DistTar!C10="","",Prop2021DistTar!C10) -> Low voltage medium 1 rate | F48: =Prop2021DistTar!BG10 -> 14119790.57 | I48: =Prop2021DistTar!BV10 -> 17873932.91
A49: =OR(EXACT(D49,Prop2021DistTar!C$6:C$62)) -> TRUE | B49: Low Voltage Medium | C49: Low Voltage Medium | D49: =IF(Prop2021DistTar!B11="","",Prop2021DistTar!B11) -> Low voltage medium 2 rate 5 day | E49: =IF(Prop2021DistTar!C11="","",Prop2021DistTar!C11) -> Low voltage medium 2 rate 5 day | F49: =Prop2021DistTar!BG11 -> 5762264.099 | I49: =Prop2021DistTar!BV11 -> 7438552.904
A50: =OR(EXACT(D50,Prop2021DistTar!C$6:C$62)) -> TRUE | B50: Low Voltage Medium | C50: Low Voltage Medium | D50: =IF(Prop2021DistTar!B12="","",Prop2021DistTar!B12) -> Low voltage medium 2 rate 7 day | E50: =IF(Prop2021DistTar!C12="","",Prop2021DistTar!C12) -> Low voltage medium 2 rate 7 day | F50: =Prop2021DistTar!BG12 -> 2156201.793 | I50: =Prop2021DistTar!BV12 -> 2758791.141
A51: =OR(EXACT(D51,Prop2021DistTar!C$6:C$62)) -> TRUE | B51: Low Voltage Small | C51: Low Voltage Small | D51: =IF(Prop2021DistTar!B13="","",Prop2021DistTar!B13) -> Unmetered supplies | E51: =IF(Prop2021DistTar!C13="","",Prop2021DistTar!C13) -> Unmetered supplies | F51: =Prop2021DistTar!BG13 -> 1522800.816 | I51: =Prop2021DistTar!BV13 -> 1938792.273
A52: =OR(EXACT(D52,Prop2021DistTar!C$6:C$62)) -> TRUE | B52: Low Voltage Large | C52: Low Voltage Large | D52: =IF(Prop2021DistTar!B14="","",Prop2021DistTar!B14) -> Low voltage large 1 rate | E52: =IF(Prop2021DistTar!C14="","",Prop2021DistTar!C14) -> Low voltage large 1 rate | F52: =Prop2021DistTar!BG14 -> 37496.1758 | I52: =Prop2021DistTar!BV14 -> 47921.38661
A53: =OR(EXACT(D53,Prop2021DistTar!C$6:C$62)) -> TRUE | B53: Low Voltage Large | C53: Low Voltage Large | D53: =IF(Prop2021DistTar!B15="","",Prop2021DistTar!B15) -> Low voltage large 2 rate | E53: =IF(Prop2021DistTar!C15="","",Prop2021DistTar!C15) -> Low voltage large 2 rate | F53: =Prop2021DistTar!BG15 -> 65608.0283 | I53: =Prop2021DistTar!BV15 -> 84746.77619
A54: =OR(EXACT(D54,Prop2021DistTar!C$6:C$62)) -> TRUE | B54: Low Voltage Medium | C54: Low Voltage Medium | D54: =IF(Prop2021DistTar!B16="","",Prop2021DistTar!B16) -> Low voltage KW time of use | E54: =IF(Prop2021DistTar!C16="","",Prop2021DistTar!C16) -> Low voltage KW time of use | F54: =Prop2021DistTar!BG16 -> 386812.7517 | I54: =Prop2021DistTar!BV16 -> 550204.7286
A55: =OR(EXACT(D55,Prop2021DistTar!C$6:C$62)) -> TRUE | B55: Low Voltage Medium | C55: Low Voltage Medium | D55: =IF(Prop2021DistTar!B17="","",Prop2021DistTar!B17) -> Low voltage KW time of use - HOT | E55: =IF(Prop2021DistTar!C17="","",Prop2021DistTar!C17) -> Low voltage KW time of use - HOT | F55: =Prop2021DistTar!BG17 -> 7617.749974 | I55: =Prop2021DistTar!BV17 -> 9832.004927
A56: =OR(EXACT(D56,Prop2021DistTar!C$6:C$62)) -> TRUE | B56: Low Voltage Large | C56: Low Voltage Large | D56: =IF(Prop2021DistTar!B18="","",Prop2021DistTar!B18) -> Low voltage large KVA time of use | E56: =IF(Prop2021DistTar!C18="","",Prop2021DistTar!C18) -> Low voltage large KVA time of use | F56: =Prop2021DistTar!BG18 -> 43227445.35 | I56: =Prop2021DistTar!BV18 -> 56432979.35
A57: =OR(EXACT(D57,Prop2021DistTar!C$6:C$62)) -> TRUE | B57: High Voltage Large | C57: High Voltage Large | D57: =IF(Prop2021DistTar!B19="","",Prop2021DistTar!B19) -> High voltage KVA time of use | E57: =IF(Prop2021DistTar!C19="","",Prop2021DistTar!C19) -> High voltage KVA time of use | F57: =Prop2021DistTar!BG19 -> 9533138.496 | I57: =Prop2021DistTar!BV19 -> 12536457.28
A58: =OR(EXACT(D58,Prop2021DistTar!C$6:C$62)) -> TRUE | B58: Subtransmission Large | C58: Subtransmission Large | D58: =IF(Prop2021DistTar!B20="","",Prop2021DistTar!B20) -> Subtransmission KVA time of use | E58: =IF(Prop2021DistTar!C20="","",Prop2021DistTar!C20) -> Subtransmission KVA time of use | F58: =Prop2021DistTar!BG20 -> 70841.80586 | I58: =Prop2021DistTar!BV20 -> 86945.81485
A59: =OR(EXACT(D59,Prop2021DistTar!C$6:C$62)) -> TRUE | B59: Low Voltage Small | C59: Low Voltage Small | D59: =IF(Prop2021DistTar!B21="","",Prop2021DistTar!B21) -> TOD | E59: =IF(Prop2021DistTar!C21="","",Prop2021DistTar!C21) -> TOD | F59: =Prop2021DistTar!BG21 -> 6376707.34 | I59: =Prop2021DistTar!BV21 -> 7955539.228
A60: =OR(EXACT(D60,Prop2021DistTar!C$6:C$62)) -> TRUE | B60: Low Voltage Small | C60: Low Voltage Small | D60: =IF(Prop2021DistTar!B22="","",Prop2021DistTar!B22) -> TOD9 | E60: =IF(Prop2021DistTar!C22="","",Prop2021DistTar!C22) -> TOD9 | F60: =Prop2021DistTar!BG22 -> 490356.9265 | I60: =Prop2021DistTar!BV22 -> 610417.1695
A61: =OR(EXACT(D61,Prop2021DistTar!C$6:C$62)) -> TRUE | B61: Low Voltage Medium | C61: Low Voltage Medium | D61: =IF(Prop2021DistTar!B23="","",Prop2021DistTar!B23) -> TOU | E61: =IF(Prop2021DistTar!C23="","",Prop2021DistTar!C23) -> TOU | F61: =Prop2021DistTar!BG23 -> 776349.0548 | I61: =Prop2021DistTar!BV23 -> 1098071.647
A62: =OR(EXACT(D62,Prop2021DistTar!C$6:C$62)) -> TRUE | B62: Low Voltage Small | C62: Low Voltage Small | D62: =IF(Prop2021DistTar!B24="","",Prop2021DistTar!B24) -> TODFLEX | E62: =IF(Prop2021DistTar!C24="","",Prop2021DistTar!C24) -> TODFLEX | F62: =Prop2021DistTar!BG24 -> 294194.4321 | I62: =Prop2021DistTar!BV24 -> 368480.227
A63: =OR(EXACT(D63,Prop2021DistTar!C$6:C$62)) -> TRUE | B63: Low Voltage Small | C63: Low Voltage Small | D63: =IF(Prop2021DistTar!B25="","",Prop2021DistTar!B25) -> Low Voltage KW 1 rate | E63: =IF(Prop2021DistTar!C25="","",Prop2021DistTar!C25) -> Low Voltage KW 1 rate | F63: =Prop2021DistTar!BG25 -> 127324.0977 | I63: =Prop2021DistTar!BV25 -> 148900.6682
A64: =OR(EXACT(D64,Prop2021DistTar!C$6:C$62)) -> TRUE | B64: Low Voltage Medium | C64: Low Voltage Medium | D64: =IF(Prop2021DistTar!B26="","",Prop2021DistTar!B26) -> Low voltage medium KW time of use (opt-in) | E64: =IF(Prop2021DistTar!C26="","",Prop2021DistTar!C26) -> Low voltage medium KW time of use (opt-in) | F64: =Prop2021DistTar!BG26 -> 0 | I64: =Prop2021DistTar!BV26 -> 0
A65: =OR(EXACT(D65,Prop2021DistTar!C$6:C$62)) -> TRUE | B65: Low Voltage Medium | C65: Low Voltage Medium | D65: =IF(Prop2021DistTar!B27="","",Prop2021DistTar!B27) -> Low voltage medium KW 1 rate (mandatory) | E65: =IF(Prop2021DistTar!C27="","",Prop2021DistTar!C27) -> Low voltage medium KW 1 rate (mandatory) | F65: =Prop2021DistTar!BG27 -> 19156024.57 | I65: =Prop2021DistTar!BV27 -> 25602313.2
A66: =OR(EXACT(D66,Prop2021DistTar!C$6:C$62)) -> TRUE | D66: =IF(Prop2021DistTar!B28="","",Prop2021DistTar!B28) ->  | E66: =IF(Prop2021DistTar!C28="","",Prop2021DistTar!C28) ->  | F66: =Prop2021DistTar!BG28 -> 0 | I66: =Prop2021DistTar!BV28 -> 0
A67: =OR(EXACT(D67,Prop2021DistTar!C$6:C$62)) -> TRUE | D67: =IF(Prop2021DistTar!B29="","",Prop2021DistTar!B29) ->  | E67: =IF(Prop2021DistTar!C29="","",Prop2021DistTar!C29) ->  | F67: =Prop2021DistTar!BG29 -> 0 | I67: =Prop2021DistTar!BV29 -> 0
A68: =OR(EXACT(D68,Prop2021DistTar!C$6:C$62)) -> TRUE | D68: =IF(Prop2021DistTar!B30="","",Prop2021DistTar!B30) ->  | E68: =IF(Prop2021DistTar!C30="","",Prop2021DistTar!C30) ->  | F68: =Prop2021DistTar!BG30 -> 0 | I68: =Prop2021DistTar!BV30 -> 0
A69: =OR(EXACT(D69,Prop2021DistTar!C$6:C$62)) -> TRUE | D69: =IF(Prop2021DistTar!B31="","",Prop2021DistTar!B31) ->  | E69: =IF(Prop2021DistTar!C31="","",Prop2021DistTar!C31) ->  | F69: =Prop2021DistTar!BG31 -> 0 | I69: =Prop2021DistTar!BV31 -> 0
A70: =OR(EXACT(D70,Prop2021DistTar!C$6:C$62)) -> TRUE | D70: =IF(Prop2021DistTar!B32="","",Prop2021DistTar!B32) ->  | E70: =IF(Prop2021DistTar!C32="","",Prop2021DistTar!C32) ->  | F70: =Prop2021DistTar!BG32 -> 0 | I70: =Prop2021DistTar!BV32 -> 0
A71: =OR(EXACT(D71,Prop2021DistTar!C$6:C$62)) -> TRUE | D71: =IF(Prop2021DistTar!B33="","",Prop2021DistTar!B33) ->  | E71: =IF(Prop2021DistTar!C33="","",Prop2021DistTar!C33) ->  | F71: =Prop2021DistTar!BG33 -> 0 | I71: =Prop2021DistTar!BV33 -> 0
A72: =OR(EXACT(D72,Prop2021DistTar!C$6:C$62)) -> TRUE | D72: =IF(Prop2021DistTar!B34="","",Prop2021DistTar!B34) ->  | E72: =IF(Prop2021DistTar!C34="","",Prop2021DistTar!C34) ->  | F72: =Prop2021DistTar!BG34 -> 0 | I72: =Prop2021DistTar!BV34 -> 0
A73: =OR(EXACT(D73,Prop2021DistTar!C$6:C$62)) -> TRUE | D73: =IF(Prop2021DistTar!B35="","",Prop2021DistTar!B35) ->  | E73: =IF(Prop2021DistTar!C35="","",Prop2021DistTar!C35) ->  | F73: =Prop2021DistTar!BG35 -> 0 | I73: =Prop2021DistTar!BV35 -> 0
A74: =OR(EXACT(D74,Prop2021DistTar!C$6:C$62)) -> TRUE | D74: =IF(Prop2021DistTar!B36="","",Prop2021DistTar!B36) ->  | E74: =IF(Prop2021DistTar!C36="","",Prop2021DistTar!C36) ->  | F74: =Prop2021DistTar!BG36 -> 0 | I74: =Prop2021DistTar!BV36 -> 0
A75: =OR(EXACT(D75,Prop2021DistTar!C$6:C$62)) -> TRUE | D75: =IF(Prop2021DistTar!B37="","",Prop2021DistTar!B37) ->  | E75: =IF(Prop2021DistTar!C37="","",Prop2021DistTar!C37) ->  | F75: =Prop2021DistTar!BG37 -> 0 | I75: =Prop2021DistTar!BV37 -> 0
A76: =OR(EXACT(D76,Prop2021DistTar!C$6:C$62)) -> TRUE | D76: =IF(Prop2021DistTar!B38="","",Prop2021DistTar!B38) ->  | E76: =IF(Prop2021DistTar!C38="","",Prop2021DistTar!C38) ->  | F76: =Prop2021DistTar!BG38 -> 0 | I76: =Prop2021DistTar!BV38 -> 0
A77: =OR(EXACT(D77,Prop2021DistTar!C$6:C$62)) -> TRUE | D77: =IF(Prop2021DistTar!B39="","",Prop2021DistTar!B39) ->  | E77: =IF(Prop2021DistTar!C39="","",Prop2021DistTar!C39) ->  | F77: =Prop2021DistTar!BG39 -> 0 | I77: =Prop2021DistTar!BV39 -> 0
A78: =OR(EXACT(D78,Prop2021DistTar!C$6:C$62)) -> TRUE | D78: =IF(Prop2021DistTar!B40="","",Prop2021DistTar!B40) ->  | E78: =IF(Prop2021DistTar!C40="","",Prop2021DistTar!C40) ->  | F78: =Prop2021DistTar!BG40 -> 0 | I78: =Prop2021DistTar!BV40 -> 0
A79: =OR(EXACT(D79,Prop2021DistTar!C$6:C$62)) -> TRUE | D79: =IF(Prop2021DistTar!B41="","",Prop2021DistTar!B41) ->  | E79: =IF(Prop2021DistTar!C41="","",Prop2021DistTar!C41) ->  | F79: =Prop2021DistTar!BG41 -> 0 | I79: =Prop2021DistTar!BV41 -> 0
A80: =OR(EXACT(D80,Prop2021DistTar!C$6:C$62)) -> TRUE | D80: =IF(Prop2021DistTar!B42="","",Prop2021DistTar!B42) ->  | E80: =IF(Prop2021DistTar!C42="","",Prop2021DistTar!C42) ->  | F80: =Prop2021DistTar!BG42 -> 0 | I80: =Prop2021DistTar!BV42 -> 0
A81: =OR(EXACT(D81,Prop2021DistTar!C$6:C$62)) -> TRUE | D81: =IF(Prop2021DistTar!B43="","",Prop2021DistTar!B43) ->  | E81: =IF(Prop2021DistTar!C43="","",Prop2021DistTar!C43) ->  | F81: =Prop2021DistTar!BG43 -> 0 | I81: =Prop2021DistTar!BV43 -> 0
A82: =OR(EXACT(D82,Prop2021DistTar!C$6:C$62)) -> TRUE | D82: =IF(Prop2021DistTar!B44="","",Prop2021DistTar!B44) ->  | E82: =IF(Prop2021DistTar!C44="","",Prop2021DistTar!C44) ->  | F82: =Prop2021DistTar!BG44 -> 0 | I82: =Prop2021DistTar!BV44 -> 0
A83: =OR(EXACT(D83,Prop2021DistTar!C$6:C$62)) -> TRUE | D83: =IF(Prop2021DistTar!B45="","",Prop2021DistTar!B45) ->  | E83: =IF(Prop2021DistTar!C45="","",Prop2021DistTar!C45) ->  | F83: =Prop2021DistTar!BG45 -> 0 | I83: =Prop2021DistTar!BV45 -> 0
A84: =OR(EXACT(D84,Prop2021DistTar!C$6:C$62)) -> TRUE | D84: =IF(Prop2021DistTar!B46="","",Prop2021DistTar!B46) ->  | E84: =IF(Prop2021DistTar!C46="","",Prop2021DistTar!C46) ->  | F84: =Prop2021DistTar!BG46 -> 0 | I84: =Prop2021DistTar!BV46 -> 0
A85: =OR(EXACT(D85,Prop2021DistTar!C$6:C$62)) -> TRUE | D85: =IF(Prop2021DistTar!B47="","",Prop2021DistTar!B47) ->  | E85: =IF(Prop2021DistTar!C47="","",Prop2021DistTar!C47) ->  | F85: =Prop2021DistTar!BG47 -> 0 | I85: =Prop2021DistTar!BV47 -> 0
A86: =OR(EXACT(D86,Prop2021DistTar!C$6:C$62)) -> TRUE | D86: =IF(Prop2021DistTar!B48="","",Prop2021DistTar!B48) ->  | E86: =IF(Prop2021DistTar!C48="","",Prop2021DistTar!C48) ->  | F86: =Prop2021DistTar!BG48 -> 0 | I86: =Prop2021DistTar!BV48 -> 0
A87: =OR(EXACT(D87,Prop2021DistTar!C$6:C$62)) -> TRUE | D87: =IF(Prop2021DistTar!B49="","",Prop2021DistTar!B49) ->  | E87: =IF(Prop2021DistTar!C49="","",Prop2021DistTar!C49) ->  | F87: =Prop2021DistTar!BG49 -> 0 | I87: =Prop2021DistTar!BV49 -> 0
A88: =OR(EXACT(D88,Prop2021DistTar!C$6:C$62)) -> TRUE | D88: =IF(Prop2021DistTar!B50="","",Prop2021DistTar!B50) ->  | E88: =IF(Prop2021DistTar!C50="","",Prop2021DistTar!C50) ->  | F88: =Prop2021DistTar!BG50 -> 0 | I88: =Prop2021DistTar!BV50 -> 0
A89: =OR(EXACT(D89,Prop2021DistTar!C$6:C$62)) -> TRUE | D89: =IF(Prop2021DistTar!B51="","",Prop2021DistTar!B51) ->  | E89: =IF(Prop2021DistTar!C51="","",Prop2021DistTar!C51) ->  | F89: =Prop2021DistTar!BG51 -> 0 | I89: =Prop2021DistTar!BV51 -> 0
A90: =OR(EXACT(D90,Prop2021DistTar!C$6:C$62)) -> TRUE | D90: =IF(Prop2021DistTar!B52="","",Prop2021DistTar!B52) ->  | E90: =IF(Prop2021DistTar!C52="","",Prop2021DistTar!C52) ->  | F90: =Prop2021DistTar!BG52 -> 0 | I90: =Prop2021DistTar!BV52 -> 0
A91: =OR(EXACT(D91,Prop2021DistTar!C$6:C$62)) -> TRUE | D91: =IF(Prop2021DistTar!B53="","",Prop2021DistTar!B53) ->  | E91: =IF(Prop2021DistTar!C53="","",Prop2021DistTar!C53) ->  | F91: =Prop2021DistTar!BG53 -> 0 | I91: =Prop2021DistTar!BV53 -> 0
A92: =OR(EXACT(D92,Prop2021DistTar!C$6:C$62)) -> TRUE | D92: =IF(Prop2021DistTar!B54="","",Prop2021DistTar!B54) ->  | E92: =IF(Prop2021DistTar!C54="","",Prop2021DistTar!C54) ->  | F92: =Prop2021DistTar!BG54 -> 0 | I92: =Prop2021DistTar!BV54 -> 0
A93: =OR(EXACT(D93,Prop2021DistTar!C$6:C$62)) -> TRUE | D93: =IF(Prop2021DistTar!B55="","",Prop2021DistTar!B55) ->  | E93: =IF(Prop2021DistTar!C55="","",Prop2021DistTar!C55) ->  | F93: =Prop2021DistTar!BG55 -> 0 | I93: =Prop2021DistTar!BV55 -> 0
A94: =OR(EXACT(D94,Prop2021DistTar!C$6:C$62)) -> TRUE | D94: =IF(Prop2021DistTar!B56="","",Prop2021DistTar!B56) ->  | E94: =IF(Prop2021DistTar!C56="","",Prop2021DistTar!C56) ->  | F94: =Prop2021DistTar!BG56 -> 0 | I94: =Prop2021DistTar!BV56 -> 0
A95: =OR(EXACT(D95,Prop2021DistTar!C$6:C$62)) -> TRUE | D95: =IF(Prop2021DistTar!B57="","",Prop2021DistTar!B57) ->  | E95: =IF(Prop2021DistTar!C57="","",Prop2021DistTar!C57) ->  | F95: =Prop2021DistTar!BG57 -> 0 | I95: =Prop2021DistTar!BV57 -> 0
A96: =OR(EXACT(D96,Prop2021DistTar!C$6:C$62)) -> TRUE | D96: =IF(Prop2021DistTar!B58="","",Prop2021DistTar!B58) ->  | E96: =IF(Prop2021DistTar!C58="","",Prop2021DistTar!C58) ->  | F96: =Prop2021DistTar!BG58 -> 0 | I96: =Prop2021DistTar!BV58 -> 0
A97: =OR(EXACT(D97,Prop2021DistTar!C$6:C$62)) -> TRUE | D97: =IF(Prop2021DistTar!B59="","",Prop2021DistTar!B59) ->  | E97: =IF(Prop2021DistTar!C59="","",Prop2021DistTar!C59) ->  | F97: =Prop2021DistTar!BG59 -> 0 | I97: =Prop2021DistTar!BV59 -> 0
A98: =OR(EXACT(D98,Prop2021DistTar!C$6:C$62)) -> TRUE | D98: =IF(Prop2021DistTar!B60="","",Prop2021DistTar!B60) ->  | E98: =IF(Prop2021DistTar!C60="","",Prop2021DistTar!C60) ->  | F98: =Prop2021DistTar!BG60 -> 0 | I98: =Prop2021DistTar!BV60 -> 0
A99: =OR(EXACT(D99,Prop2021DistTar!C$6:C$62)) -> TRUE | D99: =IF(Prop2021DistTar!B61="","",Prop2021DistTar!B61) ->  | E99: =IF(Prop2021DistTar!C61="","",Prop2021DistTar!C61) ->  | F99: =Prop2021DistTar!BG61 -> 0 | I99: =Prop2021DistTar!BV61 -> 0
A100: =OR(EXACT(D100,Prop2021DistTar!C$6:C$62)) -> TRUE | D100: =IF(Prop2021DistTar!B62="","",Prop2021DistTar!B62) ->  | E100: =IF(Prop2021DistTar!C62="","",Prop2021DistTar!C62) ->  | F100: =Prop2021DistTar!BG62 -> 0 | I100: =Prop2021DistTar!BV62 -> 0
F101: =SUM(F44:F100) -> 184603882.9 | I101: =SUM(I44:I100) -> 236284335.6 | BJ101: =SUM(BJ44:BJ100) -> 0

Sheet Est2020DistRev
B1: ="Tariff Approval - "&'Model update'!C3 -> Tariff Approval - United Energy | D1: ="Est"&'Model update'!$C$5-1&"DistRev" -> Est2020DistRev
B3: ="ESTIMATED "&'Model update'!$C$8&" Distribution Revenue" -> ESTIMATED 2020 Distribution Revenue
D4: ="Current Distribution Tariffs (Pt-1) for "&'Model update'!$C$8 -> Current Distribution Tariffs (Pt-1) for 2020 | R4: =" Estimated Distribution Quantities for "&'Model update'!$C$8&" (Qt-1)" -> Estimated Distribution Quantities for 2020 (Qt-1) | AF4: ="Estimated Revenue (Pt-1 "&'Model update'!$C$8&")*(Qt-1 " &'Model update'!$C$8&")" -> Estimated Revenue (Pt-1 2020)*(Qt-1 2020)
B5: ="Tariffs "&'Model update'!C8 -> Tariffs 2020 | D5: Current Fixed | E5: CurrentPkBlk1 | F5: CurrentPkBlk2 | G5: Current PkBlk3 | H5: Current PkBlk4 | I5: Current OPkBlk1 | J5: Current OPkBlk2 | K5: Current OPkBlk3 | L5: Current OPkBlk4 | M5: Current DemBlk1 | N5: Current DemBlk2 | O5: Current DemBlk3 | P5: Current DemBlk4 | R5: EstVol Fixed | S5: EstVol PkBlk1 | T5: EstVol PkBlk2 | U5: EstVol PkBlk3 | V5: EstVol PkBlk4 | W5: EstVol OPkBlk1 | X5: EstVol OPkBlk2 | Y5: EstVol OPkBlk3 | Z5: EstVol OPkBlk4 | AA5: EstVol DemBlk1 | AB5: EstVol DemBlk2 | AC5: EstVol DemBlk3 | AD5: EstVol DemBlk4 | AF5: EstRev Fixed | AG5: EstRev PkBlk1 | AH5: EstRev PkBlk2 | AI5: EstRev PkBlk3 | AJ5: EstRev PkBlk4 | AK5: EstRev OPkBlk1 | AL5: EstRev OPkBlk2 | AM5: EstRev OPkBlk3 | AN5: EstRev OPkBlk4 | AO5: EstRev DemBlk1 | AP5: EstRev DemBlk2 | AQ5: EstRev DemBlk3 | AR5: EstRev DemBlk4 | AS5: EstRev Total
B6: =Prop2021DistTar!C6 -> Low voltage small 1 rate | D6: 7.85 | E6: 7.44 | F6: 0 | G6: 0 | H6: 7.44 | I6: 0 | J6: 0 | K6: 0 | L6: 0 | M6: 0 | N6: 0 | O6: 0 | P6: 0 | R6: 212162195 | S6: 919851753 | T6: 0 | U6: 0 | V6: 1513854586 | W6: 0 | X6: 0 | Y6: 0 | Z6: 0 | AA6: 0 | AB6: 0 | AC6: 0 | AD6: 0 | AF6: =D6/100*R6 -> 16654732.31 | AG6: =E6/100*S6 -> 68436970.42 | AH6: 0 | AI6: 0 | AJ6: 112630781.2 | AK6: 0 | AL6: 0 | AM6: 0 | AN6: 0 | AO6: =M6/100*AA6 -> 0 | AP6: =N6/100*AB6 -> 0 | AQ6: 0 | AR6: 0 | AS6: =SUM(AF6:AR6) -> 197722484
B7: =Prop2021DistTar!C7 -> Winter economy tariff | D7: 10.49 | E7: 7.16 | F7: 0 | G7: 0 | H7: 7.16 | I7: 2.39 | J7: 0 | K7: 0 | L7: 0 | M7: 0 | N7: 0 | O7: 0 | P7: 0 | R7: 47078.0734 | S7: 293507.5327 | T7: 0 | U7: 0 | V7: 549771.8592 | W7: 0 | X7: 0 | Y7: 0 | Z7: 0 | AA7: 0 | AB7: 0 | AC7: 0 | AD7: 0 | AF7: =D7/100*R7 -> 4938.4899 | AG7: =E7/100*S7 -> 21015.13934 | AH7: 0 | AI7: 0 | AJ7: 39363.66512 | AK7: 0 | AL7: 0 | AM7: 0 | AN7: 0 | AO7: =M7/100*AA7 -> 0 | AP7: =N7/100*AB7 -> 0 | AQ7: =O7/100*AC7 -> 0 | AR7: =P7/100*AD7 -> 0 | AS7: =SUM(AF7:AR7) -> 65317.29436
B8: =Prop2021DistTar!C8 -> Low voltage small 2 rate | D8: 15.93 | E8: 0 | F8: 0 | G8: 11.24 | H8: 0 | I8: 0 | J8: 11.24 | K8: 2.29 | L8: 0 | M8: 0 | N8: 0 | O8: 0 | P8: 0 | R8: 1540872.815 | S8: 0 | T8: 0 | U8: 4165253.264 | V8: 0 | W8: 0 | X8: 6996037.326 | Y8: 14790881.87 | Z8: 0 | AA8: 0 | AB8: 0 | AC8: 0 | AD8: 0 | AF8: 245461.0395 | AG8: 0 | AH8: 0 | AI8: 468174.4669 | AJ8: 0 | AK8: 0 | AL8: 786354.5955 | AM8: 338711.1949 | AN8: 0 | AO8: 0 | AP8: 0 | AQ8: 0 | AR8: 0 | AS8: 1838701.297
B9: =Prop2021DistTar!C9 -> Dedicated circuit | D9: 0 | E9: 0 | F9: 0 | G9: 0 | H9: 0 | I9: 0 | J9: 0 | K9: 2.23 | L9: 0 | M9: 0 | N9: 0 | O9: 0 | P9: 0 | R9: 21169813.98 | S9: 0 | T9: 0 | U9: 0 | V9: 0 | W9: 0 | X9: 0 | Y9: 92477650.13 | Z9: 0 | AA9: 0 | AB9: 0 | AC9: 0 | AD9: 0 | AF9: 0 | AG9: 0 | AH9: 0 | AI9: 0 | AJ9: 0 | AK9: 0 | AL9: 0 | AM9: 2062251.598 | AN9: 0 | AO9: 0 | AP9: 0 | AQ9: 0 | AR9: 0 | AS9: 2062251.598
B10: =Prop2021DistTar!C10 -> Low voltage medium 1 rate | D10: 13.23 | E10: 8.88 | F10: 0 | G10: 0 | H10: 8.88 | I10: 0 | J10: 0 | K10: 0 | L10: 0 | M10: 0 | N10: 0 | O10: 0 | P10: 0 | R10: 12102335.34 | S10: 161788893.1 | T10: 0 | U10: 0 | V10: 250038883 | W10: 0 | X10: 0 | Y10: 0 | Z10: 0 | AA10: 0 | AB10: 0 | AC10: 0 | AD10: 0 | AF10: 1601138.965 | AG10: 14366853.71 | AH10: 0 | AI10: 0 | AJ10: 22203452.81 | AK10: 0 | AL10: 0 | AM10: 0 | AN10: 0 | AO10: 0 | AP10: 0 | AQ10: 0 | AR10: 0 | AS10: 38171445.48
B11: =Prop2021DistTar!C11 -> Low voltage medium 2 rate 5 day | D11: 25.34 | E11: 0 | F11: 0 | G11: 13.8 | H11: 0 | I11: 0 | J11: 10.34 | K11: 2.58 | L11: 0 | M11: 0 | N11: 0 | O11: 0 | P11: 0 | R11: 3296334.516 | S11: 0 | T11: 0 | U11: 44442947.95 | V11: 0 | W11: 0 | X11: 63255909.48 | Y11: 66483501.71 | Z11: 0 | AA11: 0 | AB11: 0 | AC11: 0 | AD11: 0 | AF11: 835291.1664 | AG11: 0 | AH11: 0 | AI11: 6133126.817 | AJ11: 0 | AK11: 0 | AL11: 6540661.04 | AM11: 1715274.344 | AN11: 0 | AO11: 0 | AP11: 0 | AQ11: 0 | AR11: 0 | AS11: 15224353.37
B12: =Prop2021DistTar!C12 -> Low voltage medium 2 rate 7 day | D12: 26.96 | E12: 0 | F12: 0 | G12: 11.38 | H12: 0 | I12: 0 | J12: 8.81 | K12: 2.08 | L12: 0 | M12: 0 | N12: 0 | O12: 0 | P12: 0 | R12: 1640279.535 | S12: 0 | T12: 0 | U12: 19851193.85 | V12: 0 | W12: 0 | X12: 30063800.98 | Y12: 13681650.15 | Z12: 0 | AA12: 0 | AB12: 0 | AC12: 0 | AD12: 0 | AF12: 442219.3626 | AG12: 0 | AH12: 0 | AI12: 2259065.86 | AJ12: 0 | AK12: 0 | AL12: 2648620.866 | AM12: 284578.3231 | AN12: 0 | AO12: 0 | AP12: 0 | AQ12: 0 | AR12: 0 | AS12: 5634484.413
B13: =Prop2021DistTar!C13 -> Unmetered supplies | D13: 0 | E13: 0 | F13: 0 | G13: 8.13 | H13: 0 | I13: 0 | J13: 8.13 | K13: 1.76 | L13: 0 | M13: 0 | N13: 0 | O13: 0 | P13: 0 | R13: 3541416 | S13: 0 | T13: 0 | U13: 11643754.47 | V13: 0 | W13: 0 | X13: 19080770.29 | Y13: 56302898.46 | Z13: 0 | AA13: 0 | AB13: 0 | AC13: 0 | AD13: 0 | AF13: 0 | AG13: 0 | AH13: 0 | AI13: 946637.2383 | AJ13: 0 | AK13: 0 | AL13: 1551266.625 | AM13: 990931.0129 | AN13: 0 | AO13: 0 | AP13: 0 | AQ13: 0 | AR13: 0 | AS13: 3488834.876
B14: =Prop2021DistTar!C14 -> Low voltage large 1 rate | D14: 15.49 | E14: 6.91 | F14: 0 | G14: 0 | H14: 6.91 | I14: 0 | J14: 0 | K14: 0 | L14: 0 | M14: 0 | N14: 0 | O14: 0 | P14: 0 | R14: 2568.095895 | S14: 626916.0406 | T14: 0 | U14: 0 | V14: 845401.2968 | W14: 0 | Y14: 0 | Z14: 0 | AA14: 0 | AB14: 0 | AC14: 0 | AD14: 0 | AF14: 397.7980541 | AG14: 43319.89841 | AH14: 0 | AI14: 0 | AJ14: 58417.22961 | AK14: 0 | AL14: 0 | AM14: 0 | AN14: 0 | AO14: 0 | AP14: 0 | AQ14: 0 | AR14: 0 | AS14: 102134.9261
B15: =Prop2021DistTar!C15 -> Low voltage large 2 rate | D15: 22.35 | E15: 0 | F15: 0 | G15: 12.56 | H15: 0 | I15: 0 | J15: 9.98 | K15: 2.38 | L15: 0 | M15: 0 | N15: 0 | O15: 0 | P15: 0 | R15: 6236.804316 | S15: 0 | T15: 0 | U15: 563898.2219 | V15: 0 | W15: 0 | X15: 810564.9206 | Y15: 1029686.513 | Z15: 0 | AA15: 0 | AB15: 0 | AC15: 0 | AD15: 0 | AF15: 1393.925765 | AG15: 0 | AH15: 0 | AI15: 70825.61667 | AJ15: 0 | AK15: 0 | AL15: 80894.37908 | AM15: 24506.53901 | AN15: 0 | AO15: 0 | AP15: 0 | AQ15: 0 | AR15: 0 | AS15: 177620.4605
B16: =Prop2021DistTar!C16 -> Low voltage KW time of use | D16: 0 | E16: 0 | F16: 0 | G16: 11.56 | H16: 0 | I16: 0 | J16: 6.78 | K16: 2.69 | L16: 0 | M16: 0 | N16: 55.35 | O16: 0 | P16: 0 | R16: 64782 | S16: 0 | T16: 0 | U16: 2537287.135 | V16: 0 | W16: 0 | X16: 4053676.63 | Y16: 6266721.116 | Z16: 0 | AA16: 0 | AB16: 632644.762 | AC16: 0 | AD16: 0 | AF16: 0 | AG16: 0 | AH16: 0 | AI16: 293310.3928 | AJ16: 0 | AK16: 0 | AL16: 274839.2755 | AM16: 168574.798 | AN16: 0 | AO16: 0 | AP16: 350168.8758 | AQ16: 0 | AR16: 0 | AS16: 1086893.342
B17: =Prop2021DistTar!C17 -> Low voltage KW time of use - HOT | D17: 0 | E17: 0 | F17: 0 | G17: 8.07 | H17: 0 | I17: 0 | J17: 6.2 | K17: 1.83 | L17: 0 | M17: 0 | N17: 71.04 | O17: 0 | P17: 0 | R17: 5856 | S17: 0 | T17: 0 | U17: 18479.7083 | V17: 0 | W17: 0 | X17: 32475.32388 | Y17: 54198.35716 | Z17: 0 | AA17: 0 | AB17: 12598.044 | AC17: 0 | AD17: 0 | AF17: 0 | AG17: 0 | AH17: 0 | AI17: 1491.31246 | AJ17: 0 | AK17: 0 | AL17: 2013.470081 | AM17: 991.829936 | AN17: 0 | AO17: 0 | AP17: 8949.650458 | AQ17: 0 | AR17: 0 | AS17: 13446.26293
B18: =Prop2021DistTar!C18 -> Low voltage large KVA time of use | D18: 0 | E18: 0 | F18: 0 | G18: 1.63 | H18: 0 | I18: 0 | J18: 1.38 | K18: 1.37 | L18: 0 | M18: 16.48 | N18: 24.64 | O18: 0 | P18: 0 | R18: 1110078 | S18: 0 | T18: 0 | U18: 442552227.7 | V18: 0 | W18: 0 | X18: 608901701.2 | Y18: 1242320710 | Z18: 0 | AA18: 320914609.7 | AB18: 92279113.55 | AC18: 0 | AD18: 0 | AF18: 0 | AG18: 0 | AH18: 0 | AI18: 7213601.311 | AJ18: 0 | AK18: 0 | AL18: 8402843.476 | AM18: 17019793.73 | AN18: 0 | AO18: 52886727.68 | AP18: 22737573.58 | AQ18: 0 | AR18: 0 | AS18: 108260539.8
B19: =Prop2021DistTar!C19 -> High voltage KVA time of use | D19: 0 | E19: 0 | F19: 0 | G19: 0.98 | H19: 0 | I19: 0 | J19: 0.85 | K19: 0.85 | L19: 0 | M19: 9.97 | N19: 13.7 | O19: 0 | P19: 0 | R19: 36234 | S19: 0 | T19: 0 | U19: 173815274 | V19: 0 | W19: 0 | X19: 244289927.6 | Y19: 638852125.6 | Z19: 0 | AA19: 106134752.1 | AB19: 33089430.44 | AC19: 0 | AD19: 0 | AF19: 0 | AG19: 0 | AH19: 0 | AI19: 1703389.685 | AJ19: 0 | AK19: 0 | AL19: 2076464.385 | AM19: 5430243.068 | AN19: 0 | AO19: 10581634.78 | AP19: 4533251.97 | AQ19: 0 | AR19: 0 | AS19: 24324983.89
B20: =Prop2021DistTar!C20 -> Subtransmission KVA time of use | D20: 0 | E20: 0 | F20: 0 | G20: 0.56 | H20: 0 | I20: 0 | J20: 0.43 | K20: 0.37 | L20: 0 | M20: 0.98 | N20: 1.43 | O20: 0 | P20: 0 | R20: 366 | S20: 0 | T20: 0 | U20: 6227527.529 | V20: 0 | W20: 0 | X20: 11306632.75 | Y20: 14340438.67 | Z20: 0 | AA20: 4117758.995 | AB20: 1226831.123 | AC20: 0 | AD20: 0 | AF20: 0 | AG20: 0 | AH20: 0 | AI20: 34874.15416 | AJ20: 0 | AK20: 0 | AL20: 48618.52083 | AM20: 53059.6231 | AN20: 0 | AO20: 40354.03815 | AP20: 17543.68506 | AQ20: 0 | AR20: 0 | AS20: 194450.0213
B21: =Prop2021DistTar!C21 -> TOD | D21: 7.47 | E21: 0 | F21: 4.5 | G21: 14.17 | H21: 0 | I21: 0 | J21: 14.17 | K21: 3.73 | L21: 4.5 | M21: 0 | N21: 0 | O21: 0 | P21: 0 | R21: 15598161.35 | S21: 0 | T21: 12690970.05 | U21: 22175656.6 | V21: 0 | W21: 0 | X21: 41706694.09 | Y21: 107857002.4 | Z21: 23868443.45 | AA21: 0 | AB21: 0 | AC21: 0 | AD21: 0 | AF21: 1165182.653 | AG21: 0 | AH21: 571093.6522 | AI21: 3142290.54 | AJ21: 0 | AK21: 0 | AL21: 5909838.553 | AM21: 4023066.19 | AN21: 1074079.955 | AO21: 0 | AP21: 0 | AQ21: 0 | AR21: 0 | AS21: 15885551.54
B22: =Prop2021DistTar!C22 -> TOD9 | D22: 8.16 | E22: 0 | F22: 5.13 | G22: 14.2 | H22: 0 | I22: 0 | J22: 14.2 | K22: 4.55 | L22: 5.13 | M22: 0 | N22: 0 | O22: 0 | P22: 0 | R22: 1010310.401 | S22: 0 | T22: 668818.714 | U22: 945228.328 | V22: 0 | W22: 0 | X22: 1597730.386 | Y22: 6831899.483 | Z22: 1130512.015 | AA22: 0 | AB22: 0 | AC22: 0 | AD22: 0 | AF22: 82441.32869 | AG22: 0 | AH22: 34310.40003 | AI22: 134222.4226 | AJ22: 0 | AK22: 0 | AL22: 226877.7148 | AM22: 310851.4265 | AN22: 57995.26639 | AO22: 0 | AP22: 0 | AQ22: 0 | AR22: 0 | AS22: 846698.559
B23: =Prop2021DistTar!C23 -> TOU | D23: 0 | E23: 0 | F23: 0 | G23: 11.15 | H23: 0 | I23: 0 | J23: 6.78 | K23: 3.27 | L23: 0 | M23: 0 | N23: 48.43 | O23: 0 | P23: 0 | R23: 225090 | S23: 0 | T23: 0 | U23: 4508745.304 | V23: 0 | W23: 0 | X23: 6758791.942 | Y23: 9460029.855 | Z23: 0 | AA23: 0 | AB23: 1192130.282 | AC23: 0 | AD23: 0 | AF23: 0 | AG23: 0 | AH23: 0 | AI23: 502725.1014 | AJ23: 0 | AK23: 0 | AL23: 458246.0937 | AM23: 309342.9763 | AN23: 0 | AO23: 0 | AP23: 577348.6956 | AQ23: 0 | AR23: 0 | AS23: 1847662.867
B24: =Prop2021DistTar!C24 -> TODFLEX | D24: 8.28 | E24: 0 | F24: 5.37 | G24: 14.56 | H24: 0 | I24: 0 | J24: 14.56 | K24: 4.55 | L24: 5.37 | M24: 0 | N24: 0 | O24: 0 | P24: 0 | R24: 707292.0075 | S24: 0 | T24: 1584333.56 | U24: 771828.7198 | V24: 0 | W24: 0 | X24: 1383098.006 | Y24: 3446686.135 | Z24: 2839086.614 | AA24: 0 | AB24: 0 | AC24: 0 | AD24: 0 | AF24: 58563.77822 | AG24: 0 | AH24: 85078.71216 | AI24: 112378.2616 | AJ24: 0 | AK24: 0 | AL24: 201379.0696 | AM24: 156824.2191 | AN24: 152458.9512 | AO24: 0 | AP24: 0 | AQ24: 0 | AR24: 0 | AS24: 766682.9919
B25: =Prop2021DistTar!C25 -> Low Voltage KW 1 rate | D25: 0 | E25: 0 | F25: 0 | G25: 3.08 | H25: 0 | I25: 0 | J25: 3.08 | K25: 0 | L25: 0 | M25: 0 | N25: 0 | O25: 29.68 | P25: 11.72 | R25: 4392 | S25: 0 | T25: 0 | U25: 20741.32671 | V25: 0 | W25: 0 | X25: 49249.22386 | Y25: 0 | Z25: 0 | AA25: 0 | AB25: 0 | AC25: 6369.862 | AD25: 9838.826 | AF25: 0 | AG25: 0 | AH25: 0 | AI25: 638.8328628 | AJ25: 0 | AK25: 0 | AL25: 1516.876095 | AM25: 0 | AN25: 0 | AO25: 0 | AP25: 0 | AQ25: 1890.575042 | AR25: 1153.110407 | AS25: 5199.394407
B26: =Prop2021DistTar!C26 -> Low voltage medium KW time of use (opt-in) | D26: 0 | E26: 0 | F26: 0 | G26: 3.85 | H26: 0 | I26: 0 | J26: 3.85 | K26: 0 | L26: 0 | M26: 0 | N26: 0 | O26: 43.59 | P26: 29.05 | R26: 208620 | S26: 0 | T26: 0 | U26: 28957081.84 | V26: 0 | W26: 0 | X26: 58125647.51 | Y26: 0 | Z26: 0 | AA26: 0 | AB26: 0 | AC26: 3030279.076 | AD26: 4671498.06 | AF26: 0 | AG26: 0 | AH26: 0 | AI26: 1114847.651 | AJ26: 0 | AK26: 0 | AL26: 2237837.429 | AM26: 0 | AN26: 0 | AO26: 0 | AP26: 0 | AQ26: 1320898.649 | AR26: 1357070.186 | AS26: 6030653.916
B27: =Prop2021DistTar!C27 -> Low voltage medium KW 1 rate (mandatory) | D27: 0 | E27: 0 | F27: 0 | G27: 3.85 | H27: 0 | I27: 0 | J27: 3.85 | K27: 0 | L27: 0 | M27: 0 | N27: 0 | O27: 43.59 | P27: 29.05 | R27: 2445612 | S27: 0 | T27: 0 | U27: 183561587.5 | V27: 0 | W27: 0 | X27: 356050860 | Y27: 0 | Z27: 0 | AA27: 0 | AB27: 0 | AC27: 24585704.74 | AD27: 44978171.62 | AF27: 0 | AG27: 0 | AH27: 0 | AI27: 7067121.117 | AJ27: 0 | AK27: 0 | AL27: 13707958.11 | AM27: 0 | AN27: 0 | AO27: 0 | AP27: 0 | AQ27: 10716908.7 | AR27: 13066158.86 | AS27: 44558146.78
AF28: 0 | AG28: 0 | AH28: 0 | AI28: 0 | AJ28: 0 | AK28: 0 | AL28: 0 | AM28: 0 | AN28: 0 | AO28: 0 | AP28: 0 | AQ28: 0 | AR28: 0 | AS28: 0
AF29: 0 | AG29: 0 | AH29: 0 | AI29: 0 | AJ29: 0 | AK29: 0 | AL29: 0 | AM29: 0 | AN29: 0 | AO29: 0 | AP29: 0 | AQ29: 0 | AR29: 0 | AS29: 0
AF30: 0 | AG30: 0 | AH30: 0 | AI30: 0 | AJ30: 0 | AK30: 0 | AL30: 0 | AM30: 0 | AN30: 0 | AO30: 0 | AP30: 0 | AQ30: 0 | AR30: 0 | AS30: 0
AF31: 0 | AG31: 0 | AH31: 0 | AI31: 0 | AJ31: 0 | AK31: 0 | AL31: 0 | AM31: 0 | AN31: 0 | AO31: 0 | AP31: 0 | AQ31: 0 | AR31: 0 | AS31: 0
AF32: 0 | AG32: 0 | AH32: 0 | AI32: 0 | AJ32: 0 | AK32: 0 | AL32: 0 | AM32: 0 | AN32: 0 | AO32: 0 | AP32: 0 | AQ32: 0 | AR32: 0 | AS32: 0
AF33: 0 | AG33: 0 | AH33: 0 | AI33: 0 | AJ33: 0 | AK33: 0 | AL33: 0 | AM33: 0 | AN33: 0 | AO33: 0 | AP33: 0 | AQ33: 0 | AR33: 0 | AS33: 0
AF34: 0 | AG34: 0 | AH34: 0 | AI34: 0 | AJ34: 0 | AK34: 0 | AL34: 0 | AM34: 0 | AN34: 0 | AO34: 0 | AP34: 0 | AQ34: 0 | AR34: 0 | AS34: 0
AF35: 0 | AG35: 0 | AH35: 0 | AI35: 0 | AJ35: 0 | AK35: 0 | AL35: 0 | AM35: 0 | AN35: =L35/100*Z35 -> 0 | AO35: 0 | AP35: 0 | AQ35: 0 | AR35: 0 | AS35: 0
AF36: 0 | AG36: 0 | AH36: 0 | AI36: 0 | AJ36: 0 | AK36: 0 | AL36: 0 | AM36: 0 | AN36: 0 | AO36: 0 | AP36: 0 | AQ36: 0 | AR36: 0 | AS36: 0
AF37: 0 | AG37: 0 | AH37: 0 | AI37: 0 | AJ37: 0 | AK37: 0 | AL37: 0 | AM37: 0 | AN37: 0 | AO37: 0 | AP37: 0 | AQ37: 0 | AR37: 0 | AS37: 0
AF38: 0 | AG38: 0 | AH38: 0 | AI38: 0 | AJ38: 0 | AK38: 0 | AL38: 0 | AM38: 0 | AN38: 0 | AO38: 0 | AP38: 0 | AQ38: 0 | AR38: 0 | AS38: 0
AF39: 0 | AG39: 0 | AH39: 0 | AI39: 0 | AJ39: 0 | AK39: 0 | AL39: 0 | AM39: 0 | AN39: 0 | AO39: 0 | AP39: 0 | AQ39: 0 | AR39: 0 | AS39: 0
AF40: 0 | AG40: 0 | AH40: 0 | AI40: 0 | AJ40: 0 | AK40: 0 | AL40: 0 | AM40: 0 | AN40: 0 | AO40: 0 | AP40: 0 | AQ40: 0 | AR40: 0 | AS40: 0
AF41: 0 | AG41: 0 | AH41: 0 | AI41: 0 | AJ41: 0 | AK41: 0 | AL41: 0 | AM41: 0 | AN41: 0 | AO41: 0 | AP41: 0 | AQ41: 0 | AR41: 0 | AS41: 0
AF42: 0 | AG42: 0 | AH42: 0 | AI42: 0 | AJ42: 0 | AK42: 0 | AL42: 0 | AM42: 0 | AN42: 0 | AO42: 0 | AP42: 0 | AQ42: 0 | AR42: 0 | AS42: 0
AF43: 0 | AG43: 0 | AH43: 0 | AI43: 0 | AJ43: 0 | AK43: 0 | AL43: 0 | AM43: 0 | AN43: 0 | AO43: 0 | AP43: 0 | AQ43: 0 | AR43: 0 | AS43: 0
AF44: 0 | AG44: 0 | AH44: 0 | AI44: 0 | AJ44: 0 | AK44: 0 | AL44: 0 | AM44: 0 | AN44: 0 | AO44: 0 | AP44: 0 | AQ44: 0 | AR44: 0 | AS44: 0
AF45: 0 | AG45: 0 | AH45: 0 | AI45: 0 | AJ45: 0 | AK45: 0 | AL45: 0 | AM45: 0 | AN45: 0 | AO45: 0 | AP45: 0 | AQ45: 0 | AR45: 0 | AS45: 0
AF46: 0 | AG46: 0 | AH46: 0 | AI46: 0 | AJ46: 0 | AK46: 0 | AL46: 0 | AM46: 0 | AN46: 0 | AO46: 0 | AP46: 0 | AQ46: 0 | AR46: 0 | AS46: 0
AF47: 0 | AG47: 0 | AH47: 0 | AI47: 0 | AJ47: 0 | AK47: 0 | AL47: 0 | AM47: 0 | AN47: 0 | AO47: 0 | AP47: 0 | AQ47: 0 | AR47: 0 | AS47: 0
AF48: 0 | AG48: 0 | AH48: 0 | AI48: 0 | AJ48: 0 | AK48: 0 | AL48: 0 | AM48: 0 | AN48: 0 | AO48: 0 | AP48: 0 | AQ48: 0 | AR48: 0 | AS48: 0
AF49: 0 | AG49: 0 | AH49: 0 | AI49: 0 | AJ49: 0 | AK49: 0 | AL49: 0 | AM49: 0 | AN49: 0 | AO49: 0 | AP49: 0 | AQ49: 0 | AR49: 0 | AS49: 0
AF50: 0 | AG50: 0 | AH50: 0 | AI50: 0 | AJ50: 0 | AK50: 0 | AL50: 0 | AM50: 0 | AN50: 0 | AO50: 0 | AP50: 0 | AQ50: 0 | AR50: 0 | AS50: 0
AF51: 0 | AG51: 0 | AH51: 0 | AI51: 0 | AJ51: 0 | AK51: 0 | AL51: 0 | AM51: 0 | AN51: 0 | AO51: 0 | AP51: 0 | AQ51: 0 | AR51: 0 | AS51: 0
AF52: 0 | AG52: 0 | AH52: 0 | AI52: 0 | AJ52: 0 | AK52: 0 | AL52: 0 | AM52: 0 | AN52: 0 | AO52: 0 | AP52: 0 | AQ52: 0 | AR52: 0 | AS52: 0
AF53: 0 | AG53: 0 | AH53: 0 | AI53: 0 | AJ53: 0 | AK53: 0 | AL53: 0 | AM53: 0 | AN53: 0 | AO53: 0 | AP53: 0 | AQ53: 0 | AR53: 0 | AS53: 0
AF54: 0 | AG54: 0 | AH54: 0 | AI54: 0 | AJ54: 0 | AK54: 0 | AL54: 0 | AM54: 0 | AN54: 0 | AO54: 0 | AP54: 0 | AQ54: 0 | AR54: 0 | AS54: 0
AF55: 0 | AG55: 0 | AH55: 0 | AI55: 0 | AJ55: 0 | AK55: 0 | AL55: 0 | AM55: 0 | AN55: 0 | AO55: 0 | AP55: 0 | AQ55: 0 | AR55: 0 | AS55: 0
AF56: 0 | AG56: 0 | AH56: 0 | AI56: 0 | AJ56: 0 | AK56: 0 | AL56: 0 | AM56: 0 | AN56: 0 | AO56: 0 | AP56: 0 | AQ56: 0 | AR56: 0 | AS56: 0
AF57: 0 | AG57: 0 | AH57: 0 | AI57: 0 | AJ57: 0 | AK57: 0 | AL57: 0 | AM57: 0 | AN57: 0 | AO57: 0 | AP57: 0 | AQ57: 0 | AR57: 0 | AS57: 0
AF58: 0 | AG58: 0 | AH58: 0 | AI58: 0 | AJ58: 0 | AK58: 0 | AL58: 0 | AM58: 0 | AN58: 0 | AO58: 0 | AP58: 0 | AQ58: 0 | AR58: 0 | AS58: 0
AF59: 0 | AG59: 0 | AH59: 0 | AI59: 0 | AJ59: 0 | AK59: 0 | AL59: 0 | AM59: 0 | AN59: 0 | AO59: 0 | AP59: 0 | AQ59: 0 | AR59: 0 | AS59: 0
AF60: 0 | AG60: 0 | AH60: 0 | AI60: 0 | AJ60: 0 | AK60: 0 | AL60: 0 | AM60: 0 | AN60: 0 | AO60: 0 | AP60: 0 | AQ60: 0 | AR60: 0 | AS60: 0
AF61: 0 | AG61: 0 | AH61: 0 | AI61: 0 | AJ61: 0 | AK61: 0 | AL61: 0 | AM61: 0 | AN61: 0 | AO61: 0 | AP61: 0 | AQ61: 0 | AR61: 0 | AS61: 0
AF62: 0 | AG62: 0 | AH62: 0 | AI62: 0 | AJ62: 0 | AK62: 0 | AL62: 0 | AM62: 0 | AN62: 0 | AO62: 0 | AP62: 0 | AQ62: 0 | AR62: 0 | AS62: 0
R63: =SUM(R6:R62) -> 276925924 | S63: 1082561070 | T63: 14944122.32 | U63: 946758713.4 | V63: 1765288643 | W63: 0 | X63: 1454463568 | Y63: 2274196081 | Z63: 27838042.08 | AA63: 431167120.8 | AB63: 128432748.2 | AC63: 27622353.68 | AD63: 49659508.5 | AF63: =SUM(AF6:AF62) -> 21091760.82 | AG63: 82868159.17 | AH63: 690482.7644 | AI63: 31198720.78 | AJ63: 134932014.9 | AK63: 0 | AL63: 45156230.48 | AM63: =SUM(AM6:AM62) -> 32889000.87 | AN63: 1284534.173 | AO63: 63508716.5 | AP63: 28224836.46 | AQ63: 12039697.92 | AR63: 14424382.15 | AS63: 468308537

Sheet Prop2021TransTar
B1: ="Tariff Approval - "&'Model update'!C3 -> Tariff Approval - United Energy | D1: ="Prop"&'Model update'!$C$5&"TransTar" -> Prop2021TransTar
B3: ="PROPOSED "&'Model update'!$C$5&" TRANSMISSION TARIFFS" -> PROPOSED 2021 TRANSMISSION TARIFFS
D4: ="Proposed Transmission Tariffs (Pt) for "&'Model update'!$C$5 -> Proposed Transmission Tariffs (Pt) for 2021 | R4: ="Forecast Quantities (Qt) for "&'Model update'!$C$5 -> Forecast Quantities (Qt) for 2021 | AF4: ="Forecast Revenue (Pt "&'Model update'!$C$5&")*(Qt " &'Model update'!$C$5&")" -> Forecast Revenue (Pt 2021)*(Qt 2021)
B5: Proposed tariff | D5: =Prop2021DistTar!D5 -> PropTar Fixed | E5: =Prop2021DistTar!E5 -> PropTar PkBlk1 | F5: =Prop2021DistTar!F5 -> PropTar PkBlk2 | G5: =Prop2021DistTar!G5 -> PropTar PkBlk3 | H5: =Prop2021DistTar!H5 -> PropTar PkBlk4 | I5: =Prop2021DistTar!I5 -> PropTar OPkBlk1 | J5: =Prop2021DistTar!J5 -> PropTar OPkBlk2 | K5: =Prop2021DistTar!K5 -> PropTar OPkBlk3 | L5: =Prop2021DistTar!L5 -> PropTar OPkBlk4 | M5: =Prop2021DistTar!M5 -> PropTar DemBlk1 | N5: =Prop2021DistTar!N5 -> PropTar DemBlk2 | O5: =Prop2021DistTar!O5 -> PropTar DemBlk3 | P5: =Prop2021DistTar!P5 -> PropTar DemBlk4 | R5: =Prop2021DistTar!AF5 -> FcastVol Fixed | S5: =Prop2021DistTar!AG5 -> FcastVol PkBlk1 | T5: =Prop2021DistTar!AH5 -> FcastVol PkBlk2 | U5: =Prop2021DistTar!AI5 -> FcastVol PkBlk3 | V5: =Prop2021DistTar!AJ5 -> FcastVol PkBlk4 | W5: =Prop2021DistTar!AK5 -> FcastVol OPkBlk1 | X5: =Prop2021DistTar!AL5 -> FcastVol OPkBlk2 | Y5: =Prop2021DistTar!AM5 -> FcastVol OPkBlk3 | Z5: =Prop2021DistTar!AN5 -> FcastVol OPkBlk4 | AA5: =Prop2021DistTar!AO5 -> FcastVol DemBlk1 | AB5: =Prop2021DistTar!AP5 -> FcastVol DemBlk2 | AC5: =Prop2021DistTar!AQ5 -> FcastVol DemBlk3 | AD5: =Prop2021DistTar!AR5 -> FcastVol DemBlk4 | AF5: PropRev Fixed | AG5: PropRev PkBlk1 | AH5: PropRev PkBlk2 | AI5: PropRev PkBlk3 | AJ5: PropRev PkBlk4 | AK5: PropRev OPkBlk1 | AL5: PropRev OPkBlk2 | AM5: PropRev OPkBlk3 | AN5: PropRev OPkBlk4 | AO5: PropRev DemBlk1 | AP5: PropRev DemBlk2 | AQ5: PropRev DemBlk3 | AR5: PropRev DemBlk4 | AS5: PropRev Total
B6: =Prop2021DistTar!B6 -> Low voltage small 1 rate | D6: 0 | E6: 2.13 | F6: 0 | G6: 0 | H6: 2.13 | I6: 0 | J6: 0 | K6: 0 | L6: 0 | M6: 0 | N6: 0 | O6: 0 | P6: 0 | R6: =Prop2021DistTar!AF6 -> 105535115.1 | S6: =Prop2021DistTar!AG6 -> 575188203.9 | T6: =Prop2021DistTar!AH6 -> 0 | U6: =Prop2021DistTar!AI6 -> 0 | V6: =Prop2021DistTar!AJ6 -> 643558421 | W6: =Prop2021DistTar!AK6 -> 0 | X6: =Prop2021DistTar!AL6 -> 0 | Y6: =Prop2021DistTar!AM6 -> 0 | Z6: =Prop2021DistTar!AN6 -> 0 | AA6: =Prop2021DistTar!AO6 -> 0 | AB6: =Prop2021DistTar!AP6 -> 0 | AC6: =Prop2021DistTar!AQ6 -> 0 | AD6: =Prop2021DistTar!AR6 -> 0 | AF6: =D6/100*R6 -> 0 | AG6: =E6/100*S6 -> 12251508.74 | AH6: 0 | AI6: 0 | AJ6: 13707794.37 | AK6: 0 | AL6: 0 | AM6: 0 | AN6: 0 | AO6: =M6/100*AA6 -> 0 | AP6: =N6/100*AB6 -> 0 | AQ6: 0 | AR6: 0 | AS6: =SUM(AF6:AR6) -> 25959303.11
B7: =Prop2021DistTar!B7 -> Winter economy tariff | D7: 0 | E7: 2.12 | F7: 0 | G7: 0 | H7: 2.12 | I7: 0 | J7: 0 | K7: 0 | L7: 0 | M7: 0 | N7: 0 | O7: 0 | P7: 0 | R7: =Prop2021DistTar!AF7 -> 20303.0233 | S7: =Prop2021DistTar!AG7 -> 181305.4411 | T7: =Prop2021DistTar!AH7 -> 0 | U7: =Prop2021DistTar!AI7 -> 0 | V7: =Prop2021DistTar!AJ7 -> 215568.4495 | W7: =Prop2021DistTar!AK7 -> 0 | X7: =Prop2021DistTar!AL7 -> 0 | Y7: =Prop2021DistTar!AM7 -> 0 | Z7: =Prop2021DistTar!AN7 -> 0 | AA7: =Prop2021DistTar!AO7 -> 0 | AB7: =Prop2021DistTar!AP7 -> 0 | AC7: =Prop2021DistTar!AQ7 -> 0 | AD7: =Prop2021DistTar!AR7 -> 0 | AF7: =D7/100*R7 -> 0 | AG7: =E7/100*S7 -> 3843.675352 | AH7: 0 | AI7: 0 | AJ7: 4570.05113 | AK7: 0 | AL7: 0 | AM7: 0 | AN7: 0 | AO7: =M7/100*AA7 -> 0 | AP7: =N7/100*AB7 -> 0 | AQ7: =O7/100*AC7 -> 0 | AR7: =P7/100*AD7 -> 0 | AS7: =SUM(AF7:AR7) -> 8413.726482
B8: =Prop2021DistTar!B8 -> Low voltage small 2 rate | D8: 0 | E8: 0 | F8: 0 | G8: 3.8 | H8: 0 | I8: 0 | J8: 3.8 | K8: 0 | L8: 0 | M8: 0 | N8: 0 | O8: 0 | P8: 0 | R8: =Prop2021DistTar!AF8 -> 742249.2661 | S8: =Prop2021DistTar!AG8 -> 0 | T8: =Prop2021DistTar!AH8 -> 0 | U8: =Prop2021DistTar!AI8 -> 2499563.889 | V8: =Prop2021DistTar!AJ8 -> 0 | W8: =Prop2021DistTar!AK8 -> 0 | X8: =Prop2021DistTar!AL8 -> 2827981.973 | Y8: =Prop2021DistTar!AM8 -> 6999544.012 | Z8: =Prop2021DistTar!AN8 -> 0 | AA8: =Prop2021DistTar!AO8 -> 0 | AB8: =Prop2021DistTar!AP8 -> 0 | AC8: =Prop2021DistTar!AQ8 -> 0 | AD8: =Prop2021DistTar!AR8 -> 0 | AF8: 0 | AG8: 0 | AH8: 0 | AI8: 94983.42778 | AJ8: 0 | AK8: 0 | AL8: 107463.315 | AM8: 0 | AN8: 0 | AO8: 0 | AP8: 0 | AQ8: 0 | AR8: 0 | AS8: 202446.7428
B9: =Prop2021DistTar!B9 -> Dedicated circuit | D9: 0 | E9: 0 | F9: 0 | G9: 0 | H9: 0 | I9: 0 | J9: 0 | K9: 0 | L9: 0 | M9: 0 | N9: 0 | O9: 0 | P9: 0 | R9: =Prop2021DistTar!AF9 -> 10497943.42 | S9: =Prop2021DistTar!AG9 -> 0 | T9: =Prop2021DistTar!AH9 -> 0 | U9: =Prop2021DistTar!AI9 -> 0 | V9: =Prop2021DistTar!AJ9 -> 0 | W9: =Prop2021DistTar!AK9 -> 0 | X9: =Prop2021DistTar!AL9 -> 0 | Y9: =Prop2021DistTar!AM9 -> 39206702.57 | Z9: =Prop2021DistTar!AN9 -> 0 | AA9: =Prop2021DistTar!AO9 -> 0 | AB9: =Prop2021DistTar!AP9 -> 0 | AC9: =Prop2021DistTar!AQ9 -> 0 | AD9: =Prop2021DistTar!AR9 -> 0 | AF9: 0 | AG9: 0 | AH9: 0 | AI9: 0 | AJ9: 0 | AK9: 0 | AL9: 0 | AM9: 0 | AN9: 0 | AO9: 0 | AP9: 0 | AQ9: 0 | AR9: 0 | AS9: 0
B10: =Prop2021DistTar!B10 -> Low voltage medium 1 rate | D10: 0 | E10: 2.46 | F10: 0 | G10: 0 | H10: 2.46 | I10: 0 | J10: 0 | K10: 0 | L10: 0 | M10: 0 | N10: 0 | O10: 0 | P10: 0 | R10: =Prop2021DistTar!AF10 -> 6562937.838 | S10: =Prop2021DistTar!AG10 -> 93520651.51 | T10: =Prop2021DistTar!AH10 -> 0 | U10: =Prop2021DistTar!AI10 -> 0 | V10: =Prop2021DistTar!AJ10 -> 97984486.3 | W10: =Prop2021DistTar!AK10 -> 0 | X10: =Prop2021DistTar!AL10 -> 0 | Y10: =Prop2021DistTar!AM10 -> 0 | Z10: =Prop2021DistTar!AN10 -> 0 | AA10: =Prop2021DistTar!AO10 -> 0 | AB10: =Prop2021DistTar!AP10 -> 0 | AC10: =Prop2021DistTar!AQ10 -> 0 | AD10: =Prop2021DistTar!AR10 -> 0 | AF10: 0 | AG10: 2300608.027 | AH10: 0 | AI10: 0 | AJ10: 2410418.363 | AK10: 0 | AL10: 0 | AM10: 0 | AN10: 0 | AO10: 0 | AP10: 0 | AQ10: 0 | AR10: 0 | AS10: 4711026.39
B11: =Prop2021DistTar!B11 -> Low voltage medium 2 rate 5 day | D11: 0 | E11: 0 | F11: 0 | G11: 2.4 | H11: 0 | I11: 0 | J11: 2.4 | K11: 0 | L11: 0 | M11: 0 | N11: 0 | O11: 0 | P11: 0 | R11: =Prop2021DistTar!AF11 -> 1691005.151 | S11: =Prop2021DistTar!AG11 -> 0 | T11: =Prop2021DistTar!AH11 -> 0 | U11: =Prop2021DistTar!AI11 -> 25877867.25 | V11: =Prop2021DistTar!AJ11 -> 0 | W11: =Prop2021DistTar!AK11 -> 0 | X11: =Prop2021DistTar!AL11 -> 25255618.89 | Y11: =Prop2021DistTar!AM11 -> 32072694.78 | Z11: =Prop2021DistTar!AN11 -> 0 | AA11: =Prop2021DistTar!AO11 -> 0 | AB11: =Prop2021DistTar!AP11 -> 0 | AC11: =Prop2021DistTar!AQ11 -> 0 | AD11: =Prop2021DistTar!AR11 -> 0 | AF11: 0 | AG11: 0 | AH11: 0 | AI11: 621068.814 | AJ11: 0 | AK11: 0 | AL11: 606134.8533 | AM11: 0 | AN11: 0 | AO11: 0 | AP11: 0 | AQ11: 0 | AR11: 0 | AS11: 1227203.667
B12: =Prop2021DistTar!B12 -> Low voltage medium 2 rate 7 day | D12: 0 | E12: 0 | F12: 0 | G12: 2.3 | H12: 0 | I12: 0 | J12: 2.3 | K12: 0 | L12: 0 | M12: 0 | N12: 0 | O12: 0 | P12: 0 | R12: =Prop2021DistTar!AF12 -> 867755.014 | S12: =Prop2021DistTar!AG12 -> 0 | T12: =Prop2021DistTar!AH12 -> 0 | U12: =Prop2021DistTar!AI12 -> 11704182.6 | V12: =Prop2021DistTar!AJ12 -> 0 | W12: =Prop2021DistTar!AK12 -> 0 | X12: =Prop2021DistTar!AL12 -> 12021985.87 | Y12: =Prop2021DistTar!AM12 -> 6431319.934 | Z12: =Prop2021DistTar!AN12 -> 0 | AA12: =Prop2021DistTar!AO12 -> 0 | AB12: =Prop2021DistTar!AP12 -> 0 | AC12: =Prop2021DistTar!AQ12 -> 0 | AD12: =Prop2021DistTar!AR12 -> 0 | AF12: 0 | AG12: 0 | AH12: 0 | AI12: 269196.1997 | AJ12: 0 | AK12: 0 | AL12: 276505.6751 | AM12: 0 | AN12: 0 | AO12: 0 | AP12: 0 | AQ12: 0 | AR12: 0 | AS12: 545701.8748
B13: =Prop2021DistTar!B13 -> Unmetered supplies | D13: 0 | E13: 0 | F13: 0 | G13: 3.38 | H13: 0 | I13: 0 | J13: 3.38 | K13: 0 | L13: 0 | M13: 0 | N13: 0 | O13: 0 | P13: 0 | R13: =Prop2021DistTar!AF13 -> 1822730 | S13: =Prop2021DistTar!AG13 -> 0 | T13: =Prop2021DistTar!AH13 -> 0 | U13: =Prop2021DistTar!AI13 -> 7902465.985 | V13: =Prop2021DistTar!AJ13 -> 0 | W13: =Prop2021DistTar!AK13 -> 0 | X13: =Prop2021DistTar!AL13 -> 9120125.655 | Y13: =Prop2021DistTar!AM13 -> 31525884.81 | Z13: =Prop2021DistTar!AN13 -> 0 | AA13: =Prop2021DistTar!AO13 -> 0 | AB13: =Prop2021DistTar!AP13 -> 0 | AC13: =Prop2021DistTar!AQ13 -> 0 | AD13: =Prop2021DistTar!AR13 -> 0 | AF13: 0 | AG13: 0 | AH13: 0 | AI13: 267103.3503 | AJ13: 0 | AK13: 0 | AL13: 308260.2471 | AM13: 0 | AN13: 0 | AO13: 0 | AP13: 0 | AQ13: 0 | AR13: 0 | AS13: 575363.5974
B14: =Prop2021DistTar!B14 -> Low voltage large 1 rate | D14: 0 | E14: 2.46 | F14: 0 | G14: 0 | H14: 2.46 | I14: 0 | J14: 0 | K14: 0 | L14: 0 | M14: 0 | N14: 0 | O14: 0 | P14: 0 | R14: =Prop2021DistTar!AF14 -> 1081.090134 | S14: =Prop2021DistTar!AG14 -> 352696.6831 | T14: =Prop2021DistTar!AH14 -> 0 | U14: =Prop2021DistTar!AI14 -> 0 | V14: =Prop2021DistTar!AJ14 -> 338387.6259 | W14: =Prop2021DistTar!AK14 -> 0 | X14: =Prop2021DistTar!AL14 -> 0 | Y14: =Prop2021DistTar!AM14 -> 0 | Z14: =Prop2021DistTar!AN14 -> 0 | AA14: =Prop2021DistTar!AO14 -> 0 | AB14: =Prop2021DistTar!AP14 -> 0 | AC14: =Prop2021DistTar!AQ14 -> 0 | AD14: =Prop2021DistTar!AR14 -> 0 | AF14: 0 | AG14: 8676.338404 | AH14: 0 | AI14: 0 | AJ14: 8324.335598 | AK14: 0 | AL14: 0 | AM14: 0 | AN14: 0 | AO14: 0 | AP14: 0 | AQ14: 0 | AR14: 0 | AS14: 17000.674
B15: =Prop2021DistTar!B15 -> Low voltage large 2 rate | D15: 0 | E15: 0 | F15: 0 | G15: 2.68 | H15: 0 | I15: 0 | J15: 2.68 | K15: 0 | L15: 0 | M15: 0 | N15: 0 | O15: 0 | P15: 0 | R15: =Prop2021DistTar!AF15 -> 2882.907023 | S15: =Prop2021DistTar!AG15 -> 0 | T15: =Prop2021DistTar!AH15 -> 0 | U15: =Prop2021DistTar!AI15 -> 355464.9612 | V15: =Prop2021DistTar!AJ15 -> 0 | W15: =Prop2021DistTar!AK15 -> 0 | X15: =Prop2021DistTar!AL15 -> 291682.2199 | Y15: =Prop2021DistTar!AM15 -> 434712.6804 | Z15: =Prop2021DistTar!AN15 -> 0 | AA15: =Prop2021DistTar!AO15 -> 0 | AB15: =Prop2021DistTar!AP15 -> 0 | AC15: =Prop2021DistTar!AQ15 -> 0 | AD15: =Prop2021DistTar!AR15 -> 0 | AF15: 0 | AG15: 0 | AH15: 0 | AI15: 9526.46096 | AJ15: 0 | AK15: 0 | AL15: 7817.083494 | AM15: 0 | AN15: 0 | AO15: 0 | AP15: 0 | AQ15: 0 | AR15: 0 | AS15: 17343.54445
B16: =Prop2021DistTar!B16 -> Low voltage KW time of use | D16: 0 | E16: 0 | F16: 0 | G16: 2.03 | H16: 0 | I16: 0 | J16: 2.03 | K16: 0 | L16: 0 | M16: 0 | N16: 10.75 | R16: =Prop2021DistTar!AF16 -> 33320.53009 | S16: =Prop2021DistTar!AG16 -> 0 | T16: =Prop2021DistTar!AH16 -> 0 | U16: =Prop2021DistTar!AI16 -> 1475141.763 | V16: =Prop2021DistTar!AJ16 -> 0 | W16: =Prop2021DistTar!AK16 -> 0 | X16: =Prop2021DistTar!AL16 -> 1370460.818 | Y16: =Prop2021DistTar!AM16 -> 2593202.45 | Z16: =Prop2021DistTar!AN16 -> 0 | AA16: =Prop2021DistTar!AO16 -> 0 | AB16: =Prop2021DistTar!AP16 -> 392057.726 | AC16: =Prop2021DistTar!AQ16 -> 0 | AD16: =Prop2021DistTar!AR16 -> 0 | AF16: 0 | AG16: 0 | AH16: 0 | AI16: 29945.3778 | AJ16: 0 | AK16: 0 | AL16: 27820.3546 | AM16: 0 | AN16: 0 | AO16: 0 | AP16: 42146.20555 | AQ16: 0 | AR16: 0 | AS16: 99911.93794
B17: =Prop2021DistTar!B17 -> Low voltage KW time of use - HOT | D17: 0 | E17: 0 | F17: 0 | G17: 1.32 | H17: 0 | I17: 0 | J17: 1.32 | K17: 0 | L17: 0 | M17: 0 | N17: 12.16 | R17: =Prop2021DistTar!AF17 -> 2716.347562 | S17: =Prop2021DistTar!AG17 -> 0 | T17: =Prop2021DistTar!AH17 -> 0 | U17: =Prop2021DistTar!AI17 -> 19807.75145 | V17: =Prop2021DistTar!AJ17 -> 0 | W17: =Prop2021DistTar!AK17 -> 0 | X17: =Prop2021DistTar!AL17 -> 30069.46231 | Y17: =Prop2021DistTar!AM17 -> 52684.78034 | Z17: =Prop2021DistTar!AN17 -> 0 | AA17: =Prop2021DistTar!AO17 -> 0 | AB17: =Prop2021DistTar!AP17 -> 7608.504 | AC17: =Prop2021DistTar!AQ17 -> 0 | AD17: =Prop2021DistTar!AR17 -> 0 | AF17: 0 | AG17: 0 | AH17: 0 | AI17: 261.4623191 | AJ17: 0 | AK17: 0 | AL17: 396.9169025 | AM17: 0 | AN17: 0 | AO17: 0 | AP17: 925.1940864 | AQ17: 0 | AR17: 0 | AS17: 1583.573308
B18: =Prop2021DistTar!B18 -> Low voltage large KVA time of use | D18: 0 | E18: 0 | F18: 0 | G18: 1.05 | H18: 0 | I18: 0 | J18: 1.05 | K18: 0 | L18: 0 | M18: 4.99 | N18: 6.8 | O18: 0 | P18: 0 | R18: =Prop2021DistTar!AF18 -> 541277.5242 | S18: =Prop2021DistTar!AG18 -> 0 | T18: =Prop2021DistTar!AH18 -> 0 | U18: =Prop2021DistTar!AI18 -> 266174637 | V18: =Prop2021DistTar!AJ18 -> 0 | W18: =Prop2021DistTar!AK18 -> 0 | X18: =Prop2021DistTar!AL18 -> 250479794.6 | Y18: =Prop2021DistTar!AM18 -> 611889749.5 | Z18: =Prop2021DistTar!AN18 -> 0 | AA18: =Prop2021DistTar!AO18 -> 159541608.1 | AB18: =Prop2021DistTar!AP18 -> 56665442.46 | AC18: =Prop2021DistTar!AQ18 -> 0 | AD18: =Prop2021DistTar!AR18 -> 0 | AF18: 0 | AG18: 0 | AH18: 0 | AI18: 2794833.688 | AJ18: 0 | AK18: 0 | AL18: 2630037.844 | AM18: 0 | AN18: 0 | AO18: 7961126.245 | AP18: 3853250.087 | AQ18: 0 | AR18: 0 | AS18: 17239247.86
B19: =Prop2021DistTar!B19 -> High voltage KVA time of use | D19: 0 | E19: 0 | F19: 0 | G19: 0.64 | H19: 0 | I19: 0 | J19: 0.64 | K19: 0 | L19: 0 | M19: 5.68 | N19: 5.96 | O19: 0 | P19: 0 | R19: =Prop2021DistTar!AF19 -> 18018 | S19: =Prop2021DistTar!AG19 -> 0 | T19: =Prop2021DistTar!AH19 -> 0 | U19: =Prop2021DistTar!AI19 -> 105000326.1 | V19: =Prop2021DistTar!AJ19 -> 0 | W19: =Prop2021DistTar!AK19 -> 0 | X19: =Prop2021DistTar!AL19 -> 105357041.1 | Y19: =Prop2021DistTar!AM19 -> 326268953.2 | Z19: =Prop2021DistTar!AN19 -> 0 | AA19: =Prop2021DistTar!AO19 -> 51478074.62 | AB19: =Prop2021DistTar!AP19 -> 19753789.02 | AC19: =Prop2021DistTar!AQ19 -> 0 | AD19: =Prop2021DistTar!AR19 -> 0 | AF19: 0 | AG19: 0 | AH19: 0 | AI19: 672002.0867 | AJ19: 0 | AK19: 0 | AL19: 674285.0628 | AM19: 0 | AN19: 0 | AO19: 2923954.639 | AP19: 1177325.826 | AQ19: 0 | AR19: 0 | AS19: 5447567.614
B20: =Prop2021DistTar!B20 -> Subtransmission KVA time of use | D20: 0 | E20: 0 | F20: 0 | G20: 0.39 | H20: 0 | I20: 0 | J20: 0.39 | K20: 0 | L20: 0 | M20: 4.6 | N20: 5.59 | O20: 0 | P20: 0 | R20: =Prop2021DistTar!AF20 -> 182 | S20: =Prop2021DistTar!AG20 -> 0 | T20: =Prop2021DistTar!AH20 -> 0 | U20: =Prop2021DistTar!AI20 -> 3670916.351 | V20: =Prop2021DistTar!AJ20 -> 0 | W20: =Prop2021DistTar!AK20 -> 0 | X20: =Prop2021DistTar!AL20 -> 3584660.543 | Y20: =Prop2021DistTar!AM20 -> 5707425.983 | Z20: =Prop2021DistTar!AN20 -> 0 | AA20: =Prop2021DistTar!AO20 -> 2018875.22 | AB20: =Prop2021DistTar!AP20 -> 704348.9277 | AC20: =Prop2021DistTar!AQ20 -> 0 | AD20: =Prop2021DistTar!AR20 -> 0 | AF20: 0 | AG20: 0 | AH20: 0 | AI20: 14316.57377 | AJ20: 0 | AK20: 0 | AL20: 13980.17612 | AM20: 0 | AN20: 0 | AO20: 92868.26011 | AP20: 39373.10506 | AQ20: 0 | AR20: 0 | AS20: 160538.115
B21: =Prop2021DistTar!B21 -> TOD | D21: 0 | E21: 0 | F21: 3.56 | G21: 4.1 | H21: 0 | I21: 0 | J21: 4.1 | K21: 0 | L21: 3.56 | M21: 0 | N21: 0 | O21: 0 | P21: 0 | R21: =Prop2021DistTar!AF21 -> 7805872.272 | S21: =Prop2021DistTar!AG21 -> 0 | T21: =Prop2021DistTar!AH21 -> 7967927.955 | U21: =Prop2021DistTar!AI21 -> 13923627.87 | V21: =Prop2021DistTar!AJ21 -> 0 | W21: =Prop2021DistTar!AK21 -> 0 | X21: =Prop2021DistTar!AL21 -> 18072449.62 | Y21: =Prop2021DistTar!AM21 -> 54011897.04 | Z21: =Prop2021DistTar!AN21 -> 10342130.51 | AA21: =Prop2021DistTar!AO21 -> 0 | AB21: =Prop2021DistTar!AP21 -> 0 | AC21: =Prop2021DistTar!AQ21 -> 0 | AD21: =Prop2021DistTar!AR21 -> 0 | AF21: 0 | AG21: 0 | AH21: 283658.2352 | AI21: 570868.7425 | AJ21: 0 | AK21: 0 | AL21: 740970.4342 | AM21: 0 | AN21: 368179.8461 | AO21: 0 | AP21: 0 | AQ21: 0 | AR21: 0 | AS21: 1963677.258
B22: =Prop2021DistTar!B22 -> TOD9 | D22: 0 | E22: 0 | F22: 5.02 | G22: 5.32 | H22: 0 | I22: 0 | J22: 5.32 | K22: 0 | L22: 5.02 | M22: 0 | N22: 0 | O22: 0 | P22: 0 | R22: =Prop2021DistTar!AF22 -> 647318.9139 | S22: =Prop2021DistTar!AG22 -> 0 | T22: =Prop2021DistTar!AH22 -> 493655.1561 | U22: =Prop2021DistTar!AI22 -> 732234.7766 | V22: =Prop2021DistTar!AJ22 -> 0 | W22: =Prop2021DistTar!AK22 -> 0 | X22: =Prop2021DistTar!AL22 -> 1128201.925 | Y22: =Prop2021DistTar!AM22 -> 5034512.086 | Z22: =Prop2021DistTar!AN22 -> 760606.7275 | AA22: =Prop2021DistTar!AO22 -> 0 | AB22: =Prop2021DistTar!AP22 -> 0 | AC22: =Prop2021DistTar!AQ22 -> 0 | AD22: =Prop2021DistTar!AR22 -> 0 | AF22: 0 | AG22: 0 | AH22: 24781.48884 | AI22: 38954.89012 | AJ22: 0 | AK22: 0 | AL22: 60020.34239 | AM22: 0 | AN22: 38182.45772 | AO22: 0 | AP22: 0 | AQ22: 0 | AR22: 0 | AS22: 161939.1791
B23: =Prop2021DistTar!B23 -> TOU | D23: 0 | E23: 0 | F23: 0 | G23: 1.79 | H23: 0 | I23: 0 | J23: 1.79 | K23: 0 | L23: 0 | M23: 0 | N23: 7.04 | P23: 0 | R23: =Prop2021DistTar!AF23 -> 145958.409 | S23: =Prop2021DistTar!AG23 -> 0 | T23: =Prop2021DistTar!AH23 -> 0 | U23: =Prop2021DistTar!AI23 -> 2992497.155 | V23: =Prop2021DistTar!AJ23 -> 0 | W23: =Prop2021DistTar!AK23 -> 0 | X23: =Prop2021DistTar!AL23 -> 3490165.641 | Y23: =Prop2021DistTar!AM23 -> 5333993.167 | Z23: =Prop2021DistTar!AN23 -> 0 | AA23: =Prop2021DistTar!AO23 -> 0 | AB23: =Prop2021DistTar!AP23 -> 729616.782 | AC23: =Prop2021DistTar!AQ23 -> 0 | AD23: =Prop2021DistTar!AR23 -> 0 | AF23: 0 | AG23: 0 | AH23: 0 | AI23: 53565.69908 | AJ23: 0 | AK23: 0 | AL23: 62473.96497 | AM23: 0 | AN23: 0 | AO23: 0 | AP23: 51365.02145 | AQ23: 0 | AR23: 0 | AS23: 167404.6855
B24: =Prop2021DistTar!B24 -> TODFLEX | D24: 0 | E24: 0 | F24: 2.1 | G24: 4.34 | H24: 0 | I24: 0 | J24: 4.34 | K24: 0 | L24: 2.1 | M24: 0 | N24: 0 | O24: 0 | P24: 0 | R24: =Prop2021DistTar!AF24 -> 344785.5758 | S24: =Prop2021DistTar!AG24 -> 0 | T24: =Prop2021DistTar!AH24 -> 967908.7097 | U24: =Prop2021DistTar!AI24 -> 472439.1766 | V24: =Prop2021DistTar!AJ24 -> 0 | W24: =Prop2021DistTar!AK24 -> 0 | X24: =Prop2021DistTar!AL24 -> 562268.6277 | Y24: =Prop2021DistTar!AM24 -> 1658072.417 | Z24: =Prop2021DistTar!AN24 -> 1151946.597 | AA24: =Prop2021DistTar!AO24 -> 0 | AB24: =Prop2021DistTar!AP24 -> 0 | AC24: =Prop2021DistTar!AQ24 -> 0 | AD24: =Prop2021DistTar!AR24 -> 0 | AF24: 0 | AG24: 0 | AH24: 20326.0829 | AI24: 20503.86026 | AJ24: 0 | AK24: 0 | AL24: 24402.45844 | AM24: 0 | AN24: 24190.87855 | AO24: 0 | AP24: 0 | AQ24: 0 | AR24: 0 | AS24: 89423.28016
B25: =Prop2021DistTar!B25 -> Low Voltage KW 1 rate | D25: 0 | E25: 0.48 | F25: 0 | G25: 0.48 | H25: 0 | I25: 0 | J25: 0.48 | K25: 0 | L25: 0 | M25: 0 | N25: 0 | O25: 3.59 | P25: 2.33 | R25: =Prop2021DistTar!AF25 -> 232295.8521 | S25: =Prop2021DistTar!AG25 -> 0 | T25: =Prop2021DistTar!AH25 -> 0 | U25: =Prop2021DistTar!AI25 -> 1080042.507 | V25: =Prop2021DistTar!AJ25 -> 0 | W25: =Prop2021DistTar!AK25 -> 0 | X25: =Prop2021DistTar!AL25 -> 1337152.656 | Y25: =Prop2021DistTar!AM25 -> 0 | Z25: =Prop2021DistTar!AN25 -> 0 | AA25: =Prop2021DistTar!AO25 -> 0 | AB25: =Prop2021DistTar!AP25 -> 0 | AC25: =Prop2021DistTar!AQ25 -> 184376.2935 | AD25: =Prop2021DistTar!AR25 -> 168329.1237 | AF25: 0 | AG25: 0 | AH25: 0 | AI25: 5184.204031 | AJ25: 0 | AK25: 0 | AL25: 6418.332748 | AM25: 0 | AN25: 0 | AO25: 0 | AP25: 0 | AQ25: 6619.108937 | AR25: 3922.068581 | AS25: 22143.7143
B26: =Prop2021DistTar!B26 -> Low voltage medium KW time of use (opt-in) | D26: 0 | E26: 1 | F26: 0 | G26: 1 | H26: 0 | I26: 0 | J26: 1 | K26: 0 | L26: 0 | M26: 0 | N26: 0 | O26: 11.31 | P26: 7.53 | R26: =Prop2021DistTar!AF26 -> 0 | S26: =Prop2021DistTar!AG26 -> 0 | T26: =Prop2021DistTar!AH26 -> 0 | U26: =Prop2021DistTar!AI26 -> 0 | V26: =Prop2021DistTar!AJ26 -> 0 | W26: =Prop2021DistTar!AK26 -> 0 | X26: =Prop2021DistTar!AL26 -> 0 | Y26: =Prop2021DistTar!AM26 -> 0 | Z26: =Prop2021DistTar!AN26 -> 0 | AA26: =Prop2021DistTar!AO26 -> 0 | AB26: =Prop2021DistTar!AP26 -> 0 | AC26: =Prop2021DistTar!AQ26 -> 0 | AD26: =Prop2021DistTar!AR26 -> 0 | AF26: 0 | AG26: 0 | AH26: 0 | AI26: 0 | AJ26: 0 | AK26: 0 | AL26: 0 | AM26: 0 | AN26: 0 | AO26: 0 | AP26: 0 | AQ26: 0 | AR26: 0 | AS26: 0
B27: =Prop2021DistTar!B27 -> Low voltage medium KW 1 rate (mandatory) | D27: 0 | E27: 0.97 | F27: 0 | G27: 0.97 | H27: 0 | I27: 0 | J27: 0.97 | K27: 0 | L27: 0 | M27: 0 | N27: 0 | O27: 10.9 | P27: 7.26 | R27: =Prop2021DistTar!AF27 -> 1304571.189 | S27: =Prop2021DistTar!AG27 -> 0 | T27: =Prop2021DistTar!AH27 -> 0 | U27: =Prop2021DistTar!AI27 -> 152577673.1 | V27: =Prop2021DistTar!AJ27 -> 0 | W27: =Prop2021DistTar!AK27 -> 0 | X27: =Prop2021DistTar!AL27 -> 146200098.8 | Y27: =Prop2021DistTar!AM27 -> 0 | Z27: =Prop2021DistTar!AN27 -> 0 | AA27: =Prop2021DistTar!AO27 -> 0 | AB27: =Prop2021DistTar!AP27 -> 0 | AC27: =Prop2021DistTar!AQ27 -> 20233521.01 | AD27: =Prop2021DistTar!AR27 -> 18174103.87 | AF27: 0 | AG27: 0 | AH27: 0 | AI27: 1480003.429 | AJ27: 0 | AK27: 0 | AL27: 1418140.958 | AM27: 0 | AN27: 0 | AO27: 0 | AP27: 0 | AQ27: 2205453.79 | AR27: 1319439.941 | AS27: 6423038.119
R28: =Prop2021DistTar!AF28 -> 0 | S28: =Prop2021DistTar!AG28 -> 0 | T28: =Prop2021DistTar!AH28 -> 0 | U28: =Prop2021DistTar!AI28 -> 0 | V28: =Prop2021DistTar!AJ28 -> 0 | W28: =Prop2021DistTar!AK28 -> 0 | X28: =Prop2021DistTar!AL28 -> 0 | Y28: =Prop2021DistTar!AM28 -> 0 | Z28: =Prop2021DistTar!AN28 -> 0 | AA28: =Prop2021DistTar!AO28 -> 0 | AB28: =Prop2021DistTar!AP28 -> 0 | AC28: =Prop2021DistTar!AQ28 -> 0 | AD28: =Prop2021DistTar!AR28 -> 0 | AF28: 0 | AG28: 0 | AH28: 0 | AI28: 0 | AJ28: 0 | AK28: 0 | AL28: 0 | AM28: 0 | AN28: 0 | AO28: 0 | AP28: 0 | AQ28: 0 | AR28: 0 | AS28: 0
R29: =Prop2021DistTar!AF29 -> 0 | S29: =Prop2021DistTar!AG29 -> 0 | T29: =Prop2021DistTar!AH29 -> 0 | U29: =Prop2021DistTar!AI29 -> 0 | V29: =Prop2021DistTar!AJ29 -> 0 | W29: =Prop2021DistTar!AK29 -> 0 | X29: =Prop2021DistTar!AL29 -> 0 | Y29: =Prop2021DistTar!AM29 -> 0 | Z29: =Prop2021DistTar!AN29 -> 0 | AA29: =Prop2021DistTar!AO29 -> 0 | AB29: =Prop2021DistTar!AP29 -> 0 | AC29: =Prop2021DistTar!AQ29 -> 0 | AD29: =Prop2021DistTar!AR29 -> 0 | AF29: 0 | AG29: 0 | AH29: 0 | AI29: 0 | AJ29: 0 | AK29: 0 | AL29: 0 | AM29: 0 | AN29: 0 | AO29: 0 | AP29: 0 | AQ29: 0 | AR29: 0 | AS29: 0
R30: =Prop2021DistTar!AF30 -> 0 | S30: =Prop2021DistTar!AG30 -> 0 | T30: =Prop2021DistTar!AH30 -> 0 | U30: =Prop2021DistTar!AI30 -> 0 | V30: =Prop2021DistTar!AJ30 -> 0 | W30: =Prop2021DistTar!AK30 -> 0 | X30: =Prop2021DistTar!AL30 -> 0 | Y30: =Prop2021DistTar!AM30 -> 0 | Z30: =Prop2021DistTar!AN30 -> 0 | AA30: =Prop2021DistTar!AO30 -> 0 | AB30: =Prop2021DistTar!AP30 -> 0 | AC30: =Prop2021DistTar!AQ30 -> 0 | AD30: =Prop2021DistTar!AR30 -> 0 | AF30: 0 | AG30: 0 | AH30: 0 | AI30: 0 | AJ30: 0 | AK30: 0 | AL30: 0 | AM30: 0 | AN30: 0 | AO30: 0 | AP30: 0 | AQ30: 0 | AR30: 0 | AS30: 0
R31: =Prop2021DistTar!AF31 -> 0 | S31: =Prop2021DistTar!AG31 -> 0 | T31: =Prop2021DistTar!AH31 -> 0 | U31: =Prop2021DistTar!AI31 -> 0 | V31: =Prop2021DistTar!AJ31 -> 0 | W31: =Prop2021DistTar!AK31 -> 0 | X31: =Prop2021DistTar!AL31 -> 0 | Y31: =Prop2021DistTar!AM31 -> 0 | Z31: =Prop2021DistTar!AN31 -> 0 | AA31: =Prop2021DistTar!AO31 -> 0 | AB31: =Prop2021DistTar!AP31 -> 0 | AC31: =Prop2021DistTar!AQ31 -> 0 | AD31: =Prop2021DistTar!AR31 -> 0 | AF31: 0 | AG31: 0 | AH31: 0 | AI31: 0 | AJ31: 0 | AK31: 0 | AL31: 0 | AM31: 0 | AN31: 0 | AO31: 0 | AP31: 0 | AQ31: 0 | AR31: 0 | AS31: 0
R32: =Prop2021DistTar!AF32 -> 0 | S32: =Prop2021DistTar!AG32 -> 0 | T32: =Prop2021DistTar!AH32 -> 0 | U32: =Prop2021DistTar!AI32 -> 0 | V32: =Prop2021DistTar!AJ32 -> 0 | W32: =Prop2021DistTar!AK32 -> 0 | X32: =Prop2021DistTar!AL32 -> 0 | Y32: =Prop2021DistTar!AM32 -> 0 | Z32: =Prop2021DistTar!AN32 -> 0 | AA32: =Prop2021DistTar!AO32 -> 0 | AB32: =Prop2021DistTar!AP32 -> 0 | AC32: =Prop2021DistTar!AQ32 -> 0 | AD32: =Prop2021DistTar!AR32 -> 0 | AF32: 0 | AG32: =E32/100*S32 -> 0 | AH32: 0 | AI32: 0 | AJ32: 0 | AK32: 0 | AL32: 0 | AM32: 0 | AN32: 0 | AO32: 0 | AP32: 0 | AQ32: 0 | AR32: 0 | AS32: =SUM(AF32:AR32) -> 0
R33: =Prop2021DistTar!AF33 -> 0 | S33: =Prop2021DistTar!AG33 -> 0 | T33: =Prop2021DistTar!AH33 -> 0 | U33: =Prop2021DistTar!AI33 -> 0 | V33: =Prop2021DistTar!AJ33 -> 0 | W33: =Prop2021DistTar!AK33 -> 0 | X33: =Prop2021DistTar!AL33 -> 0 | Y33: =Prop2021DistTar!AM33 -> 0 | Z33: =Prop2021DistTar!AN33 -> 0 | AA33: =Prop2021DistTar!AO33 -> 0 | AB33: =Prop2021DistTar!AP33 -> 0 | AC33: =Prop2021DistTar!AQ33 -> 0 | AD33: =Prop2021DistTar!AR33 -> 0 | AF33: 0 | AG33: 0 | AH33: 0 | AI33: 0 | AJ33: 0 | AK33: 0 | AL33: 0 | AM33: 0 | AN33: 0 | AO33: 0 | AP33: 0 | AQ33: 0 | AR33: 0 | AS33: 0
R34: =Prop2021DistTar!AF34 -> 0 | S34: =Prop2021DistTar!AG34 -> 0 | T34: =Prop2021DistTar!AH34 -> 0 | U34: =Prop2021DistTar!AI34 -> 0 | V34: =Prop2021DistTar!AJ34 -> 0 | W34: =Prop2021DistTar!AK34 -> 0 | X34: =Prop2021DistTar!AL34 -> 0 | Y34: =Prop2021DistTar!AM34 -> 0 | Z34: =Prop2021DistTar!AN34 -> 0 | AA34: =Prop2021DistTar!AO34 -> 0 | AB34: =Prop2021DistTar!AP34 -> 0 | AC34: =Prop2021DistTar!AQ34 -> 0 | AD34: =Prop2021DistTar!AR34 -> 0 | AF34: 0 | AG34: 0 | AH34: 0 | AI34: 0 | AJ34: 0 | AK34: 0 | AL34: 0 | AM34: 0 | AN34: 0 | AO34: 0 | AP34: 0 | AQ34: 0 | AR34: 0 | AS34: 0
R35: =Prop2021DistTar!AF35 -> 0 | S35: =Prop2021DistTar!AG35 -> 0 | T35: =Prop2021DistTar!AH35 -> 0 | U35: =Prop2021DistTar!AI35 -> 0 | V35: =Prop2021DistTar!AJ35 -> 0 | W35: =Prop2021DistTar!AK35 -> 0 | X35: =Prop2021DistTar!AL35 -> 0 | Y35: =Prop2021DistTar!AM35 -> 0 | Z35: =Prop2021DistTar!AN35 -> 0 | AA35: =Prop2021DistTar!AO35 -> 0 | AB35: =Prop2021DistTar!AP35 -> 0 | AC35: =Prop2021DistTar!AQ35 -> 0 | AD35: =Prop2021DistTar!AR35 -> 0 | AF35: 0 | AG35: 0 | AH35: 0 | AI35: 0 | AJ35: 0 | AK35: 0 | AL35: 0 | AM35: 0 | AN35: 0 | AO35: 0 | AP35: 0 | AQ35: 0 | AR35: 0 | AS35: 0
R36: =Prop2021DistTar!AF36 -> 0 | S36: =Prop2021DistTar!AG36 -> 0 | T36: =Prop2021DistTar!AH36 -> 0 | U36: =Prop2021DistTar!AI36 -> 0 | V36: =Prop2021DistTar!AJ36 -> 0 | W36: =Prop2021DistTar!AK36 -> 0 | X36: =Prop2021DistTar!AL36 -> 0 | Y36: =Prop2021DistTar!AM36 -> 0 | Z36: =Prop2021DistTar!AN36 -> 0 | AA36: =Prop2021DistTar!AO36 -> 0 | AB36: =Prop2021DistTar!AP36 -> 0 | AC36: =Prop2021DistTar!AQ36 -> 0 | AD36: =Prop2021DistTar!AR36 -> 0 | AF36: 0 | AG36: 0 | AH36: 0 | AI36: 0 | AJ36: 0 | AK36: 0 | AL36: 0 | AM36: 0 | AN36: 0 | AO36: 0 | AP36: 0 | AQ36: 0 | AR36: 0 | AS36: 0
R37: =Prop2021DistTar!AF37 -> 0 | S37: =Prop2021DistTar!AG37 -> 0 | T37: =Prop2021DistTar!AH37 -> 0 | U37: =Prop2021DistTar!AI37 -> 0 | V37: =Prop2021DistTar!AJ37 -> 0 | W37: =Prop2021DistTar!AK37 -> 0 | X37: =Prop2021DistTar!AL37 -> 0 | Y37: =Prop2021DistTar!AM37 -> 0 | Z37: =Prop2021DistTar!AN37 -> 0 | AA37: =Prop2021DistTar!AO37 -> 0 | AB37: =Prop2021DistTar!AP37 -> 0 | AC37: =Prop2021DistTar!AQ37 -> 0 | AD37: =Prop2021DistTar!AR37 -> 0 | AF37: 0 | AG37: 0 | AH37: 0 | AI37: 0 | AJ37: 0 | AK37: 0 | AL37: 0 | AM37: 0 | AN37: 0 | AO37: 0 | AP37: 0 | AQ37: 0 | AR37: 0 | AS37: 0
R38: =Prop2021DistTar!AF38 -> 0 | S38: =Prop2021DistTar!AG38 -> 0 | T38: =Prop2021DistTar!AH38 -> 0 | U38: =Prop2021DistTar!AI38 -> 0 | V38: =Prop2021DistTar!AJ38 -> 0 | W38: =Prop2021DistTar!AK38 -> 0 | X38: =Prop2021DistTar!AL38 -> 0 | Y38: =Prop2021DistTar!AM38 -> 0 | Z38: =Prop2021DistTar!AN38 -> 0 | AA38: =Prop2021DistTar!AO38 -> 0 | AB38: =Prop2021DistTar!AP38 -> 0 | AC38: =Prop2021DistTar!AQ38 -> 0 | AD38: =Prop2021DistTar!AR38 -> 0 | AF38: 0 | AG38: 0 | AH38: 0 | AI38: 0 | AJ38: 0 | AK38: 0 | AL38: 0 | AM38: 0 | AN38: 0 | AO38: 0 | AP38: 0 | AQ38: 0 | AR38: 0 | AS38: 0
R39: =Prop2021DistTar!AF39 -> 0 | S39: =Prop2021DistTar!AG39 -> 0 | T39: =Prop2021DistTar!AH39 -> 0 | U39: =Prop2021DistTar!AI39 -> 0 | V39: =Prop2021DistTar!AJ39 -> 0 | W39: =Prop2021DistTar!AK39 -> 0 | X39: =Prop2021DistTar!AL39 -> 0 | Y39: =Prop2021DistTar!AM39 -> 0 | Z39: =Prop2021DistTar!AN39 -> 0 | AA39: =Prop2021DistTar!AO39 -> 0 | AB39: =Prop2021DistTar!AP39 -> 0 | AC39: =Prop2021DistTar!AQ39 -> 0 | AD39: =Prop2021DistTar!AR39 -> 0 | AF39: 0 | AG39: 0 | AH39: 0 | AI39: 0 | AJ39: 0 | AK39: 0 | AL39: 0 | AM39: 0 | AN39: 0 | AO39: 0 | AP39: 0 | AQ39: 0 | AR39: 0 | AS39: 0
R40: =Prop2021DistTar!AF40 -> 0 | S40: =Prop2021DistTar!AG40 -> 0 | T40: =Prop2021DistTar!AH40 -> 0 | U40: =Prop2021DistTar!AI40 -> 0 | V40: =Prop2021DistTar!AJ40 -> 0 | W40: =Prop2021DistTar!AK40 -> 0 | X40: =Prop2021DistTar!AL40 -> 0 | Y40: =Prop2021DistTar!AM40 -> 0 | Z40: =Prop2021DistTar!AN40 -> 0 | AA40: =Prop2021DistTar!AO40 -> 0 | AB40: =Prop2021DistTar!AP40 -> 0 | AC40: =Prop2021DistTar!AQ40 -> 0 | AD40: =Prop2021DistTar!AR40 -> 0 | AF40: 0 | AG40: 0 | AH40: 0 | AI40: 0 | AJ40: 0 | AK40: 0 | AL40: 0 | AM40: 0 | AN40: 0 | AO40: 0 | AP40: 0 | AQ40: 0 | AR40: 0 | AS40: 0
R41: =Prop2021DistTar!AF41 -> 0 | S41: =Prop2021DistTar!AG41 -> 0 | T41: =Prop2021DistTar!AH41 -> 0 | U41: =Prop2021DistTar!AI41 -> 0 | V41: =Prop2021DistTar!AJ41 -> 0 | W41: =Prop2021DistTar!AK41 -> 0 | X41: =Prop2021DistTar!AL41 -> 0 | Y41: =Prop2021DistTar!AM41 -> 0 | Z41: =Prop2021DistTar!AN41 -> 0 | AA41: =Prop2021DistTar!AO41 -> 0 | AB41: =Prop2021DistTar!AP41 -> 0 | AC41: =Prop2021DistTar!AQ41 -> 0 | AD41: =Prop2021DistTar!AR41 -> 0 | AF41: 0 | AG41: 0 | AH41: 0 | AI41: 0 | AJ41: 0 | AK41: 0 | AL41: 0 | AM41: 0 | AN41: 0 | AO41: 0 | AP41: 0 | AQ41: 0 | AR41: 0 | AS41: 0
R42: =Prop2021DistTar!AF42 -> 0 | S42: =Prop2021DistTar!AG42 -> 0 | T42: =Prop2021DistTar!AH42 -> 0 | U42: =Prop2021DistTar!AI42 -> 0 | V42: =Prop2021DistTar!AJ42 -> 0 | W42: =Prop2021DistTar!AK42 -> 0 | X42: =Prop2021DistTar!AL42 -> 0 | Y42: =Prop2021DistTar!AM42 -> 0 | Z42: =Prop2021DistTar!AN42 -> 0 | AA42: =Prop2021DistTar!AO42 -> 0 | AB42: =Prop2021DistTar!AP42 -> 0 | AC42: =Prop2021DistTar!AQ42 -> 0 | AD42: =Prop2021DistTar!AR42 -> 0 | AF42: 0 | AG42: 0 | AH42: 0 | AI42: 0 | AJ42: 0 | AK42: 0 | AL42: 0 | AM42: 0 | AN42: 0 | AO42: 0 | AP42: 0 | AQ42: 0 | AR42: 0 | AS42: 0
R43: =Prop2021DistTar!AF43 -> 0 | S43: =Prop2021DistTar!AG43 -> 0 | T43: =Prop2021DistTar!AH43 -> 0 | U43: =Prop2021DistTar!AI43 -> 0 | V43: =Prop2021DistTar!AJ43 -> 0 | W43: =Prop2021DistTar!AK43 -> 0 | X43: =Prop2021DistTar!AL43 -> 0 | Y43: =Prop2021DistTar!AM43 -> 0 | Z43: =Prop2021DistTar!AN43 -> 0 | AA43: =Prop2021DistTar!AO43 -> 0 | AB43: =Prop2021DistTar!AP43 -> 0 | AC43: =Prop2021DistTar!AQ43 -> 0 | AD43: =Prop2021DistTar!AR43 -> 0 | AF43: 0 | AG43: 0 | AH43: 0 | AI43: 0 | AJ43: 0 | AK43: 0 | AL43: 0 | AM43: 0 | AN43: 0 | AO43: 0 | AP43: 0 | AQ43: 0 | AR43: 0 | AS43: 0
R44: =Prop2021DistTar!AF44 -> 0 | S44: =Prop2021DistTar!AG44 -> 0 | T44: =Prop2021DistTar!AH44 -> 0 | U44: =Prop2021DistTar!AI44 -> 0 | V44: =Prop2021DistTar!AJ44 -> 0 | W44: =Prop2021DistTar!AK44 -> 0 | X44: =Prop2021DistTar!AL44 -> 0 | Y44: =Prop2021DistTar!AM44 -> 0 | Z44: =Prop2021DistTar!AN44 -> 0 | AA44: =Prop2021DistTar!AO44 -> 0 | AB44: =Prop2021DistTar!AP44 -> 0 | AC44: =Prop2021DistTar!AQ44 -> 0 | AD44: =Prop2021DistTar!AR44 -> 0 | AF44: 0 | AG44: 0 | AH44: 0 | AI44: 0 | AJ44: 0 | AK44: 0 | AL44: 0 | AM44: 0 | AN44: 0 | AO44: 0 | AP44: 0 | AQ44: 0 | AR44: 0 | AS44: 0
R45: =Prop2021DistTar!AF45 -> 0 | S45: =Prop2021DistTar!AG45 -> 0 | T45: =Prop2021DistTar!AH45 -> 0 | U45: =Prop2021DistTar!AI45 -> 0 | V45: =Prop2021DistTar!AJ45 -> 0 | W45: =Prop2021DistTar!AK45 -> 0 | X45: =Prop2021DistTar!AL45 -> 0 | Y45: =Prop2021DistTar!AM45 -> 0 | Z45: =Prop2021DistTar!AN45 -> 0 | AA45: =Prop2021DistTar!AO45 -> 0 | AB45: =Prop2021DistTar!AP45 -> 0 | AC45: =Prop2021DistTar!AQ45 -> 0 | AD45: =Prop2021DistTar!AR45 -> 0 | AF45: 0 | AG45: 0 | AH45: 0 | AI45: 0 | AJ45: 0 | AK45: 0 | AL45: 0 | AM45: 0 | AN45: 0 | AO45: 0 | AP45: 0 | AQ45: 0 | AR45: 0 | AS45: 0
R46: =Prop2021DistTar!AF46 -> 0 | S46: =Prop2021DistTar!AG46 -> 0 | T46: =Prop2021DistTar!AH46 -> 0 | U46: =Prop2021DistTar!AI46 -> 0 | V46: =Prop2021DistTar!AJ46 -> 0 | W46: =Prop2021DistTar!AK46 -> 0 | X46: =Prop2021DistTar!AL46 -> 0 | Y46: =Prop2021DistTar!AM46 -> 0 | Z46: =Prop2021DistTar!AN46 -> 0 | AA46: =Prop2021DistTar!AO46 -> 0 | AB46: =Prop2021DistTar!AP46 -> 0 | AC46: =Prop2021DistTar!AQ46 -> 0 | AD46: =Prop2021DistTar!AR46 -> 0 | AF46: 0 | AG46: 0 | AH46: 0 | AI46: 0 | AJ46: 0 | AK46: 0 | AL46: 0 | AM46: 0 | AN46: 0 | AO46: 0 | AP46: 0 | AQ46: 0 | AR46: 0 | AS46: 0
R47: =Prop2021DistTar!AF47 -> 0 | S47: =Prop2021DistTar!AG47 -> 0 | T47: =Prop2021DistTar!AH47 -> 0 | U47: =Prop2021DistTar!AI47 -> 0 | V47: =Prop2021DistTar!AJ47 -> 0 | W47: =Prop2021DistTar!AK47 -> 0 | X47: =Prop2021DistTar!AL47 -> 0 | Y47: =Prop2021DistTar!AM47 -> 0 | Z47: =Prop2021DistTar!AN47 -> 0 | AA47: =Prop2021DistTar!AO47 -> 0 | AB47: =Prop2021DistTar!AP47 -> 0 | AC47: =Prop2021DistTar!AQ47 -> 0 | AD47: =Prop2021DistTar!AR47 -> 0 | AF47: 0 | AG47: 0 | AH47: 0 | AI47: 0 | AJ47: 0 | AK47: 0 | AL47: 0 | AM47: 0 | AN47: 0 | AO47: 0 | AP47: 0 | AQ47: 0 | AR47: 0 | AS47: 0
R48: =Prop2021DistTar!AF48 -> 0 | S48: =Prop2021DistTar!AG48 -> 0 | T48: =Prop2021DistTar!AH48 -> 0 | U48: =Prop2021DistTar!AI48 -> 0 | V48: =Prop2021DistTar!AJ48 -> 0 | W48: =Prop2021DistTar!AK48 -> 0 | X48: =Prop2021DistTar!AL48 -> 0 | Y48: =Prop2021DistTar!AM48 -> 0 | Z48: =Prop2021DistTar!AN48 -> 0 | AA48: =Prop2021DistTar!AO48 -> 0 | AB48: =Prop2021DistTar!AP48 -> 0 | AC48: =Prop2021DistTar!AQ48 -> 0 | AD48: =Prop2021DistTar!AR48 -> 0 | AF48: 0 | AG48: 0 | AH48: 0 | AI48: 0 | AJ48: 0 | AK48: 0 | AL48: 0 | AM48: 0 | AN48: 0 | AO48: 0 | AP48: 0 | AQ48: 0 | AR48: 0 | AS48: 0
R49: =Prop2021DistTar!AF49 -> 0 | S49: =Prop2021DistTar!AG49 -> 0 | T49: =Prop2021DistTar!AH49 -> 0 | U49: =Prop2021DistTar!AI49 -> 0 | V49: =Prop2021DistTar!AJ49 -> 0 | W49: =Prop2021DistTar!AK49 -> 0 | X49: =Prop2021DistTar!AL49 -> 0 | Y49: =Prop2021DistTar!AM49 -> 0 | Z49: =Prop2021DistTar!AN49 -> 0 | AA49: =Prop2021DistTar!AO49 -> 0 | AB49: =Prop2021DistTar!AP49 -> 0 | AC49: =Prop2021DistTar!AQ49 -> 0 | AD49: =Prop2021DistTar!AR49 -> 0 | AF49: 0 | AG49: 0 | AH49: 0 | AI49: 0 | AJ49: 0 | AK49: 0 | AL49: 0 | AM49: 0 | AN49: 0 | AO49: 0 | AP49: 0 | AQ49: 0 | AR49: 0 | AS49: 0
R50: =Prop2021DistTar!AF50 -> 0 | S50: =Prop2021DistTar!AG50 -> 0 | T50: =Prop2021DistTar!AH50 -> 0 | U50: =Prop2021DistTar!AI50 -> 0 | V50: =Prop2021DistTar!AJ50 -> 0 | W50: =Prop2021DistTar!AK50 -> 0 | X50: =Prop2021DistTar!AL50 -> 0 | Y50: =Prop2021DistTar!AM50 -> 0 | Z50: =Prop2021DistTar!AN50 -> 0 | AA50: =Prop2021DistTar!AO50 -> 0 | AB50: =Prop2021DistTar!AP50 -> 0 | AC50: =Prop2021DistTar!AQ50 -> 0 | AD50: =Prop2021DistTar!AR50 -> 0 | AF50: 0 | AG50: 0 | AH50: 0 | AI50: 0 | AJ50: 0 | AK50: 0 | AL50: 0 | AM50: 0 | AN50: 0 | AO50: 0 | AP50: 0 | AQ50: 0 | AR50: 0 | AS50: 0
R51: =Prop2021DistTar!AF51 -> 0 | S51: =Prop2021DistTar!AG51 -> 0 | T51: =Prop2021DistTar!AH51 -> 0 | U51: =Prop2021DistTar!AI51 -> 0 | V51: =Prop2021DistTar!AJ51 -> 0 | W51: =Prop2021DistTar!AK51 -> 0 | X51: =Prop2021DistTar!AL51 -> 0 | Y51: =Prop2021DistTar!AM51 -> 0 | Z51: =Prop2021DistTar!AN51 -> 0 | AA51: =Prop2021DistTar!AO51 -> 0 | AB51: =Prop2021DistTar!AP51 -> 0 | AC51: =Prop2021DistTar!AQ51 -> 0 | AD51: =Prop2021DistTar!AR51 -> 0 | AF51: 0 | AG51: 0 | AH51: 0 | AI51: 0 | AJ51: 0 | AK51: 0 | AL51: 0 | AM51: 0 | AN51: 0 | AO51: 0 | AP51: 0 | AQ51: 0 | AR51: 0 | AS51: 0
AF52: 0 | AG52: =E52/100*S52 -> 0 | AH52: 0 | AI52: 0 | AJ52: 0 | AK52: 0 | AL52: 0 | AM52: 0 | AN52: 0 | AO52: 0 | AP52: 0 | AQ52: 0 | AR52: 0 | AS52: 0
AF53: 0 | AG53: 0 | AH53: 0 | AI53: 0 | AJ53: 0 | AK53: 0 | AL53: 0 | AM53: 0 | AN53: 0 | AO53: 0 | AP53: 0 | AQ53: 0 | AR53: 0 | AS53: 0
AF54: 0 | AG54: 0 | AH54: 0 | AI54: 0 | AJ54: 0 | AK54: 0 | AL54: 0 | AM54: 0 | AN54: 0 | AO54: 0 | AP54: 0 | AQ54: 0 | AR54: 0 | AS54: 0
AF55: 0 | AG55: 0 | AH55: 0 | AI55: 0 | AJ55: 0 | AK55: 0 | AL55: 0 | AM55: 0 | AN55: 0 | AO55: 0 | AP55: 0 | AQ55: 0 | AR55: 0 | AS55: 0
AF56: 0 | AG56: 0 | AH56: 0 | AI56: 0 | AJ56: 0 | AK56: 0 | AL56: 0 | AM56: 0 | AN56: 0 | AO56: 0 | AP56: 0 | AQ56: 0 | AR56: 0 | AS56: 0
AF57: 0 | AG57: 0 | AH57: 0 | AI57: 0 | AJ57: 0 | AK57: 0 | AL57: 0 | AM57: 0 | AN57: 0 | AO57: 0 | AP57: 0 | AQ57: 0 | AR57: 0 | AS57: 0
AF58: 0 | AG58: 0 | AH58: 0 | AI58: 0 | AJ58: 0 | AK58: 0 | AL58: 0 | AM58: 0 | AN58: 0 | AO58: 0 | AP58: 0 | AQ58: 0 | AR58: 0 | AS58: 0
AF59: 0 | AG59: 0 | AH59: 0 | AI59: 0 | AJ59: 0 | AK59: 0 | AL59: 0 | AM59: 0 | AN59: 0 | AO59: 0 | AP59: 0 | AQ59: 0 | AR59: 0 | AS59: 0
AF60: 0 | AG60: 0 | AH60: 0 | AI60: 0 | AJ60: 0 | AK60: 0 | AL60: 0 | AM60: 0 | AN60: 0 | AO60: 0 | AP60: 0 | AQ60: 0 | AR60: 0 | AS60: 0
AF61: 0 | AG61: 0 | AH61: 0 | AI61: 0 | AJ61: 0 | AK61: 0 | AL61: 0 | AM61: 0 | AN61: 0 | AO61: 0 | AP61: 0 | AQ61: 0 | AR61: 0 | AS61: 0
AF62: 0 | AG62: 0 | AH62: 0 | AI62: 0 | AJ62: 0 | AK62: 0 | AL62: 0 | AM62: 0 | AN62: 0 | AO62: 0 | AP62: 0 | AQ62: 0 | AR62: 0 | AS62: 0
R63: =SUM(R6:R62) -> 138820319.4 | S63: 669242857.5 | T63: 9429491.821 | U63: 596458888.2 | V63: 742096863.4 | W63: 0 | X63: 581129758.4 | Y63: 1129221349 | Z63: 12254683.83 | AA63: 213038558 | AB63: 78252863.42 | AC63: 20417897.31 | AD63: 18342432.99 | AF63: =SUM(AF6:AF62) -> 0 | AG63: 14564636.78 | AH63: 328765.807 | AI63: 6942318.267 | AJ63: 16131107.12 | AK63: 0 | AL63: 6965128.019 | AM63: =SUM(AM6:AM62) -> 0 | AN63: 430553.1823 | AO63: 10977949.14 | AP63: 5164385.439 | AQ63: 2212072.899 | AR63: 1323362.009 | AS63: 65040278.67

Sheet 2021TransRevCont
B2: ="Tariff Approval - "&'Model update'!$C$3 -> Tariff Approval - United Energy | C2: ='Model update'!$C$5&"TransRevCont" -> 2021TransRevCont
B4: Designated pricing proposal charges (DPPC)
B6: Year (t) | C6: ='Model update'!C5 -> 2021
B8: Table 1- Compliance with DPPC Revenue Formula
B9: Revenue from designated pricing proposal charges for year t | C9: =Prop2021TransTar!AS63 -> 65040278.67
B10: Total DPPC related payments for year t | C10: =C19 -> 65045020.02
C11: =IF(C9="","",IF(C10>=C9,"DPPC REVENUE FORMULA COMPLIANT","DPPC REVENUE FORMULA BREACHED")) -> DPPC REVENUE FORMULA COMPLIANT
B14: Table 3 - Transmission charges for year t
B15: AEMO (TCt) | C15: 59371787.71
B16: Transmission connection (TCt) | C16: 4744570.082
B17: Embedded generators (Gt) | C17: 57638.48931
B18: Inter-network (Dt) | C18: -871023.7415
B19: TC + G - D | C19: =C15+C16+C17-C18 -> 65045020.02

Sheet Prop2021JSTar
B1: ="Tariff Approval - "&'Model update'!C3 -> Tariff Approval - United Energy | D1: ="Prop"&'Model update'!$C$5&"JSTar" -> Prop2021JSTar
B3: ="PROPOSED "&'Model update'!$C$5&" JURISDICTIONAL SCHEME TARIFFS" -> PROPOSED 2021 JURISDICTIONAL SCHEME TARIFFS
D4: ="Proposed Jurisdictional scheme Tariffs (Pt) for "&'Model update'!$C$5 -> Proposed Jurisdictional scheme Tariffs (Pt) for 2021 | R4: ="Forecast Quantities (Qt) for "&'Model update'!$C$5 -> Forecast Quantities (Qt) for 2021 | AF4: ="Forecast Revenue (Pt "&'Model update'!$C$5&")*(Qt " &'Model update'!$C$5&")" -> Forecast Revenue (Pt 2021)*(Qt 2021)
B5: Proposed tariff | D5: =Prop2021DistTar!D5 -> PropTar Fixed | E5: =Prop2021DistTar!E5 -> PropTar PkBlk1 | F5: =Prop2021DistTar!F5 -> PropTar PkBlk2 | G5: =Prop2021DistTar!G5 -> PropTar PkBlk3 | H5: =Prop2021DistTar!H5 -> PropTar PkBlk4 | I5: =Prop2021DistTar!I5 -> PropTar OPkBlk1 | J5: =Prop2021DistTar!J5 -> PropTar OPkBlk2 | K5: =Prop2021DistTar!K5 -> PropTar OPkBlk3 | L5: =Prop2021DistTar!L5 -> PropTar OPkBlk4 | M5: =Prop2021DistTar!M5 -> PropTar DemBlk1 | N5: =Prop2021DistTar!N5 -> PropTar DemBlk2 | O5: =Prop2021DistTar!O5 -> PropTar DemBlk3 | P5: =Prop2021DistTar!P5 -> PropTar DemBlk4 | R5: =Prop2021DistTar!AF5 -> FcastVol Fixed | S5: =Prop2021DistTar!AG5 -> FcastVol PkBlk1 | T5: =Prop2021DistTar!AH5 -> FcastVol PkBlk2 | U5: =Prop2021DistTar!AI5 -> FcastVol PkBlk3 | V5: =Prop2021DistTar!AJ5 -> FcastVol PkBlk4 | W5: =Prop2021DistTar!AK5 -> FcastVol OPkBlk1 | X5: =Prop2021DistTar!AL5 -> FcastVol OPkBlk2 | Y5: =Prop2021DistTar!AM5 -> FcastVol OPkBlk3 | Z5: =Prop2021DistTar!AN5 -> FcastVol OPkBlk4 | AA5: =Prop2021DistTar!AO5 -> FcastVol DemBlk1 | AB5: =Prop2021DistTar!AP5 -> FcastVol DemBlk2 | AC5: =Prop2021DistTar!AQ5 -> FcastVol DemBlk3 | AD5: =Prop2021DistTar!AR5 -> FcastVol DemBlk4 | AF5: PropRev Fixed | AG5: PropRev PkBlk1 | AH5: PropRev PkBlk2 | AI5: PropRev PkBlk3 | AJ5: PropRev PkBlk4 | AK5: PropRev OPkBlk1 | AL5: PropRev OPkBlk2 | AM5: PropRev OPkBlk3 | AN5: PropRev OPkBlk4 | AO5: PropRev DemBlk1 | AP5: PropRev DemBlk2 | AQ5: PropRev DemBlk3 | AR5: PropRev DemBlk4 | AS5: PropRev Total
B6: =Prop2021DistTar!B6 -> Low voltage small 1 rate | D6: 5.45 | E6: 0 | F6: 0 | G6: 0 | H6: 0 | I6: 0 | J6: 0 | K6: 0 | L6: 0 | M6: 0 | N6: 0 | O6: 0 | P6: 0 | R6: =Prop2021DistTar!AF6 -> 105535115.1 | S6: =Prop2021DistTar!AG6 -> 575188203.9 | T6: =Prop2021DistTar!AH6 -> 0 | U6: =Prop2021DistTar!AI6 -> 0 | V6: =Prop2021DistTar!AJ6 -> 643558421 | W6: =Prop2021DistTar!AK6 -> 0 | X6: =Prop2021DistTar!AL6 -> 0 | Y6: =Prop2021DistTar!AM6 -> 0 | Z6: =Prop2021DistTar!AN6 -> 0 | AA6: =Prop2021DistTar!AO6 -> 0 | AB6: =Prop2021DistTar!AP6 -> 0 | AC6: =Prop2021DistTar!AQ6 -> 0 | AD6: =Prop2021DistTar!AR6 -> 0 | AF6: =D6/100*R6 -> 5751663.773 | AG6: =E6/100*S6 -> 0 | AH6: 0 | AI6: 0 | AJ6: 0 | AK6: 0 | AL6: 0 | AM6: 0 | AN6: 0 | AO6: =M6/100*AA6 -> 0 | AP6: =N6/100*AB6 -> 0 | AQ6: 0 | AR6: 0 | AS6: =SUM(AF6:AR6) -> 5751663.773
B7: =Prop2021DistTar!B7 -> Winter economy tariff | D7: 5.45 | E7: 0 | F7: 0 | G7: 0 | H7: 0 | I7: 0 | J7: 0 | K7: 0 | L7: 0 | M7: 0 | N7: 0 | O7: 0 | P7: 0 | R7: =Prop2021DistTar!AF7 -> 20303.0233 | S7: =Prop2021DistTar!AG7 -> 181305.4411 | T7: =Prop2021DistTar!AH7 -> 0 | U7: =Prop2021DistTar!AI7 -> 0 | V7: =Prop2021DistTar!AJ7 -> 215568.4495 | W7: =Prop2021DistTar!AK7 -> 0 | X7: =Prop2021DistTar!AL7 -> 0 | Y7: =Prop2021DistTar!AM7 -> 0 | Z7: =Prop2021DistTar!AN7 -> 0 | AA7: =Prop2021DistTar!AO7 -> 0 | AB7: =Prop2021DistTar!AP7 -> 0 | AC7: =Prop2021DistTar!AQ7 -> 0 | AD7: =Prop2021DistTar!AR7 -> 0 | AF7: =D7/100*R7 -> 1106.51477 | AG7: =E7/100*S7 -> 0 | AH7: 0 | AI7: 0 | AJ7: 0 | AK7: 0 | AL7: 0 | AM7: 0 | AN7: 0 | AO7: =M7/100*AA7 -> 0 | AP7: =N7/100*AB7 -> 0 | AQ7: =O7/100*AC7 -> 0 | AR7: =P7/100*AD7 -> 0 | AS7: =SUM(AF7:AR7) -> 1106.51477
B8: =Prop2021DistTar!B8 -> Low voltage small 2 rate | D8: 5.45 | E8: 0 | F8: 0 | G8: 0 | H8: 0 | I8: 0 | J8: 0 | K8: 0 | L8: 0 | M8: 0 | N8: 0 | O8: 0 | P8: 0 | R8: =Prop2021DistTar!AF8 -> 742249.2661 | S8: =Prop2021DistTar!AG8 -> 0 | T8: =Prop2021DistTar!AH8 -> 0 | U8: =Prop2021DistTar!AI8 -> 2499563.889 | V8: =Prop2021DistTar!AJ8 -> 0 | W8: =Prop2021DistTar!AK8 -> 0 | X8: =Prop2021DistTar!AL8 -> 2827981.973 | Y8: =Prop2021DistTar!AM8 -> 6999544.012 | Z8: =Prop2021DistTar!AN8 -> 0 | AA8: =Prop2021DistTar!AO8 -> 0 | AB8: =Prop2021DistTar!AP8 -> 0 | AC8: =Prop2021DistTar!AQ8 -> 0 | AD8: =Prop2021DistTar!AR8 -> 0 | AF8: 40452.585 | AG8: 0 | AH8: 0 | AI8: 0 | AJ8: 0 | AK8: 0 | AL8: 0 | AM8: 0 | AN8: 0 | AO8: 0 | AP8: 0 | AQ8: 0 | AR8: 0 | AS8: 40452.585
B9: =Prop2021DistTar!B9 -> Dedicated circuit | D9: 0 | E9: 0 | F9: 0 | G9: 0 | H9: 0 | I9: 0 | J9: 0 | K9: 0 | L9: 0 | M9: 0 | N9: 0 | O9: 0 | P9: 0 | R9: =Prop2021DistTar!AF9 -> 10497943.42 | S9: =Prop2021DistTar!AG9 -> 0 | T9: =Prop2021DistTar!AH9 -> 0 | U9: =Prop2021DistTar!AI9 -> 0 | V9: =Prop2021DistTar!AJ9 -> 0 | W9: =Prop2021DistTar!AK9 -> 0 | X9: =Prop2021DistTar!AL9 -> 0 | Y9: =Prop2021DistTar!AM9 -> 39206702.57 | Z9: =Prop2021DistTar!AN9 -> 0 | AA9: =Prop2021DistTar!AO9 -> 0 | AB9: =Prop2021DistTar!AP9 -> 0 | AC9: =Prop2021DistTar!AQ9 -> 0 | AD9: =Prop2021DistTar!AR9 -> 0 | AF9: 0 | AG9: 0 | AH9: 0 | AI9: 0 | AJ9: 0 | AK9: 0 | AL9: 0 | AM9: 0 | AN9: 0 | AO9: 0 | AP9: 0 | AQ9: 0 | AR9: 0 | AS9: 0
B10: =Prop2021DistTar!B10 -> Low voltage medium 1 rate | D10: 5.45 | E10: 0 | F10: 0 | G10: 0 | H10: 0 | I10: 0 | J10: 0 | K10: 0 | L10: 0 | M10: 0 | N10: 0 | O10: 0 | P10: 0 | R10: =Prop2021DistTar!AF10 -> 6562937.838 | S10: =Prop2021DistTar!AG10 -> 93520651.51 | T10: =Prop2021DistTar!AH10 -> 0 | U10: =Prop2021DistTar!AI10 -> 0 | V10: =Prop2021DistTar!AJ10 -> 97984486.3 | W10: =Prop2021DistTar!AK10 -> 0 | X10: =Prop2021DistTar!AL10 -> 0 | Y10: =Prop2021DistTar!AM10 -> 0 | Z10: =Prop2021DistTar!AN10 -> 0 | AA10: =Prop2021DistTar!AO10 -> 0 | AB10: =Prop2021DistTar!AP10 -> 0 | AC10: =Prop2021DistTar!AQ10 -> 0 | AD10: =Prop2021DistTar!AR10 -> 0 | AF10: 357680.1122 | AG10: 0 | AH10: 0 | AI10: 0 | AJ10: 0 | AK10: 0 | AL10: 0 | AM10: 0 | AN10: 0 | AO10: 0 | AP10: 0 | AQ10: 0 | AR10: 0 | AS10: 357680.1122
B11: =Prop2021DistTar!B11 -> Low voltage medium 2 rate 5 day | D11: 5.45 | E11: 0 | F11: 0 | G11: 0 | H11: 0 | I11: 0 | J11: 0 | K11: 0 | L11: 0 | M11: 0 | N11: 0 | O11: 0 | P11: 0 | R11: =Prop2021DistTar!AF11 -> 1691005.151 | S11: =Prop2021DistTar!AG11 -> 0 | T11: =Prop2021DistTar!AH11 -> 0 | U11: =Prop2021DistTar!AI11 -> 25877867.25 | V11: =Prop2021DistTar!AJ11 -> 0 | W11: =Prop2021DistTar!AK11 -> 0 | X11: =Prop2021DistTar!AL11 -> 25255618.89 | Y11: =Prop2021DistTar!AM11 -> 32072694.78 | Z11: =Prop2021DistTar!AN11 -> 0 | AA11: =Prop2021DistTar!AO11 -> 0 | AB11: =Prop2021DistTar!AP11 -> 0 | AC11: =Prop2021DistTar!AQ11 -> 0 | AD11: =Prop2021DistTar!AR11 -> 0 | AF11: 92159.78072 | AG11: 0 | AH11: 0 | AI11: 0 | AJ11: 0 | AK11: 0 | AL11: 0 | AM11: 0 | AN11: 0 | AO11: 0 | AP11: 0 | AQ11: 0 | AR11: 0 | AS11: 92159.78072
B12: =Prop2021DistTar!B12 -> Low voltage medium 2 rate 7 day | D12: 5.45 | E12: 0 | F12: 0 | G12: 0 | H12: 0 | I12: 0 | J12: 0 | K12: 0 | L12: 0 | M12: 0 | N12: 0 | O12: 0 | P12: 0 | R12: =Prop2021DistTar!AF12 -> 867755.014 | S12: =Prop2021DistTar!AG12 -> 0 | T12: =Prop2021DistTar!AH12 -> 0 | U12: =Prop2021DistTar!AI12 -> 11704182.6 | V12: =Prop2021DistTar!AJ12 -> 0 | W12: =Prop2021DistTar!AK12 -> 0 | X12: =Prop2021DistTar!AL12 -> 12021985.87 | Y12: =Prop2021DistTar!AM12 -> 6431319.934 | Z12: =Prop2021DistTar!AN12 -> 0 | AA12: =Prop2021DistTar!AO12 -> 0 | AB12: =Prop2021DistTar!AP12 -> 0 | AC12: =Prop2021DistTar!AQ12 -> 0 | AD12: =Prop2021DistTar!AR12 -> 0 | AF12: 47292.64826 | AG12: 0 | AH12: 0 | AI12: 0 | AJ12: 0 | AK12: 0 | AL12: 0 | AM12: 0 | AN12: 0 | AO12: 0 | AP12: 0 | AQ12: 0 | AR12: 0 | AS12: 47292.64826
B13: =Prop2021DistTar!B13 -> Unmetered supplies | D13: 0 | E13: 0 | F13: 0 | G13: 0 | H13: 0 | I13: 0 | J13: 0 | K13: 0 | L13: 0 | M13: 0 | N13: 0 | O13: 0 | P13: 0 | R13: =Prop2021DistTar!AF13 -> 1822730 | S13: =Prop2021DistTar!AG13 -> 0 | T13: =Prop2021DistTar!AH13 -> 0 | U13: =Prop2021DistTar!AI13 -> 7902465.985 | V13: =Prop2021DistTar!AJ13 -> 0 | W13: =Prop2021DistTar!AK13 -> 0 | X13: =Prop2021DistTar!AL13 -> 9120125.655 | Y13: =Prop2021DistTar!AM13 -> 31525884.81 | Z13: =Prop2021DistTar!AN13 -> 0 | AA13: =Prop2021DistTar!AO13 -> 0 | AB13: =Prop2021DistTar!AP13 -> 0 | AC13: =Prop2021DistTar!AQ13 -> 0 | AD13: =Prop2021DistTar!AR13 -> 0 | AF13: 0 | AG13: 0 | AH13: 0 | AI13: 0 | AJ13: 0 | AK13: 0 | AL13: 0 | AM13: 0 | AN13: 0 | AO13: 0 | AP13: 0 | AQ13: 0 | AR13: 0 | AS13: 0
B14: =Prop2021DistTar!B14 -> Low voltage large 1 rate | D14: 5.45 | E14: 0 | F14: 0 | G14: 0 | H14: 0 | I14: 0 | J14: 0 | K14: 0 | L14: 0 | M14: 0 | N14: 0 | O14: 0 | P14: 0 | R14: =Prop2021DistTar!AF14 -> 1081.090134 | S14: =Prop2021DistTar!AG14 -> 352696.6831 | T14: =Prop2021DistTar!AH14 -> 0 | U14: =Prop2021DistTar!AI14 -> 0 | V14: =Prop2021DistTar!AJ14 -> 338387.6259 | W14: =Prop2021DistTar!AK14 -> 0 | X14: =Prop2021DistTar!AL14 -> 0 | Y14: =Prop2021DistTar!AM14 -> 0 | Z14: =Prop2021DistTar!AN14 -> 0 | AA14: =Prop2021DistTar!AO14 -> 0 | AB14: =Prop2021DistTar!AP14 -> 0 | AC14: =Prop2021DistTar!AQ14 -> 0 | AD14: =Prop2021DistTar!AR14 -> 0 | AF14: 58.91941229 | AG14: 0 | AH14: 0 | AI14: 0 | AJ14: 0 | AK14: 0 | AL14: 0 | AM14: 0 | AN14: 0 | AO14: 0 | AP14: 0 | AQ14: 0 | AR14: 0 | AS14: 58.91941229
B15: =Prop2021DistTar!B15 -> Low voltage large 2 rate | D15: 5.45 | E15: 0 | F15: 0 | G15: 0 | H15: 0 | I15: 0 | J15: 0 | K15: 0 | L15: 0 | M15: 0 | N15: 0 | O15: 0 | P15: 0 | R15: =Prop2021DistTar!AF15 -> 2882.907023 | S15: =Prop2021DistTar!AG15 -> 0 | T15: =Prop2021DistTar!AH15 -> 0 | U15: =Prop2021DistTar!AI15 -> 355464.9612 | V15: =Prop2021DistTar!AJ15 -> 0 | W15: =Prop2021DistTar!AK15 -> 0 | X15: =Prop2021DistTar!AL15 -> 291682.2199 | Y15: =Prop2021DistTar!AM15 -> 434712.6804 | Z15: =Prop2021DistTar!AN15 -> 0 | AA15: =Prop2021DistTar!AO15 -> 0 | AB15: =Prop2021DistTar!AP15 -> 0 | AC15: =Prop2021DistTar!AQ15 -> 0 | AD15: =Prop2021DistTar!AR15 -> 0 | AF15: 157.1184328 | AG15: 0 | AH15: 0 | AI15: 0 | AJ15: 0 | AK15: 0 | AL15: 0 | AM15: 0 | AN15: 0 | AO15: 0 | AP15: 0 | AQ15: 0 | AR15: 0 | AS15: 157.1184328
B16: =Prop2021DistTar!B16 -> Low voltage KW time of use | D16: 5.45 | E16: 0 | F16: 0 | G16: 0 | H16: 0 | I16: 0 | J16: 0 | K16: 0 | L16: 0 | M16: 0 | N16: 0 | O16: 0 | P16: 0 | R16: =Prop2021DistTar!AF16 -> 33320.53009 | S16: =Prop2021DistTar!AG16 -> 0 | T16: =Prop2021DistTar!AH16 -> 0 | U16: =Prop2021DistTar!AI16 -> 1475141.763 | V16: =Prop2021DistTar!AJ16 -> 0 | W16: =Prop2021DistTar!AK16 -> 0 | X16: =Prop2021DistTar!AL16 -> 1370460.818 | Y16: =Prop2021DistTar!AM16 -> 2593202.45 | Z16: =Prop2021DistTar!AN16 -> 0 | AA16: =Prop2021DistTar!AO16 -> 0 | AB16: =Prop2021DistTar!AP16 -> 392057.726 | AC16: =Prop2021DistTar!AQ16 -> 0 | AD16: =Prop2021DistTar!AR16 -> 0 | AF16: 1815.96889 | AG16: 0 | AH16: 0 | AI16: 0 | AJ16: 0 | AK16: 0 | AL16: 0 | AM16: 0 | AN16: 0 | AO16: 0 | AP16: 0 | AQ16: 0 | AR16: 0 | AS16: 1815.96889
B17: =Prop2021DistTar!B17 -> Low voltage KW time of use - HOT | D17: 5.45 | E17: 0 | F17: 0 | G17: 0 | H17: 0 | I17: 0 | J17: 0 | K17: 0 | L17: 0 | M17: 0 | N17: 0 | O17: 0 | P17: 0 | R17: =Prop2021DistTar!AF17 -> 2716.347562 | S17: =Prop2021DistTar!AG17 -> 0 | T17: =Prop2021DistTar!AH17 -> 0 | U17: =Prop2021DistTar!AI17 -> 19807.75145 | V17: =Prop2021DistTar!AJ17 -> 0 | W17: =Prop2021DistTar!AK17 -> 0 | X17: =Prop2021DistTar!AL17 -> 30069.46231 | Y17: =Prop2021DistTar!AM17 -> 52684.78034 | Z17: =Prop2021DistTar!AN17 -> 0 | AA17: =Prop2021DistTar!AO17 -> 0 | AB17: =Prop2021DistTar!AP17 -> 7608.504 | AC17: =Prop2021DistTar!AQ17 -> 0 | AD17: =Prop2021DistTar!AR17 -> 0 | AF17: 148.0409421 | AG17: 0 | AH17: 0 | AI17: 0 | AJ17: 0 | AK17: 0 | AL17: 0 | AM17: 0 | AN17: 0 | AO17: 0 | AP17: 0 | AQ17: 0 | AR17: 0 | AS17: 148.0409421
B18: =Prop2021DistTar!B18 -> Low voltage large KVA time of use | D18: 5.45 | E18: 0 | F18: 0 | G18: 0 | H18: 0 | I18: 0 | J18: 0 | K18: 0 | L18: 0 | M18: 0 | N18: 0 | O18: 0 | P18: 0 | R18: =Prop2021DistTar!AF18 -> 541277.5242 | S18: =Prop2021DistTar!AG18 -> 0 | T18: =Prop2021DistTar!AH18 -> 0 | U18: =Prop2021DistTar!AI18 -> 266174637 | V18: =Prop2021DistTar!AJ18 -> 0 | W18: =Prop2021DistTar!AK18 -> 0 | X18: =Prop2021DistTar!AL18 -> 250479794.6 | Y18: =Prop2021DistTar!AM18 -> 611889749.5 | Z18: =Prop2021DistTar!AN18 -> 0 | AA18: =Prop2021DistTar!AO18 -> 159541608.1 | AB18: =Prop2021DistTar!AP18 -> 56665442.46 | AC18: =Prop2021DistTar!AQ18 -> 0 | AD18: =Prop2021DistTar!AR18 -> 0 | AF18: 29499.62507 | AG18: 0 | AH18: 0 | AI18: 0 | AJ18: 0 | AK18: 0 | AL18: 0 | AM18: 0 | AN18: 0 | AO18: 0 | AP18: 0 | AQ18: 0 | AR18: 0 | AS18: 29499.62507
B19: =Prop2021DistTar!B19 -> High voltage KVA time of use | D19: 5.45 | E19: 0 | F19: 0 | G19: 0 | H19: 0 | I19: 0 | J19: 0 | K19: 0 | L19: 0 | M19: 0 | N19: 0 | O19: 0 | P19: 0 | R19: =Prop2021DistTar!AF19 -> 18018 | S19: =Prop2021DistTar!AG19 -> 0 | T19: =Prop2021DistTar!AH19 -> 0 | U19: =Prop2021DistTar!AI19 -> 105000326.1 | V19: =Prop2021DistTar!AJ19 -> 0 | W19: =Prop2021DistTar!AK19 -> 0 | X19: =Prop2021DistTar!AL19 -> 105357041.1 | Y19: =Prop2021DistTar!AM19 -> 326268953.2 | Z19: =Prop2021DistTar!AN19 -> 0 | AA19: =Prop2021DistTar!AO19 -> 51478074.62 | AB19: =Prop2021DistTar!AP19 -> 19753789.02 | AC19: =Prop2021DistTar!AQ19 -> 0 | AD19: =Prop2021DistTar!AR19 -> 0 | AF19: 981.981 | AG19: 0 | AH19: 0 | AI19: 0 | AJ19: 0 | AK19: 0 | AL19: 0 | AM19: 0 | AN19: 0 | AO19: 0 | AP19: 0 | AQ19: 0 | AR19: 0 | AS19: 981.981
B20: =Prop2021DistTar!B20 -> Subtransmission KVA time of use | D20: 5.45 | E20: 0 | F20: 0 | G20: 0 | H20: 0 | I20: 0 | J20: 0 | K20: 0 | L20: 0 | M20: 0 | N20: 0 | O20: 0 | P20: 0 | R20: =Prop2021DistTar!AF20 -> 182 | S20: =Prop2021DistTar!AG20 -> 0 | T20: =Prop2021DistTar!AH20 -> 0 | U20: =Prop2021DistTar!AI20 -> 3670916.351 | V20: =Prop2021DistTar!AJ20 -> 0 | W20: =Prop2021DistTar!AK20 -> 0 | X20: =Prop2021DistTar!AL20 -> 3584660.543 | Y20: =Prop2021DistTar!AM20 -> 5707425.983 | Z20: =Prop2021DistTar!AN20 -> 0 | AA20: =Prop2021DistTar!AO20 -> 2018875.22 | AB20: =Prop2021DistTar!AP20 -> 704348.9277 | AC20: =Prop2021DistTar!AQ20 -> 0 | AD20: =Prop2021DistTar!AR20 -> 0 | AF20: 9.919 | AG20: 0 | AH20: 0 | AI20: 0 | AJ20: 0 | AK20: 0 | AL20: 0 | AM20: 0 | AN20: 0 | AO20: 0 | AP20: 0 | AQ20: 0 | AR20: 0 | AS20: 9.919
B21: =Prop2021DistTar!B21 -> TOD | D21: 5.45 | E21: 0 | F21: 0 | G21: 0 | H21: 0 | I21: 0 | J21: 0 | K21: 0 | L21: 0 | M21: 0 | N21: 0 | O21: 0 | P21: 0 | R21: =Prop2021DistTar!AF21 -> 7805872.272 | S21: =Prop2021DistTar!AG21 -> 0 | T21: =Prop2021DistTar!AH21 -> 7967927.955 | U21: =Prop2021DistTar!AI21 -> 13923627.87 | V21: =Prop2021DistTar!AJ21 -> 0 | W21: =Prop2021DistTar!AK21 -> 0 | X21: =Prop2021DistTar!AL21 -> 18072449.62 | Y21: =Prop2021DistTar!AM21 -> 54011897.04 | Z21: =Prop2021DistTar!AN21 -> 10342130.51 | AA21: =Prop2021DistTar!AO21 -> 0 | AB21: =Prop2021DistTar!AP21 -> 0 | AC21: =Prop2021DistTar!AQ21 -> 0 | AD21: =Prop2021DistTar!AR21 -> 0 | AF21: 425420.0388 | AG21: 0 | AH21: 0 | AI21: 0 | AJ21: 0 | AK21: 0 | AL21: 0 | AM21: 0 | AN21: 0 | AO21: 0 | AP21: 0 | AQ21: 0 | AR21: 0 | AS21: 425420.0388
B22: =Prop2021DistTar!B22 -> TOD9 | D22: 5.45 | E22: 0 | F22: 0 | G22: 0 | H22: 0 | I22: 0 | J22: 0 | K22: 0 | L22: 0 | M22: 0 | N22: 0 | O22: 0 | P22: 0 | R22: =Prop2021DistTar!AF22 -> 647318.9139 | S22: =Prop2021DistTar!AG22 -> 0 | T22: =Prop2021DistTar!AH22 -> 493655.1561 | U22: =Prop2021DistTar!AI22 -> 732234.7766 | V22: =Prop2021DistTar!AJ22 -> 0 | W22: =Prop2021DistTar!AK22 -> 0 | X22: =Prop2021DistTar!AL22 -> 1128201.925 | Y22: =Prop2021DistTar!AM22 -> 5034512.086 | Z22: =Prop2021DistTar!AN22 -> 760606.7275 | AA22: =Prop2021DistTar!AO22 -> 0 | AB22: =Prop2021DistTar!AP22 -> 0 | AC22: =Prop2021DistTar!AQ22 -> 0 | AD22: =Prop2021DistTar!AR22 -> 0 | AF22: 35278.88081 | AG22: 0 | AH22: 0 | AI22: 0 | AJ22: 0 | AK22: 0 | AL22: 0 | AM22: 0 | AN22: 0 | AO22: 0 | AP22: 0 | AQ22: 0 | AR22: 0 | AS22: 35278.88081
B23: =Prop2021DistTar!B23 -> TOU | D23: 5.45 | E23: 0 | F23: 0 | G23: 0 | H23: 0 | I23: 0 | J23: 0 | K23: 0 | L23: 0 | M23: 0 | N23: 0 | O23: 0 | P23: 0 | R23: =Prop2021DistTar!AF23 -> 145958.409 | S23: =Prop2021DistTar!AG23 -> 0 | T23: =Prop2021DistTar!AH23 -> 0 | U23: =Prop2021DistTar!AI23 -> 2992497.155 | V23: =Prop2021DistTar!AJ23 -> 0 | W23: =Prop2021DistTar!AK23 -> 0 | X23: =Prop2021DistTar!AL23 -> 3490165.641 | Y23: =Prop2021DistTar!AM23 -> 5333993.167 | Z23: =Prop2021DistTar!AN23 -> 0 | AA23: =Prop2021DistTar!AO23 -> 0 | AB23: =Prop2021DistTar!AP23 -> 729616.782 | AC23: =Prop2021DistTar!AQ23 -> 0 | AD23: =Prop2021DistTar!AR23 -> 0 | AF23: 7954.733291 | AG23: 0 | AH23: 0 | AI23: 0 | AJ23: 0 | AK23: 0 | AL23: 0 | AM23: 0 | AN23: 0 | AO23: 0 | AP23: 0 | AQ23: 0 | AR23: 0 | AS23: 7954.733291
B24: =Prop2021DistTar!B24 -> TODFLEX | D24: 5.45 | E24: 0 | F24: 0 | G24: 0 | H24: 0 | I24: 0 | J24: 0 | K24: 0 | L24: 0 | M24: 0 | N24: 0 | O24: 0 | P24: 0 | R24: =Prop2021DistTar!AF24 -> 344785.5758 | S24: =Prop2021DistTar!AG24 -> 0 | T24: =Prop2021DistTar!AH24 -> 967908.7097 | U24: =Prop2021DistTar!AI24 -> 472439.1766 | V24: =Prop2021DistTar!AJ24 -> 0 | W24: =Prop2021DistTar!AK24 -> 0 | X24: =Prop2021DistTar!AL24 -> 562268.6277 | Y24: =Prop2021DistTar!AM24 -> 1658072.417 | Z24: =Prop2021DistTar!AN24 -> 1151946.597 | AA24: =Prop2021DistTar!AO24 -> 0 | AB24: =Prop2021DistTar!AP24 -> 0 | AC24: =Prop2021DistTar!AQ24 -> 0 | AD24: =Prop2021DistTar!AR24 -> 0 | AF24: 18790.81388 | AG24: 0 | AH24: 0 | AI24: 0 | AJ24: 0 | AK24: 0 | AL24: 0 | AM24: 0 | AN24: 0 | AO24: 0 | AP24: 0 | AQ24: 0 | AR24: 0 | AS24: 18790.81388
B25: =Prop2021DistTar!B25 -> Low Voltage KW 1 rate | D25: 5.45 | E25: 0 | F25: 0 | G25: 0 | H25: 0 | I25: 0 | J25: 0 | K25: 0 | L25: 0 | M25: 0 | N25: 0 | O25: 0 | P25: 0 | R25: =Prop2021DistTar!AF25 -> 232295.8521 | S25: =Prop2021DistTar!AG25 -> 0 | T25: =Prop2021DistTar!AH25 -> 0 | U25: =Prop2021DistTar!AI25 -> 1080042.507 | V25: =Prop2021DistTar!AJ25 -> 0 | W25: =Prop2021DistTar!AK25 -> 0 | X25: =Prop2021DistTar!AL25 -> 1337152.656 | Y25: =Prop2021DistTar!AM25 -> 0 | Z25: =Prop2021DistTar!AN25 -> 0 | AA25: =Prop2021DistTar!AO25 -> 0 | AB25: =Prop2021DistTar!AP25 -> 0 | AC25: =Prop2021DistTar!AQ25 -> 184376.2935 | AD25: =Prop2021DistTar!AR25 -> 168329.1237 | AF25: 12660.12394 | AG25: 0 | AH25: 0 | AI25: 0 | AJ25: 0 | AK25: 0 | AL25: 0 | AM25: 0 | AN25: 0 | AO25: 0 | AP25: 0 | AQ25: 0 | AR25: 0 | AS25: 12660.12394
B26: =Prop2021DistTar!B26 -> Low voltage medium KW time of use (opt-in) | D26: 5.45 | E26: 0 | F26: 0 | G26: 0 | H26: 0 | I26: 0 | J26: 0 | K26: 0 | L26: 0 | M26: 0 | N26: 0 | O26: 0 | P26: 0 | R26: =Prop2021DistTar!AF26 -> 0 | S26: =Prop2021DistTar!AG26 -> 0 | T26: =Prop2021DistTar!AH26 -> 0 | U26: =Prop2021DistTar!AI26 -> 0 | V26: =Prop2021DistTar!AJ26 -> 0 | W26: =Prop2021DistTar!AK26 -> 0 | X26: =Prop2021DistTar!AL26 -> 0 | Y26: =Prop2021DistTar!AM26 -> 0 | Z26: =Prop2021DistTar!AN26 -> 0 | AA26: =Prop2021DistTar!AO26 -> 0 | AB26: =Prop2021DistTar!AP26 -> 0 | AC26: =Prop2021DistTar!AQ26 -> 0 | AD26: =Prop2021DistTar!AR26 -> 0 | AF26: 0 | AG26: 0 | AH26: 0 | AI26: 0 | AJ26: 0 | AK26: 0 | AL26: 0 | AM26: 0 | AN26: 0 | AO26: 0 | AP26: 0 | AQ26: 0 | AR26: 0 | AS26: 0
B27: =Prop2021DistTar!B27 -> Low voltage medium KW 1 rate (mandatory) | D27: 5.45 | E27: 0 | F27: 0 | G27: 0 | H27: 0 | I27: 0 | J27: 0 | K27: 0 | L27: 0 | M27: 0 | N27: 0 | O27: 0 | P27: 0 | R27: =Prop2021DistTar!AF27 -> 1304571.189 | S27: =Prop2021DistTar!AG27 -> 0 | T27: =Prop2021DistTar!AH27 -> 0 | U27: =Prop2021DistTar!AI27 -> 152577673.1 | V27: =Prop2021DistTar!AJ27 -> 0 | W27: =Prop2021DistTar!AK27 -> 0 | X27: =Prop2021DistTar!AL27 -> 146200098.8 | Y27: =Prop2021DistTar!AM27 -> 0 | Z27: =Prop2021DistTar!AN27 -> 0 | AA27: =Prop2021DistTar!AO27 -> 0 | AB27: =Prop2021DistTar!AP27 -> 0 | AC27: =Prop2021DistTar!AQ27 -> 20233521.01 | AD27: =Prop2021DistTar!AR27 -> 18174103.87 | AF27: 71099.12981 | AG27: 0 | AH27: 0 | AI27: 0 | AJ27: 0 | AK27: 0 | AL27: 0 | AM27: 0 | AN27: 0 | AO27: 0 | AP27: 0 | AQ27: 0 | AR27: 0 | AS27: 71099.12981
R28: =Prop2021DistTar!AF28 -> 0 | S28: =Prop2021DistTar!AG28 -> 0 | T28: =Prop2021DistTar!AH28 -> 0 | U28: =Prop2021DistTar!AI28 -> 0 | V28: =Prop2021DistTar!AJ28 -> 0 | W28: =Prop2021DistTar!AK28 -> 0 | X28: =Prop2021DistTar!AL28 -> 0 | Y28: =Prop2021DistTar!AM28 -> 0 | Z28: =Prop2021DistTar!AN28 -> 0 | AA28: =Prop2021DistTar!AO28 -> 0 | AB28: =Prop2021DistTar!AP28 -> 0 | AC28: =Prop2021DistTar!AQ28 -> 0 | AD28: =Prop2021DistTar!AR28 -> 0 | AF28: 0 | AG28: 0 | AH28: 0 | AI28: 0 | AJ28: 0 | AK28: 0 | AL28: 0 | AM28: 0 | AN28: 0 | AO28: 0 | AP28: 0 | AQ28: 0 | AR28: 0 | AS28: 0
R29: =Prop2021DistTar!AF29 -> 0 | S29: =Prop2021DistTar!AG29 -> 0 | T29: =Prop2021DistTar!AH29 -> 0 | U29: =Prop2021DistTar!AI29 -> 0 | V29: =Prop2021DistTar!AJ29 -> 0 | W29: =Prop2021DistTar!AK29 -> 0 | X29: =Prop2021DistTar!AL29 -> 0 | Y29: =Prop2021DistTar!AM29 -> 0 | Z29: =Prop2021DistTar!AN29 -> 0 | AA29: =Prop2021DistTar!AO29 -> 0 | AB29: =Prop2021DistTar!AP29 -> 0 | AC29: =Prop2021DistTar!AQ29 -> 0 | AD29: =Prop2021DistTar!AR29 -> 0 | AF29: 0 | AG29: 0 | AH29: 0 | AI29: 0 | AJ29: 0 | AK29: 0 | AL29: 0 | AM29: 0 | AN29: 0 | AO29: 0 | AP29: 0 | AQ29: 0 | AR29: 0 | AS29: 0
R30: =Prop2021DistTar!AF30 -> 0 | S30: =Prop2021DistTar!AG30 -> 0 | T30: =Prop2021DistTar!AH30 -> 0 | U30: =Prop2021DistTar!AI30 -> 0 | V30: =Prop2021DistTar!AJ30 -> 0 | W30: =Prop2021DistTar!AK30 -> 0 | X30: =Prop2021DistTar!AL30 -> 0 | Y30: =Prop2021DistTar!AM30 -> 0 | Z30: =Prop2021DistTar!AN30 -> 0 | AA30: =Prop2021DistTar!AO30 -> 0 | AB30: =Prop2021DistTar!AP30 -> 0 | AC30: =Prop2021DistTar!AQ30 -> 0 | AD30: =Prop2021DistTar!AR30 -> 0 | AF30: 0 | AG30: =E30/100*S30 -> 0 | AH30: 0 | AI30: 0 | AJ30: 0 | AK30: 0 | AL30: 0 | AM30: 0 | AN30: 0 | AO30: 0 | AP30: 0 | AQ30: 0 | AR30: 0 | AS30: =SUM(AF30:AR30) -> 0
R31: =Prop2021DistTar!AF31 -> 0 | S31: =Prop2021DistTar!AG31 -> 0 | T31: =Prop2021DistTar!AH31 -> 0 | U31: =Prop2021DistTar!AI31 -> 0 | V31: =Prop2021DistTar!AJ31 -> 0 | W31: =Prop2021DistTar!AK31 -> 0 | X31: =Prop2021DistTar!AL31 -> 0 | Y31: =Prop2021DistTar!AM31 -> 0 | Z31: =Prop2021DistTar!AN31 -> 0 | AA31: =Prop2021DistTar!AO31 -> 0 | AB31: =Prop2021DistTar!AP31 -> 0 | AC31: =Prop2021DistTar!AQ31 -> 0 | AD31: =Prop2021DistTar!AR31 -> 0 | AF31: 0 | AG31: 0 | AH31: 0 | AI31: 0 | AJ31: 0 | AK31: 0 | AL31: 0 | AM31: 0 | AN31: 0 | AO31: 0 | AP31: 0 | AQ31: 0 | AR31: 0 | AS31: 0
R32: =Prop2021DistTar!AF32 -> 0 | S32: =Prop2021DistTar!AG32 -> 0 | T32: =Prop2021DistTar!AH32 -> 0 | U32: =Prop2021DistTar!AI32 -> 0 | V32: =Prop2021DistTar!AJ32 -> 0 | W32: =Prop2021DistTar!AK32 -> 0 | X32: =Prop2021DistTar!AL32 -> 0 | Y32: =Prop2021DistTar!AM32 -> 0 | Z32: =Prop2021DistTar!AN32 -> 0 | AA32: =Prop2021DistTar!AO32 -> 0 | AB32: =Prop2021DistTar!AP32 -> 0 | AC32: =Prop2021DistTar!AQ32 -> 0 | AD32: =Prop2021DistTar!AR32 -> 0 | AF32: 0 | AG32: =E32/100*S32 -> 0 | AH32: =F32/100*T32 -> 0 | AI32: =G32/100*U32 -> 0 | AJ32: =H32/100*V32 -> 0 | AK32: =I32/100*W32 -> 0 | AL32: =J32/100*X32 -> 0 | AM32: =K32/100*Y32 -> 0 | AN32: =L32/100*Z32 -> 0 | AO32: 0 | AP32: 0 | AQ32: 0 | AR32: 0 | AS32: =SUM(AF32:AR32) -> 0
R33: =Prop2021DistTar!AF33 -> 0 | S33: =Prop2021DistTar!AG33 -> 0 | T33: =Prop2021DistTar!AH33 -> 0 | U33: =Prop2021DistTar!AI33 -> 0 | V33: =Prop2021DistTar!AJ33 -> 0 | W33: =Prop2021DistTar!AK33 -> 0 | X33: =Prop2021DistTar!AL33 -> 0 | Y33: =Prop2021DistTar!AM33 -> 0 | Z33: =Prop2021DistTar!AN33 -> 0 | AA33: =Prop2021DistTar!AO33 -> 0 | AB33: =Prop2021DistTar!AP33 -> 0 | AC33: =Prop2021DistTar!AQ33 -> 0 | AD33: =Prop2021DistTar!AR33 -> 0 | AF33: 0 | AG33: 0 | AH33: 0 | AI33: 0 | AJ33: 0 | AK33: 0 | AL33: 0 | AM33: 0 | AN33: 0 | AO33: 0 | AP33: 0 | AQ33: 0 | AR33: 0 | AS33: 0
R34: =Prop2021DistTar!AF34 -> 0 | S34: =Prop2021DistTar!AG34 -> 0 | T34: =Prop2021DistTar!AH34 -> 0 | U34: =Prop2021DistTar!AI34 -> 0 | V34: =Prop2021DistTar!AJ34 -> 0 | W34: =Prop2021DistTar!AK34 -> 0 | X34: =Prop2021DistTar!AL34 -> 0 | Y34: =Prop2021DistTar!AM34 -> 0 | Z34: =Prop2021DistTar!AN34 -> 0 | AA34: =Prop2021DistTar!AO34 -> 0 | AB34: =Prop2021DistTar!AP34 -> 0 | AC34: =Prop2021DistTar!AQ34 -> 0 | AD34: =Prop2021DistTar!AR34 -> 0 | AF34: 0 | AG34: 0 | AH34: 0 | AI34: 0 | AJ34: 0 | AK34: 0 | AL34: 0 | AM34: 0 | AN34: 0 | AO34: 0 | AP34: 0 | AQ34: 0 | AR34: 0 | AS34: 0
R35: =Prop2021DistTar!AF35 -> 0 | S35: =Prop2021DistTar!AG35 -> 0 | T35: =Prop2021DistTar!AH35 -> 0 | U35: =Prop2021DistTar!AI35 -> 0 | V35: =Prop2021DistTar!AJ35 -> 0 | W35: =Prop2021DistTar!AK35 -> 0 | X35: =Prop2021DistTar!AL35 -> 0 | Y35: =Prop2021DistTar!AM35 -> 0 | Z35: =Prop2021DistTar!AN35 -> 0 | AA35: =Prop2021DistTar!AO35 -> 0 | AB35: =Prop2021DistTar!AP35 -> 0 | AC35: =Prop2021DistTar!AQ35 -> 0 | AD35: =Prop2021DistTar!AR35 -> 0 | AF35: 0 | AG35: 0 | AH35: 0 | AI35: 0 | AJ35: 0 | AK35: 0 | AL35: 0 | AM35: 0 | AN35: =L35/100*Z35 -> 0 | AO35: 0 | AP35: 0 | AQ35: 0 | AR35: 0 | AS35: 0
R36: =Prop2021DistTar!AF36 -> 0 | S36: =Prop2021DistTar!AG36 -> 0 | T36: =Prop2021DistTar!AH36 -> 0 | U36: =Prop2021DistTar!AI36 -> 0 | V36: =Prop2021DistTar!AJ36 -> 0 | W36: =Prop2021DistTar!AK36 -> 0 | X36: =Prop2021DistTar!AL36 -> 0 | Y36: =Prop2021DistTar!AM36 -> 0 | Z36: =Prop2021DistTar!AN36 -> 0 | AA36: =Prop2021DistTar!AO36 -> 0 | AB36: =Prop2021DistTar!AP36 -> 0 | AC36: =Prop2021DistTar!AQ36 -> 0 | AD36: =Prop2021DistTar!AR36 -> 0 | AF36: 0 | AG36: 0 | AH36: 0 | AI36: 0 | AJ36: 0 | AK36: 0 | AL36: 0 | AM36: 0 | AN36: 0 | AO36: 0 | AP36: 0 | AQ36: 0 | AR36: 0 | AS36: 0
R37: =Prop2021DistTar!AF37 -> 0 | S37: =Prop2021DistTar!AG37 -> 0 | T37: =Prop2021DistTar!AH37 -> 0 | U37: =Prop2021DistTar!AI37 -> 0 | V37: =Prop2021DistTar!AJ37 -> 0 | W37: =Prop2021DistTar!AK37 -> 0 | X37: =Prop2021DistTar!AL37 -> 0 | Y37: =Prop2021DistTar!AM37 -> 0 | Z37: =Prop2021DistTar!AN37 -> 0 | AA37: =Prop2021DistTar!AO37 -> 0 | AB37: =Prop2021DistTar!AP37 -> 0 | AC37: =Prop2021DistTar!AQ37 -> 0 | AD37: =Prop2021DistTar!AR37 -> 0 | AF37: 0 | AG37: 0 | AH37: 0 | AI37: 0 | AJ37: 0 | AK37: 0 | AL37: 0 | AM37: 0 | AN37: 0 | AO37: 0 | AP37: 0 | AQ37: 0 | AR37: 0 | AS37: 0
R38: =Prop2021DistTar!AF38 -> 0 | S38: =Prop2021DistTar!AG38 -> 0 | T38: =Prop2021DistTar!AH38 -> 0 | U38: =Prop2021DistTar!AI38 -> 0 | V38: =Prop2021DistTar!AJ38 -> 0 | W38: =Prop2021DistTar!AK38 -> 0 | X38: =Prop2021DistTar!AL38 -> 0 | Y38: =Prop2021DistTar!AM38 -> 0 | Z38: =Prop2021DistTar!AN38 -> 0 | AA38: =Prop2021DistTar!AO38 -> 0 | AB38: =Prop2021DistTar!AP38 -> 0 | AC38: =Prop2021DistTar!AQ38 -> 0 | AD38: =Prop2021DistTar!AR38 -> 0 | AF38: 0 | AG38: 0 | AH38: 0 | AI38: 0 | AJ38: 0 | AK38: 0 | AL38: 0 | AM38: 0 | AN38: 0 | AO38: 0 | AP38: 0 | AQ38: 0 | AR38: 0 | AS38: 0
R39: =Prop2021DistTar!AF39 -> 0 | S39: =Prop2021DistTar!AG39 -> 0 | T39: =Prop2021DistTar!AH39 -> 0 | U39: =Prop2021DistTar!AI39 -> 0 | V39: =Prop2021DistTar!AJ39 -> 0 | W39: =Prop2021DistTar!AK39 -> 0 | X39: =Prop2021DistTar!AL39 -> 0 | Y39: =Prop2021DistTar!AM39 -> 0 | Z39: =Prop2021DistTar!AN39 -> 0 | AA39: =Prop2021DistTar!AO39 -> 0 | AB39: =Prop2021DistTar!AP39 -> 0 | AC39: =Prop2021DistTar!AQ39 -> 0 | AD39: =Prop2021DistTar!AR39 -> 0 | AF39: 0 | AG39: 0 | AH39: 0 | AI39: 0 | AJ39: 0 | AK39: 0 | AL39: 0 | AM39: 0 | AN39: 0 | AO39: 0 | AP39: 0 | AQ39: 0 | AR39: 0 | AS39: 0
R40: =Prop2021DistTar!AF40 -> 0 | S40: =Prop2021DistTar!AG40 -> 0 | T40: =Prop2021DistTar!AH40 -> 0 | U40: =Prop2021DistTar!AI40 -> 0 | V40: =Prop2021DistTar!AJ40 -> 0 | W40: =Prop2021DistTar!AK40 -> 0 | X40: =Prop2021DistTar!AL40 -> 0 | Y40: =Prop2021DistTar!AM40 -> 0 | Z40: =Prop2021DistTar!AN40 -> 0 | AA40: =Prop2021DistTar!AO40 -> 0 | AB40: =Prop2021DistTar!AP40 -> 0 | AC40: =Prop2021DistTar!AQ40 -> 0 | AD40: =Prop2021DistTar!AR40 -> 0 | AF40: 0 | AG40: 0 | AH40: 0 | AI40: 0 | AJ40: 0 | AK40: 0 | AL40: 0 | AM40: 0 | AN40: 0 | AO40: 0 | AP40: 0 | AQ40: 0 | AR40: 0 | AS40: 0
R41: =Prop2021DistTar!AF41 -> 0 | S41: =Prop2021DistTar!AG41 -> 0 | T41: =Prop2021DistTar!AH41 -> 0 | U41: =Prop2021DistTar!AI41 -> 0 | V41: =Prop2021DistTar!AJ41 -> 0 | W41: =Prop2021DistTar!AK41 -> 0 | X41: =Prop2021DistTar!AL41 -> 0 | Y41: =Prop2021DistTar!AM41 -> 0 | Z41: =Prop2021DistTar!AN41 -> 0 | AA41: =Prop2021DistTar!AO41 -> 0 | AB41: =Prop2021DistTar!AP41 -> 0 | AC41: =Prop2021DistTar!AQ41 -> 0 | AD41: =Prop2021DistTar!AR41 -> 0 | AF41: 0 | AG41: 0 | AH41: 0 | AI41: 0 | AJ41: 0 | AK41: 0 | AL41: 0 | AM41: 0 | AN41: 0 | AO41: 0 | AP41: 0 | AQ41: 0 | AR41: 0 | AS41: 0
R42: =Prop2021DistTar!AF42 -> 0 | S42: =Prop2021DistTar!AG42 -> 0 | T42: =Prop2021DistTar!AH42 -> 0 | U42: =Prop2021DistTar!AI42 -> 0 | V42: =Prop2021DistTar!AJ42 -> 0 | W42: =Prop2021DistTar!AK42 -> 0 | X42: =Prop2021DistTar!AL42 -> 0 | Y42: =Prop2021DistTar!AM42 -> 0 | Z42: =Prop2021DistTar!AN42 -> 0 | AA42: =Prop2021DistTar!AO42 -> 0 | AB42: =Prop2021DistTar!AP42 -> 0 | AC42: =Prop2021DistTar!AQ42 -> 0 | AD42: =Prop2021DistTar!AR42 -> 0 | AF42: 0 | AG42: 0 | AH42: 0 | AI42: 0 | AJ42: 0 | AK42: 0 | AL42: 0 | AM42: 0 | AN42: 0 | AO42: 0 | AP42: 0 | AQ42: 0 | AR42: 0 | AS42: 0
R43: =Prop2021DistTar!AF43 -> 0 | S43: =Prop2021DistTar!AG43 -> 0 | T43: =Prop2021DistTar!AH43 -> 0 | U43: =Prop2021DistTar!AI43 -> 0 | V43: =Prop2021DistTar!AJ43 -> 0 | W43: =Prop2021DistTar!AK43 -> 0 | X43: =Prop2021DistTar!AL43 -> 0 | Y43: =Prop2021DistTar!AM43 -> 0 | Z43: =Prop2021DistTar!AN43 -> 0 | AA43: =Prop2021DistTar!AO43 -> 0 | AB43: =Prop2021DistTar!AP43 -> 0 | AC43: =Prop2021DistTar!AQ43 -> 0 | AD43: =Prop2021DistTar!AR43 -> 0 | AF43: 0 | AG43: 0 | AH43: 0 | AI43: 0 | AJ43: 0 | AK43: 0 | AL43: 0 | AM43: 0 | AN43: 0 | AO43: 0 | AP43: 0 | AQ43: 0 | AR43: 0 | AS43: 0
R44: =Prop2021DistTar!AF44 -> 0 | S44: =Prop2021DistTar!AG44 -> 0 | T44: =Prop2021DistTar!AH44 -> 0 | U44: =Prop2021DistTar!AI44 -> 0 | V44: =Prop2021DistTar!AJ44 -> 0 | W44: =Prop2021DistTar!AK44 -> 0 | X44: =Prop2021DistTar!AL44 -> 0 | Y44: =Prop2021DistTar!AM44 -> 0 | Z44: =Prop2021DistTar!AN44 -> 0 | AA44: =Prop2021DistTar!AO44 -> 0 | AB44: =Prop2021DistTar!AP44 -> 0 | AC44: =Prop2021DistTar!AQ44 -> 0 | AD44: =Prop2021DistTar!AR44 -> 0 | AF44: 0 | AG44: 0 | AH44: 0 | AI44: 0 | AJ44: 0 | AK44: 0 | AL44: 0 | AM44: 0 | AN44: 0 | AO44: 0 | AP44: 0 | AQ44: 0 | AR44: 0 | AS44: 0
R45: =Prop2021DistTar!AF45 -> 0 | S45: =Prop2021DistTar!AG45 -> 0 | T45: =Prop2021DistTar!AH45 -> 0 | U45: =Prop2021DistTar!AI45 -> 0 | V45: =Prop2021DistTar!AJ45 -> 0 | W45: =Prop2021DistTar!AK45 -> 0 | X45: =Prop2021DistTar!AL45 -> 0 | Y45: =Prop2021DistTar!AM45 -> 0 | Z45: =Prop2021DistTar!AN45 -> 0 | AA45: =Prop2021DistTar!AO45 -> 0 | AB45: =Prop2021DistTar!AP45 -> 0 | AC45: =Prop2021DistTar!AQ45 -> 0 | AD45: =Prop2021DistTar!AR45 -> 0 | AF45: 0 | AG45: 0 | AH45: 0 | AI45: 0 | AJ45: 0 | AK45: 0 | AL45: 0 | AM45: 0 | AN45: 0 | AO45: 0 | AP45: 0 | AQ45: 0 | AR45: 0 | AS45: 0
R46: =Prop2021DistTar!AF46 -> 0 | S46: =Prop2021DistTar!AG46 -> 0 | T46: =Prop2021DistTar!AH46 -> 0 | U46: =Prop2021DistTar!AI46 -> 0 | V46: =Prop2021DistTar!AJ46 -> 0 | W46: =Prop2021DistTar!AK46 -> 0 | X46: =Prop2021DistTar!AL46 -> 0 | Y46: =Prop2021DistTar!AM46 -> 0 | Z46: =Prop2021DistTar!AN46 -> 0 | AA46: =Prop2021DistTar!AO46 -> 0 | AB46: =Prop2021DistTar!AP46 -> 0 | AC46: =Prop2021DistTar!AQ46 -> 0 | AD46: =Prop2021DistTar!AR46 -> 0 | AF46: 0 | AG46: 0 | AH46: 0 | AI46: 0 | AJ46: 0 | AK46: 0 | AL46: 0 | AM46: 0 | AN46: 0 | AO46: 0 | AP46: 0 | AQ46: 0 | AR46: 0 | AS46: 0
R47: =Prop2021DistTar!AF47 -> 0 | S47: =Prop2021DistTar!AG47 -> 0 | T47: =Prop2021DistTar!AH47 -> 0 | U47: =Prop2021DistTar!AI47 -> 0 | V47: =Prop2021DistTar!AJ47 -> 0 | W47: =Prop2021DistTar!AK47 -> 0 | X47: =Prop2021DistTar!AL47 -> 0 | Y47: =Prop2021DistTar!AM47 -> 0 | Z47: =Prop2021DistTar!AN47 -> 0 | AA47: =Prop2021DistTar!AO47 -> 0 | AB47: =Prop2021DistTar!AP47 -> 0 | AC47: =Prop2021DistTar!AQ47 -> 0 | AD47: =Prop2021DistTar!AR47 -> 0 | AF47: 0 | AG47: 0 | AH47: 0 | AI47: 0 | AJ47: 0 | AK47: 0 | AL47: 0 | AM47: 0 | AN47: 0 | AO47: 0 | AP47: 0 | AQ47: 0 | AR47: 0 | AS47: 0
R48: =Prop2021DistTar!AF48 -> 0 | S48: =Prop2021DistTar!AG48 -> 0 | T48: =Prop2021DistTar!AH48 -> 0 | U48: =Prop2021DistTar!AI48 -> 0 | V48: =Prop2021DistTar!AJ48 -> 0 | W48: =Prop2021DistTar!AK48 -> 0 | X48: =Prop2021DistTar!AL48 -> 0 | Y48: =Prop2021DistTar!AM48 -> 0 | Z48: =Prop2021DistTar!AN48 -> 0 | AA48: =Prop2021DistTar!AO48 -> 0 | AB48: =Prop2021DistTar!AP48 -> 0 | AC48: =Prop2021DistTar!AQ48 -> 0 | AD48: =Prop2021DistTar!AR48 -> 0 | AF48: 0 | AG48: 0 | AH48: 0 | AI48: 0 | AJ48: 0 | AK48: 0 | AL48: 0 | AM48: 0 | AN48: 0 | AO48: 0 | AP48: 0 | AQ48: 0 | AR48: 0 | AS48: 0
R49: =Prop2021DistTar!AF49 -> 0 | S49: =Prop2021DistTar!AG49 -> 0 | T49: =Prop2021DistTar!AH49 -> 0 | U49: =Prop2021DistTar!AI49 -> 0 | V49: =Prop2021DistTar!AJ49 -> 0 | W49: =Prop2021DistTar!AK49 -> 0 | X49: =Prop2021DistTar!AL49 -> 0 | Y49: =Prop2021DistTar!AM49 -> 0 | Z49: =Prop2021DistTar!AN49 -> 0 | AA49: =Prop2021DistTar!AO49 -> 0 | AB49: =Prop2021DistTar!AP49 -> 0 | AC49: =Prop2021DistTar!AQ49 -> 0 | AD49: =Prop2021DistTar!AR49 -> 0 | AF49: 0 | AG49: 0 | AH49: 0 | AI49: 0 | AJ49: 0 | AK49: 0 | AL49: 0 | AM49: 0 | AN49: 0 | AO49: 0 | AP49: 0 | AQ49: 0 | AR49: 0 | AS49: 0
R50: =Prop2021DistTar!AF50 -> 0 | S50: =Prop2021DistTar!AG50 -> 0 | T50: =Prop2021DistTar!AH50 -> 0 | U50: =Prop2021DistTar!AI50 -> 0 | V50: =Prop2021DistTar!AJ50 -> 0 | W50: =Prop2021DistTar!AK50 -> 0 | X50: =Prop2021DistTar!AL50 -> 0 | Y50: =Prop2021DistTar!AM50 -> 0 | Z50: =Prop2021DistTar!AN50 -> 0 | AA50: =Prop2021DistTar!AO50 -> 0 | AB50: =Prop2021DistTar!AP50 -> 0 | AC50: =Prop2021DistTar!AQ50 -> 0 | AD50: =Prop2021DistTar!AR50 -> 0 | AF50: 0 | AG50: 0 | AH50: 0 | AI50: 0 | AJ50: 0 | AK50: 0 | AL50: 0 | AM50: 0 | AN50: 0 | AO50: 0 | AP50: 0 | AQ50: 0 | AR50: 0 | AS50: 0
R51: =Prop2021DistTar!AF51 -> 0 | S51: =Prop2021DistTar!AG51 -> 0 | T51: =Prop2021DistTar!AH51 -> 0 | U51: =Prop2021DistTar!AI51 -> 0 | V51: =Prop2021DistTar!AJ51 -> 0 | W51: =Prop2021DistTar!AK51 -> 0 | X51: =Prop2021DistTar!AL51 -> 0 | Y51: =Prop2021DistTar!AM51 -> 0 | Z51: =Prop2021DistTar!AN51 -> 0 | AA51: =Prop2021DistTar!AO51 -> 0 | AB51: =Prop2021DistTar!AP51 -> 0 | AC51: =Prop2021DistTar!AQ51 -> 0 | AD51: =Prop2021DistTar!AR51 -> 0 | AF51: 0 | AG51: 0 | AH51: 0 | AI51: 0 | AJ51: 0 | AK51: 0 | AL51: 0 | AM51: 0 | AN51: 0 | AO51: 0 | AP51: 0 | AQ51: 0 | AR51: 0 | AS51: 0
AF52: 0 | AG52: 0 | AH52: 0 | AI52: 0 | AJ52: 0 | AK52: 0 | AL52: 0 | AM52: 0 | AN52: 0 | AO52: 0 | AP52: 0 | AQ52: 0 | AR52: 0 | AS52: 0
AF53: 0 | AG53: 0 | AH53: 0 | AI53: 0 | AJ53: 0 | AK53: 0 | AL53: 0 | AM53: 0 | AN53: 0 | AO53: 0 | AP53: 0 | AQ53: 0 | AR53: 0 | AS53: 0
AF54: 0 | AG54: 0 | AH54: 0 | AI54: 0 | AJ54: 0 | AK54: 0 | AL54: 0 | AM54: 0 | AN54: 0 | AO54: 0 | AP54: 0 | AQ54: 0 | AR54: 0 | AS54: 0
AF55: 0 | AG55: 0 | AH55: 0 | AI55: 0 | AJ55: 0 | AK55: 0 | AL55: 0 | AM55: 0 | AN55: 0 | AO55: 0 | AP55: 0 | AQ55: 0 | AR55: 0 | AS55: 0
AF56: 0 | AG56: 0 | AH56: 0 | AI56: 0 | AJ56: 0 | AK56: 0 | AL56: 0 | AM56: 0 | AN56: 0 | AO56: 0 | AP56: 0 | AQ56: 0 | AR56: 0 | AS56: 0
AF57: 0 | AG57: 0 | AH57: 0 | AI57: 0 | AJ57: 0 | AK57: 0 | AL57: 0 | AM57: 0 | AN57: 0 | AO57: 0 | AP57: 0 | AQ57: 0 | AR57: 0 | AS57: 0
AF58: 0 | AG58: 0 | AH58: 0 | AI58: 0 | AJ58: 0 | AK58: 0 | AL58: 0 | AM58: 0 | AN58: 0 | AO58: 0 | AP58: 0 | AQ58: 0 | AR58: 0 | AS58: 0
AF59: 0 | AG59: 0 | AH59: 0 | AI59: 0 | AJ59: 0 | AK59: 0 | AL59: 0 | AM59: 0 | AN59: 0 | AO59: 0 | AP59: 0 | AQ59: 0 | AR59: 0 | AS59: 0
AF60: 0 | AG60: 0 | AH60: 0 | AI60: 0 | AJ60: 0 | AK60: 0 | AL60: 0 | AM60: 0 | AN60: 0 | AO60: 0 | AP60: 0 | AQ60: 0 | AR60: 0 | AS60: 0
AF61: 0 | AG61: 0 | AH61: 0 | AI61: 0 | AJ61: 0 | AK61: 0 | AL61: 0 | AM61: 0 | AN61: 0 | AO61: 0 | AP61: 0 | AQ61: 0 | AR61: 0 | AS61: 0
AF62: 0 | AG62: 0 | AH62: 0 | AI62: 0 | AJ62: 0 | AK62: 0 | AL62: 0 | AM62: 0 | AN62: 0 | AO62: 0 | AP62: 0 | AQ62: 0 | AR62: 0 | AS62: 0
R63: =SUM(R6:R62) -> 138820319.4 | S63: 669242857.5 | T63: 9429491.821 | U63: 596458888.2 | V63: 742096863.4 | W63: 0 | X63: 581129758.4 | Y63: 1129221349 | Z63: 12254683.83 | AA63: 213038558 | AB63: 78252863.42 | AC63: 20417897.31 | AD63: 18342432.99 | AF63: =SUM(AF6:AF62) -> 6894230.707 | AG63: 0 | AH63: 0 | AI63: 0 | AJ63: 0 | AK63: 0 | AL63: 0 | AM63: =SUM(AM6:AM62) -> 0 | AN63: 0 | AO63: 0 | AP63: 0 | AQ63: 0 | AR63: 0 | AS63: 6894230.707

Sheet 2021JSRevCont
B2: ="Tariff Approval - "&'Model update'!$C$3 -> Tariff Approval - United Energy | C2: ='Model update'!$C$5&"JSRevCont" -> 2021JSRevCont
B4: Jurisdictional Scheme Amounts (JSA)
B6: Year (t) | C6: ='Model update'!C5 -> 2021
B8: Table 1- Compliance with JSA Revenue Formula
B9: Revenue from Jurisdictional Scheme Amounts charges for year t | C9: =Prop2021JSTar!AS63 -> 6894230.707
B10: Total JSA related payments for year t | C10: =C17 -> 6903480.668
C11: =IF(C9="","",IF(C10>=C9,"JSA REVENUE FORMULA COMPLIANT","JSA REVENUE FORMULA BREACHED")) -> JSA REVENUE FORMULA COMPLIANT
B14: Table 3 - PFIT & TFIT charges for year t
B15: PFIT | C15: 6903480.668
B16: TFIT | C16: 0
B17: PFIT & TFIT charges | C17: =SUM(C15:C16) -> 6903480.668
